Council Name,Date,TransNo,Amount � (Excl VAT),Supplier name,Supplier Category,Expense Area,Expense Type,Expense Code
Royal Borough of Kingston,31/12/2023,70066384,450.00,31TEN CONSULTING LIMITED,TEMP STAFF & CONSULTANCY,Place,External Fees and Consultants,C20000
Royal Borough of Kingston,02/04/2024,90318354,"1,375.00",REDACTED - PERSONAL DATA,PLS LANDLORDS,Place,PSL Payments To Landlords,A22031
Royal Borough of Kingston,25/04/2024,90326409,"1,375.00",REDACTED - PERSONAL DATA,PLS LANDLORDS,Place,PSL Payments To Landlords,A22031
Royal Borough of Kingston,02/04/2024,90318400,"1,375.00",REDACTED - PERSONAL DATA,PLS LANDLORDS,Place,PSL Payments To Landlords,A22031
Royal Borough of Kingston,25/04/2024,90326456,"1,375.00",REDACTED - PERSONAL DATA,PLS LANDLORDS,Place,PSL Payments To Landlords,A22031
Royal Borough of Kingston,02/04/2024,90318256,"1,097.00",REDACTED - PERSONAL DATA,PLS LANDLORDS,Place,PSL Payments To Landlords,A22031
Royal Borough of Kingston,25/04/2024,90326310,"1,097.00",REDACTED - PERSONAL DATA,PLS LANDLORDS,Place,PSL Payments To Landlords,A22031
Royal Borough of Kingston,02/04/2024,90318309,"1,125.00",REDACTED - PERSONAL DATA,PLS LANDLORDS,Place,PSL Payments To Landlords,A22031
Royal Borough of Kingston,25/04/2024,90326363,"1,125.00",REDACTED - PERSONAL DATA,PLS LANDLORDS,Place,PSL Payments To Landlords,A22031
Royal Borough of Kingston,02/04/2024,90318390,"2,300.00",REDACTED - PERSONAL DATA,PLS LANDLORDS,Place,PSL Payments To Landlords,A22031
Royal Borough of Kingston,02/04/2024,90318391,"2,300.00",REDACTED - PERSONAL DATA,PLS LANDLORDS,Place,PSL Payments To Landlords,A22031
Royal Borough of Kingston,02/04/2024,90318392,"2,300.00",REDACTED - PERSONAL DATA,PLS LANDLORDS,Place,PSL Payments To Landlords,A22031
Royal Borough of Kingston,02/04/2024,90318544,"2,300.00",REDACTED - PERSONAL DATA,PLS LANDLORDS,Place,PSL Payments To Landlords,A22031
Royal Borough of Kingston,25/04/2024,90326446,"2,300.00",REDACTED - PERSONAL DATA,PLS LANDLORDS,Place,PSL Payments To Landlords,A22031
Royal Borough of Kingston,25/04/2024,90326447,"2,300.00",REDACTED - PERSONAL DATA,PLS LANDLORDS,Place,PSL Payments To Landlords,A22031
Royal Borough of Kingston,25/04/2024,90326448,"2,300.00",REDACTED - PERSONAL DATA,PLS LANDLORDS,Place,PSL Payments To Landlords,A22031
Royal Borough of Kingston,25/04/2024,90326600,"2,300.00",REDACTED - PERSONAL DATA,PLS LANDLORDS,Place,PSL Payments To Landlords,A22031
Royal Borough of Kingston,02/04/2024,90318350,993.34,REDACTED - PERSONAL DATA,PLS LANDLORDS,Place,PSL Payments To Landlords,A22031
Royal Borough of Kingston,25/04/2024,90326405,993.34,REDACTED - PERSONAL DATA,PLS LANDLORDS,Place,PSL Payments To Landlords,A22031
Royal Borough of Kingston,04/04/2024,90318870,"11,812.50",ABACUS PRE-SCHOOL,ACADEMIC INSTNS - OTHER,Schools,PVI Providers,A60014
Royal Borough of Kingston,04/04/2024,90318983,"8,100.00",ABACUS PRE-SCHOOL,ACADEMIC INSTNS - OTHER,Schools,2 Yr Old Place Funding,A60000
Royal Borough of Kingston,01/04/2024,90323585,"5,142.86",ABBEY 14LIMITED,SOCIAL SERVICES RESIDENTIAL,Adult Social Care & Health,Independent Placements,A56006
Royal Borough of Kingston,01/04/2024,90318805,"1,084.29",ABBEYFIELD,SOCIAL SERVICES RESIDENTIAL,Adult Social Care & Health,Care Home - D2A Short term,A56137
Royal Borough of Kingston,01/04/2024,90323345,"5,421.43",ABBEYFIELD,SOCIAL SERVICES RESIDENTIAL,Adult Social Care & Health,Independent Placements,A56006
Royal Borough of Kingston,01/04/2024,90323348,"4,193.87",ABBEYFIELD,SOCIAL SERVICES RESIDENTIAL,Adult Social Care & Health,Independent Placements,A56006
Royal Borough of Kingston,01/04/2024,90323353,"4,027.07",ABBEYFIELD,SOCIAL SERVICES RESIDENTIAL,Adult Social Care & Health,Independent Placements,A56006
Royal Borough of Kingston,01/04/2024,90323354,"-3,740.40",ABBEYFIELD,SOCIAL SERVICES RESIDENTIAL,Adult Social Care & Health,Independent Placements,A56006
Royal Borough of Kingston,01/04/2024,90323355,"4,161.31",ABBEYFIELD,SOCIAL SERVICES RESIDENTIAL,Adult Social Care & Health,Independent Placements,A56006
Royal Borough of Kingston,01/04/2024,90323356,"-3,865.08",ABBEYFIELD,SOCIAL SERVICES RESIDENTIAL,Adult Social Care & Health,Independent Placements,A56006
Royal Borough of Kingston,01/04/2024,90323357,"1,610.83",ABBEYFIELD,SOCIAL SERVICES RESIDENTIAL,Adult Social Care & Health,Independent Placements,A56006
Royal Borough of Kingston,01/04/2024,90323358,"-1,496.16",ABBEYFIELD,SOCIAL SERVICES RESIDENTIAL,Adult Social Care & Health,Independent Placements,A56006
Royal Borough of Kingston,01/04/2024,90323359,"4,027.07",ABBEYFIELD,SOCIAL SERVICES RESIDENTIAL,Adult Social Care & Health,Independent Placements,A56006
Royal Borough of Kingston,01/04/2024,90323360,"-3,740.40",ABBEYFIELD,SOCIAL SERVICES RESIDENTIAL,Adult Social Care & Health,Independent Placements,A56006
Royal Borough of Kingston,01/04/2024,90323361,"4,161.31",ABBEYFIELD,SOCIAL SERVICES RESIDENTIAL,Adult Social Care & Health,Independent Placements,A56006
Royal Borough of Kingston,01/04/2024,90323362,"-3,865.08",ABBEYFIELD,SOCIAL SERVICES RESIDENTIAL,Adult Social Care & Health,Independent Placements,A56006
Royal Borough of Kingston,01/04/2024,90323363,"4,027.07",ABBEYFIELD,SOCIAL SERVICES RESIDENTIAL,Adult Social Care & Health,Independent Placements,A56006
Royal Borough of Kingston,01/04/2024,90323364,"-3,740.40",ABBEYFIELD,SOCIAL SERVICES RESIDENTIAL,Adult Social Care & Health,Independent Placements,A56006
Royal Borough of Kingston,01/04/2024,90323365,"4,161.31",ABBEYFIELD,SOCIAL SERVICES RESIDENTIAL,Adult Social Care & Health,Independent Placements,A56006
Royal Borough of Kingston,01/04/2024,90323366,"-3,865.08",ABBEYFIELD,SOCIAL SERVICES RESIDENTIAL,Adult Social Care & Health,Independent Placements,A56006
Royal Borough of Kingston,01/04/2024,90323367,"4,161.31",ABBEYFIELD,SOCIAL SERVICES RESIDENTIAL,Adult Social Care & Health,Independent Placements,A56006
Royal Borough of Kingston,01/04/2024,90323368,"-3,865.08",ABBEYFIELD,SOCIAL SERVICES RESIDENTIAL,Adult Social Care & Health,Independent Placements,A56006
Royal Borough of Kingston,01/04/2024,90323369,"2,550.48",ABBEYFIELD,SOCIAL SERVICES RESIDENTIAL,Adult Social Care & Health,Independent Placements,A56006
Royal Borough of Kingston,01/04/2024,90323370,"-2,368.92",ABBEYFIELD,SOCIAL SERVICES RESIDENTIAL,Adult Social Care & Health,Independent Placements,A56006
Royal Borough of Kingston,01/04/2024,90323375,"4,027.07",ABBEYFIELD,SOCIAL SERVICES RESIDENTIAL,Adult Social Care & Health,Independent Placements,A56006
Royal Borough of Kingston,01/04/2024,90323376,"-3,740.40",ABBEYFIELD,SOCIAL SERVICES RESIDENTIAL,Adult Social Care & Health,Independent Placements,A56006
Royal Borough of Kingston,01/04/2024,90323377,"4,161.31",ABBEYFIELD,SOCIAL SERVICES RESIDENTIAL,Adult Social Care & Health,Independent Placements,A56006
Royal Borough of Kingston,01/04/2024,90323378,"-3,865.08",ABBEYFIELD,SOCIAL SERVICES RESIDENTIAL,Adult Social Care & Health,Independent Placements,A56006
Royal Borough of Kingston,01/04/2024,90323379,"4,027.07",ABBEYFIELD,SOCIAL SERVICES RESIDENTIAL,Adult Social Care & Health,Independent Placements,A56006
Royal Borough of Kingston,01/04/2024,90323380,"-3,740.40",ABBEYFIELD,SOCIAL SERVICES RESIDENTIAL,Adult Social Care & Health,Independent Placements,A56006
Royal Borough of Kingston,01/04/2024,90323381,"4,161.31",ABBEYFIELD,SOCIAL SERVICES RESIDENTIAL,Adult Social Care & Health,Independent Placements,A56006
Royal Borough of Kingston,01/04/2024,90323382,"-3,865.08",ABBEYFIELD,SOCIAL SERVICES RESIDENTIAL,Adult Social Care & Health,Independent Placements,A56006
Royal Borough of Kingston,01/04/2024,90323383,"4,161.31",ABBEYFIELD,SOCIAL SERVICES RESIDENTIAL,Adult Social Care & Health,Independent Placements,A56006
Royal Borough of Kingston,01/04/2024,90323384,"-3,865.08",ABBEYFIELD,SOCIAL SERVICES RESIDENTIAL,Adult Social Care & Health,Independent Placements,A56006
Royal Borough of Kingston,01/04/2024,90323385,"4,027.07",ABBEYFIELD,SOCIAL SERVICES RESIDENTIAL,Adult Social Care & Health,Independent Placements,A56006
Royal Borough of Kingston,01/04/2024,90323386,"-3,740.40",ABBEYFIELD,SOCIAL SERVICES RESIDENTIAL,Adult Social Care & Health,Independent Placements,A56006
Royal Borough of Kingston,01/04/2024,90323387,"4,161.31",ABBEYFIELD,SOCIAL SERVICES RESIDENTIAL,Adult Social Care & Health,Independent Placements,A56006
Royal Borough of Kingston,01/04/2024,90323388,"-3,865.08",ABBEYFIELD,SOCIAL SERVICES RESIDENTIAL,Adult Social Care & Health,Independent Placements,A56006
Royal Borough of Kingston,01/04/2024,90323389,"4,027.07",ABBEYFIELD,SOCIAL SERVICES RESIDENTIAL,Adult Social Care & Health,Independent Placements,A56006
Royal Borough of Kingston,01/04/2024,90323390,"-3,740.40",ABBEYFIELD,SOCIAL SERVICES RESIDENTIAL,Adult Social Care & Health,Independent Placements,A56006
Royal Borough of Kingston,01/04/2024,90323391,"4,161.31",ABBEYFIELD,SOCIAL SERVICES RESIDENTIAL,Adult Social Care & Health,Independent Placements,A56006
Royal Borough of Kingston,01/04/2024,90323392,"-3,865.08",ABBEYFIELD,SOCIAL SERVICES RESIDENTIAL,Adult Social Care & Health,Independent Placements,A56006
Royal Borough of Kingston,01/04/2024,90323393,"4,161.31",ABBEYFIELD,SOCIAL SERVICES RESIDENTIAL,Adult Social Care & Health,Independent Placements,A56006
Royal Borough of Kingston,01/04/2024,90323394,"-3,865.08",ABBEYFIELD,SOCIAL SERVICES RESIDENTIAL,Adult Social Care & Health,Independent Placements,A56006
Royal Borough of Kingston,01/04/2024,90323395,"3,892.84",ABBEYFIELD,SOCIAL SERVICES RESIDENTIAL,Adult Social Care & Health,Independent Placements,A56006
Royal Borough of Kingston,01/04/2024,90323396,"-3,615.72",ABBEYFIELD,SOCIAL SERVICES RESIDENTIAL,Adult Social Care & Health,Independent Placements,A56006
Royal Borough of Kingston,01/04/2024,90323397,"4,161.31",ABBEYFIELD,SOCIAL SERVICES RESIDENTIAL,Adult Social Care & Health,Independent Placements,A56006
Royal Borough of Kingston,01/04/2024,90323398,"-3,865.08",ABBEYFIELD,SOCIAL SERVICES RESIDENTIAL,Adult Social Care & Health,Independent Placements,A56006
Royal Borough of Kingston,01/04/2024,90323399,"4,027.07",ABBEYFIELD,SOCIAL SERVICES RESIDENTIAL,Adult Social Care & Health,Independent Placements,A56006
Royal Borough of Kingston,01/04/2024,90323400,"4,161.31",ABBEYFIELD,SOCIAL SERVICES RESIDENTIAL,Adult Social Care & Health,Independent Placements,A56006
Royal Borough of Kingston,01/04/2024,90323401,"-3,865.08",ABBEYFIELD,SOCIAL SERVICES RESIDENTIAL,Adult Social Care & Health,Independent Placements,A56006
Royal Borough of Kingston,01/04/2024,90323402,"4,027.07",ABBEYFIELD,SOCIAL SERVICES RESIDENTIAL,Adult Social Care & Health,Independent Placements,A56006
Royal Borough of Kingston,01/04/2024,90323403,"-3,740.40",ABBEYFIELD,SOCIAL SERVICES RESIDENTIAL,Adult Social Care & Health,Independent Placements,A56006
Royal Borough of Kingston,01/04/2024,90323404,"4,161.31",ABBEYFIELD,SOCIAL SERVICES RESIDENTIAL,Adult Social Care & Health,Independent Placements,A56006
Royal Borough of Kingston,01/04/2024,90323405,"-3,865.08",ABBEYFIELD,SOCIAL SERVICES RESIDENTIAL,Adult Social Care & Health,Independent Placements,A56006
Royal Borough of Kingston,01/04/2024,90323406,"4,161.31",ABBEYFIELD,SOCIAL SERVICES RESIDENTIAL,Adult Social Care & Health,Independent Placements,A56006
Royal Borough of Kingston,01/04/2024,90323407,"-3,865.08",ABBEYFIELD,SOCIAL SERVICES RESIDENTIAL,Adult Social Care & Health,Independent Placements,A56006
Royal Borough of Kingston,01/04/2024,90323408,"4,027.07",ABBEYFIELD,SOCIAL SERVICES RESIDENTIAL,Adult Social Care & Health,Independent Placements,A56006
Royal Borough of Kingston,01/04/2024,90323409,"-3,740.40",ABBEYFIELD,SOCIAL SERVICES RESIDENTIAL,Adult Social Care & Health,Independent Placements,A56006
Royal Borough of Kingston,01/04/2024,90323410,"4,161.31",ABBEYFIELD,SOCIAL SERVICES RESIDENTIAL,Adult Social Care & Health,Independent Placements,A56006
Royal Borough of Kingston,01/04/2024,90323411,"-3,865.08",ABBEYFIELD,SOCIAL SERVICES RESIDENTIAL,Adult Social Care & Health,Independent Placements,A56006
Royal Borough of Kingston,01/04/2024,90323412,"4,027.07",ABBEYFIELD,SOCIAL SERVICES RESIDENTIAL,Adult Social Care & Health,Independent Placements,A56006
Royal Borough of Kingston,01/04/2024,90323413,"-3,740.40",ABBEYFIELD,SOCIAL SERVICES RESIDENTIAL,Adult Social Care & Health,Independent Placements,A56006
Royal Borough of Kingston,01/04/2024,90323414,"4,161.31",ABBEYFIELD,SOCIAL SERVICES RESIDENTIAL,Adult Social Care & Health,Independent Placements,A56006
Royal Borough of Kingston,01/04/2024,90323415,"-3,865.08",ABBEYFIELD,SOCIAL SERVICES RESIDENTIAL,Adult Social Care & Health,Independent Placements,A56006
Royal Borough of Kingston,01/04/2024,90323416,"4,161.31",ABBEYFIELD,SOCIAL SERVICES RESIDENTIAL,Adult Social Care & Health,Independent Placements,A56006
Royal Borough of Kingston,01/04/2024,90323417,"-3,865.08",ABBEYFIELD,SOCIAL SERVICES RESIDENTIAL,Adult Social Care & Health,Independent Placements,A56006
Royal Borough of Kingston,01/04/2024,90323418,"3,892.84",ABBEYFIELD,SOCIAL SERVICES RESIDENTIAL,Adult Social Care & Health,Independent Placements,A56006
Royal Borough of Kingston,01/04/2024,90323419,"-3,615.72",ABBEYFIELD,SOCIAL SERVICES RESIDENTIAL,Adult Social Care & Health,Independent Placements,A56006
Royal Borough of Kingston,01/04/2024,90323420,"4,161.31",ABBEYFIELD,SOCIAL SERVICES RESIDENTIAL,Adult Social Care & Health,Independent Placements,A56006
Royal Borough of Kingston,01/04/2024,90323421,"-3,865.08",ABBEYFIELD,SOCIAL SERVICES RESIDENTIAL,Adult Social Care & Health,Independent Placements,A56006
Royal Borough of Kingston,01/04/2024,90323422,"4,027.07",ABBEYFIELD,SOCIAL SERVICES RESIDENTIAL,Adult Social Care & Health,Independent Placements,A56006
Royal Borough of Kingston,01/04/2024,90323425,"5,066.79",ABBEYFIELD,SOCIAL SERVICES RESIDENTIAL,Adult Social Care & Health,Independent Placements,A56006
Royal Borough of Kingston,01/04/2024,90323429,"4,193.87",ABBEYFIELD,SOCIAL SERVICES RESIDENTIAL,Adult Social Care & Health,Independent Placements,A56006
Royal Borough of Kingston,01/04/2024,90323433,"3,714.29",ABBEYFIELD,SOCIAL SERVICES RESIDENTIAL,Adult Social Care & Health,Independent Placements,A56006
Royal Borough of Kingston,01/04/2024,90323436,"5,066.79",ABBEYFIELD,SOCIAL SERVICES RESIDENTIAL,Adult Social Care & Health,Independent Placements,A56006
Royal Borough of Kingston,01/04/2024,90323441,"4,193.87",ABBEYFIELD,SOCIAL SERVICES RESIDENTIAL,Adult Social Care & Health,Independent Placements,A56006
Royal Borough of Kingston,01/04/2024,90323451,"4,193.87",ABBEYFIELD,SOCIAL SERVICES RESIDENTIAL,Adult Social Care & Health,Independent Placements,A56006
Royal Borough of Kingston,01/04/2024,90323453,"4,027.07",ABBEYFIELD,SOCIAL SERVICES RESIDENTIAL,Adult Social Care & Health,Independent Placements,A56006
Royal Borough of Kingston,01/04/2024,90323454,"-3,740.40",ABBEYFIELD,SOCIAL SERVICES RESIDENTIAL,Adult Social Care & Health,Independent Placements,A56006
Royal Borough of Kingston,01/04/2024,90323455,"4,161.31",ABBEYFIELD,SOCIAL SERVICES RESIDENTIAL,Adult Social Care & Health,Independent Placements,A56006
Royal Borough of Kingston,01/04/2024,90323456,"-3,865.08",ABBEYFIELD,SOCIAL SERVICES RESIDENTIAL,Adult Social Care & Health,Independent Placements,A56006
Royal Borough of Kingston,01/04/2024,90323457,"1,208.12",ABBEYFIELD,SOCIAL SERVICES RESIDENTIAL,Adult Social Care & Health,Independent Placements,A56006
Royal Borough of Kingston,01/04/2024,90323458,"-1,122.12",ABBEYFIELD,SOCIAL SERVICES RESIDENTIAL,Adult Social Care & Health,Independent Placements,A56006
Royal Borough of Kingston,01/04/2024,90323459,"4,027.07",ABBEYFIELD,SOCIAL SERVICES RESIDENTIAL,Adult Social Care & Health,Independent Placements,A56006
Royal Borough of Kingston,01/04/2024,90323471,"4,193.87",ABBEYFIELD,SOCIAL SERVICES RESIDENTIAL,Adult Social Care & Health,Independent Placements,A56006
Royal Borough of Kingston,01/04/2024,90323473,"4,193.87",ABBEYFIELD,SOCIAL SERVICES RESIDENTIAL,Adult Social Care & Health,Independent Placements,A56006
Royal Borough of Kingston,01/04/2024,90323474,"3,433.57",ABBEYFIELD,SOCIAL SERVICES RESIDENTIAL,Adult Social Care & Health,Independent Placements,A56006
Royal Borough of Kingston,01/04/2024,90323477,"-2,026.29",ABBEYFIELD,SOCIAL SERVICES RESIDENTIAL,Adult Social Care & Health,Independent Placements,A56006
Royal Borough of Kingston,01/04/2024,90323502,"3,740.40",ABBEYFIELD,SOCIAL SERVICES RESIDENTIAL,Adult Social Care & Health,Independent Placements,A56006
Royal Borough of Kingston,01/04/2024,90323508,"3,740.40",ABBEYFIELD,SOCIAL SERVICES RESIDENTIAL,Adult Social Care & Health,Independent Placements,A56006
Royal Borough of Kingston,01/04/2024,90323592,"4,193.87",ABBEYFIELD,SOCIAL SERVICES RESIDENTIAL,Adult Social Care & Health,Independent Placements,A56006
Royal Borough of Kingston,01/04/2024,90323604,"4,027.07",ABBEYFIELD,SOCIAL SERVICES RESIDENTIAL,Adult Social Care & Health,Independent Placements,A56006
Royal Borough of Kingston,01/04/2024,90323605,"-3,740.40",ABBEYFIELD,SOCIAL SERVICES RESIDENTIAL,Adult Social Care & Health,Independent Placements,A56006
Royal Borough of Kingston,01/04/2024,90323606,"4,161.31",ABBEYFIELD,SOCIAL SERVICES RESIDENTIAL,Adult Social Care & Health,Independent Placements,A56006
Royal Borough of Kingston,01/04/2024,90323607,"-3,865.08",ABBEYFIELD,SOCIAL SERVICES RESIDENTIAL,Adult Social Care & Health,Independent Placements,A56006
Royal Borough of Kingston,01/04/2024,90323608,"4,027.07",ABBEYFIELD,SOCIAL SERVICES RESIDENTIAL,Adult Social Care & Health,Independent Placements,A56006
Royal Borough of Kingston,01/04/2024,90323609,"-3,740.40",ABBEYFIELD,SOCIAL SERVICES RESIDENTIAL,Adult Social Care & Health,Independent Placements,A56006
Royal Borough of Kingston,01/04/2024,90323610,"4,161.31",ABBEYFIELD,SOCIAL SERVICES RESIDENTIAL,Adult Social Care & Health,Independent Placements,A56006
Royal Borough of Kingston,01/04/2024,90323611,"-4,058.34",ABBEYFIELD,SOCIAL SERVICES RESIDENTIAL,Adult Social Care & Health,Independent Placements,A56006
Royal Borough of Kingston,01/04/2024,90323612,"4,161.31",ABBEYFIELD,SOCIAL SERVICES RESIDENTIAL,Adult Social Care & Health,Independent Placements,A56006
Royal Borough of Kingston,01/04/2024,90323613,"-4,058.34",ABBEYFIELD,SOCIAL SERVICES RESIDENTIAL,Adult Social Care & Health,Independent Placements,A56006
Royal Borough of Kingston,01/04/2024,90323614,"4,027.07",ABBEYFIELD,SOCIAL SERVICES RESIDENTIAL,Adult Social Care & Health,Independent Placements,A56006
Royal Borough of Kingston,01/04/2024,90323615,"-3,927.43",ABBEYFIELD,SOCIAL SERVICES RESIDENTIAL,Adult Social Care & Health,Independent Placements,A56006
Royal Borough of Kingston,01/04/2024,90323616,"4,161.31",ABBEYFIELD,SOCIAL SERVICES RESIDENTIAL,Adult Social Care & Health,Independent Placements,A56006
Royal Borough of Kingston,01/04/2024,90323617,"-4,058.34",ABBEYFIELD,SOCIAL SERVICES RESIDENTIAL,Adult Social Care & Health,Independent Placements,A56006
Royal Borough of Kingston,01/04/2024,90323618,"4,027.07",ABBEYFIELD,SOCIAL SERVICES RESIDENTIAL,Adult Social Care & Health,Independent Placements,A56006
Royal Borough of Kingston,01/04/2024,90323619,"-3,927.43",ABBEYFIELD,SOCIAL SERVICES RESIDENTIAL,Adult Social Care & Health,Independent Placements,A56006
Royal Borough of Kingston,01/04/2024,90323620,"4,161.31",ABBEYFIELD,SOCIAL SERVICES RESIDENTIAL,Adult Social Care & Health,Independent Placements,A56006
Royal Borough of Kingston,01/04/2024,90323621,"-4,058.34",ABBEYFIELD,SOCIAL SERVICES RESIDENTIAL,Adult Social Care & Health,Independent Placements,A56006
Royal Borough of Kingston,01/04/2024,90323622,"4,161.31",ABBEYFIELD,SOCIAL SERVICES RESIDENTIAL,Adult Social Care & Health,Independent Placements,A56006
Royal Borough of Kingston,01/04/2024,90323623,"-4,058.34",ABBEYFIELD,SOCIAL SERVICES RESIDENTIAL,Adult Social Care & Health,Independent Placements,A56006
Royal Borough of Kingston,01/04/2024,90323624,"3,892.84",ABBEYFIELD,SOCIAL SERVICES RESIDENTIAL,Adult Social Care & Health,Independent Placements,A56006
Royal Borough of Kingston,01/04/2024,90323625,"-3,796.51",ABBEYFIELD,SOCIAL SERVICES RESIDENTIAL,Adult Social Care & Health,Independent Placements,A56006
Royal Borough of Kingston,01/04/2024,90323626,"4,161.31",ABBEYFIELD,SOCIAL SERVICES RESIDENTIAL,Adult Social Care & Health,Independent Placements,A56006
Royal Borough of Kingston,01/04/2024,90323627,"-4,058.34",ABBEYFIELD,SOCIAL SERVICES RESIDENTIAL,Adult Social Care & Health,Independent Placements,A56006
Royal Borough of Kingston,01/04/2024,90323628,"4,027.07",ABBEYFIELD,SOCIAL SERVICES RESIDENTIAL,Adult Social Care & Health,Independent Placements,A56006
Royal Borough of Kingston,01/04/2024,90323630,"5,066.79",ABBEYFIELD,SOCIAL SERVICES RESIDENTIAL,Adult Social Care & Health,Independent Placements,A56006
Royal Borough of Kingston,01/04/2024,90323633,"5,066.79",ABBEYFIELD,SOCIAL SERVICES RESIDENTIAL,Adult Social Care & Health,Independent Placements,A56006
Royal Borough of Kingston,01/04/2024,90323640,"4,193.87",ABBEYFIELD,SOCIAL SERVICES RESIDENTIAL,Adult Social Care & Health,Independent Placements,A56006
Royal Borough of Kingston,01/04/2024,90323643,"5,066.79",ABBEYFIELD,SOCIAL SERVICES RESIDENTIAL,Adult Social Care & Health,Independent Placements,A56006
Royal Borough of Kingston,01/04/2024,90323646,"5,066.79",ABBEYFIELD,SOCIAL SERVICES RESIDENTIAL,Adult Social Care & Health,Independent Placements,A56006
Royal Borough of Kingston,01/04/2024,90325131,"3,975.71",ABBEYFIELD,SOCIAL SERVICES RESIDENTIAL,Adult Social Care & Health,Care Home - D2A Short term,A56137
Royal Borough of Kingston,26/04/2024,70070302,664.23,ABBOTT RAPID DIAGNOSTICS LIMITED,OPERATIONAL EQUIPMENT/MATERIAL,Adult Social Care & Health,Other Private Contractors - Third Party,A56080
Royal Borough of Kingston,26/04/2024,70070303,903.28,ABBOTT RAPID DIAGNOSTICS LIMITED,OPERATIONAL EQUIPMENT/MATERIAL,Adult Social Care & Health,Other Private Contractors - Third Party,A56080
Royal Borough of Kingston,01/04/2024,90326056,"5,837.74",ABC HILLINGDON LTD,ACCOMMODATION - OTHER,Adult Social Care & Health,Personal Budget - Third Party,A61019
Royal Borough of Kingston,02/04/2024,90318359,990.58,REDACTED - PERSONAL DATA,PLS LANDLORDS,Place,PSL Payments To Landlords,A22031
Royal Borough of Kingston,25/04/2024,90326415,990.58,REDACTED - PERSONAL DATA,PLS LANDLORDS,Place,PSL Payments To Landlords,A22031
Royal Borough of Kingston,12/04/2024,70069418,"1,245.70",AC & MS LIMITED,LEGAL & PROFESSIONAL SERVICES,Housing Revenue Account,Asbestos Removal,C10000
Royal Borough of Kingston,04/04/2024,90318945,"25,875.00",ACACIA PRE-SCHOOL,ACADEMIC INSTNS - OTHER,Schools,PVI Providers,A60014
Royal Borough of Kingston,04/04/2024,90319041,"4,050.00",ACACIA PRE-SCHOOL,ACADEMIC INSTNS - OTHER,Schools,2 Yr Old Place Funding,A60000
Royal Borough of Kingston,10/04/2024,70069347,984.00,ACCESS INDEPENDENT LIMITED,SOCIAL SERVICES - OTHER,Adult Social Care & Health,Other Private Contractors - Third Party,A56080
Royal Borough of Kingston,05/04/2024,70069106,"6,864.69",ACCESS UK LTD,BUSINESS & COMPUTER SYSTEMS,Corporate & Communities,IT Software Maintenance,A45045
Royal Borough of Kingston,02/04/2024,90318622,"1,047.00",Accountancy Services (New Malden) Limited,PLS LANDLORDS,Place,PSL Payments To Landlords,A22031
Royal Borough of Kingston,25/04/2024,90326263,"1,047.00",Accountancy Services (New Malden) Limited,PLS LANDLORDS,Place,PSL Payments To Landlords,A22031
Royal Borough of Kingston,19/03/2024,70068923,"4,185.00",Ace Investment Properties Ltd,ACCOMMODATION BED & BREAKFAST,Place,Bed & Breakfast,A56000
Royal Borough of Kingston,01/04/2024,90323691,"7,197.73",Achieve Together Limited,SOCIAL SERVICES - OTHER,Adult Social Care & Health,Independent Placements,A56006
Royal Borough of Kingston,01/04/2024,90323799,"5,063.31",Achieve Together Limited,SOCIAL SERVICES - OTHER,Adult Social Care & Health,Independent Placements,A56006
Royal Borough of Kingston,01/04/2024,90323806,"2,142.86",Achieve Together Limited,SOCIAL SERVICES - OTHER,Adult Social Care & Health,Independent Placements,A56006
Royal Borough of Kingston,01/04/2024,90323807,"10,897.71",Achieve Together Limited,SOCIAL SERVICES - OTHER,Adult Social Care & Health,Independent Placements,A56006
Royal Borough of Kingston,01/04/2024,90323905,"12,035.49",Achieve Together Limited,SOCIAL SERVICES - OTHER,Adult Social Care & Health,Independent Placements,A56006
Royal Borough of Kingston,01/04/2024,90325141,"1,622.91",Achieve Together Limited,SOCIAL SERVICES - OTHER,Adult Social Care & Health,Residential / Nursing Placement,A56138
Royal Borough of Kingston,01/04/2024,90325389,"1,471.63",Achieve Together Limited,SOCIAL SERVICES - OTHER,Adult Social Care & Health,S-L framework - Accom - nights hours,A56151
Royal Borough of Kingston,01/04/2024,90325390,"5,334.67",Achieve Together Limited,SOCIAL SERVICES - OTHER,Adult Social Care & Health,S-L framework - Accom - nights hours,A56151
Royal Borough of Kingston,01/04/2024,90325391,"5,702.58",Achieve Together Limited,SOCIAL SERVICES - OTHER,Adult Social Care & Health,S-L framework - Accom - nights hours,A56151
Royal Borough of Kingston,01/04/2024,90325392,"5,518.63",Achieve Together Limited,SOCIAL SERVICES - OTHER,Adult Social Care & Health,S-L framework - Accom - nights hours,A56151
Royal Borough of Kingston,01/04/2024,90325416,"2,566.80",Achieve Together Limited,SOCIAL SERVICES - OTHER,Adult Social Care & Health,S-L non - framework - Day hours,A56158
Royal Borough of Kingston,01/04/2024,90325422,"2,136.86",Achieve Together Limited,SOCIAL SERVICES - OTHER,Adult Social Care & Health,S-L non - framework - other support,A56159
Royal Borough of Kingston,09/04/2024,70069375,"8,316,037.04",ACHIEVING FOR CHILDREN LIMITED,LEGAL & PROFESSIONAL SERVICES,Childrens Services,Fixed Childrens Services Contract Strategic,A51019
Royal Borough of Kingston,09/04/2024,70069375,"28,206.00",ACHIEVING FOR CHILDREN LIMITED,LEGAL & PROFESSIONAL SERVICES,Childrens Services,Fixed Childrens Services Contract Strategic,A51019
Royal Borough of Kingston,04/04/2024,90318951,"48,750.00",Acorn to Oak Nursery and Preschool Ltd,ACADEMIC INSTNS - OTHER,Schools,PVI Providers,A60014
Royal Borough of Kingston,04/04/2024,90319048,"22,248.00",Acorn to Oak Nursery and Preschool Ltd,ACADEMIC INSTNS - OTHER,Schools,2 Yr Old Place Funding,A60000
Royal Borough of Kingston,28/03/2024,70068683,"1,877.50",Acuity Research & Practice Ltd,MANAGEMENT & TRAINING SERVICES,Housing Revenue Account,Other Private Contractors - Third Party,A56080
Royal Borough of Kingston,03/04/2024,70068885,"21,058.66",ADAM HTT LIMITED ,TAXI AND COACH HIRE,Adult Social Care & Health,Home To School Transport Taxis,A33016
Royal Borough of Kingston,10/04/2024,70069350,"18,626.96",ADAM HTT LIMITED ,TAXI AND COACH HIRE,Adult Social Care & Health,Home To School Transport Taxis,A33016
Royal Borough of Kingston,17/04/2024,70069678,"8,185.58",ADAM HTT LIMITED ,TAXI AND COACH HIRE,Adult Social Care & Health,Home To School Transport Taxis,A33016
Royal Borough of Kingston,24/04/2024,70070001,"21,292.34",ADAM HTT LIMITED ,TAXI AND COACH HIRE,Adult Social Care & Health,Home To School Transport Taxis,A33016
Royal Borough of Kingston,04/04/2024,90318955,"3,937.50",Event Supplies LTD,ACADEMIC INSTNS - OTHER,Schools,PVI Providers,A60014
Royal Borough of Kingston,04/04/2024,90318956,"6,225.00",Event Supplies LTD,ACADEMIC INSTNS - OTHER,Schools,PVI Providers,A60014
Royal Borough of Kingston,04/04/2024,90319058,"2,430.00",Event Supplies LTD,ACADEMIC INSTNS - OTHER,Schools,2 Yr Old Place Funding,A60000
Royal Borough of Kingston,04/04/2024,90319059,"3,240.00",Event Supplies LTD,ACADEMIC INSTNS - OTHER,Schools,2 Yr Old Place Funding,A60000
Royal Borough of Kingston,04/04/2024,90318988,810.00,REDACTED - PERSONAL DATA,ACADEMIC INSTNS - OTHER,Schools,2 Yr Old Place Funding,A60000
Royal Borough of Kingston,19/04/2024,70069670,650.00,ADVANCED TREE SERVICES LIMITED,CONSTRUCTION INDUSTRY,Housing Revenue Account,Tree Works,A56042
Royal Borough of Kingston,04/04/2024,90318841,"127,162.50",ADVANTAGE DAY NURSERY LTD,ACADEMIC INSTNS - OTHER,Schools,PVI Providers,A60014
Royal Borough of Kingston,04/04/2024,90318958,"40,500.00",ADVANTAGE DAY NURSERY LTD,ACADEMIC INSTNS - OTHER,Schools,PVI Providers,A60014
Royal Borough of Kingston,25/03/2024,90318802,"143,435.00",Age Concern Kingston upon Thames,GRANTS & EX GRATIA PAYMENTS,Adult Social Care & Health,Payments to Voluntary Organisations,A54005
Royal Borough of Kingston,25/03/2024,90318816,648.00,Age Concern Kingston upon Thames,GRANTS & EX GRATIA PAYMENTS,Adult Social Care & Health,Day Opps / Day Care -� Building-based�,A56144
Royal Borough of Kingston,25/03/2024,90318817,864.00,Age Concern Kingston upon Thames,GRANTS & EX GRATIA PAYMENTS,Adult Social Care & Health,Day Opps / Day Care -� Building-based�,A56144
Royal Borough of Kingston,25/03/2024,90318818,"1,080.00",Age Concern Kingston upon Thames,GRANTS & EX GRATIA PAYMENTS,Adult Social Care & Health,Day Opps / Day Care -� Building-based�,A56144
Royal Borough of Kingston,25/03/2024,90318819,"1,080.00",Age Concern Kingston upon Thames,GRANTS & EX GRATIA PAYMENTS,Adult Social Care & Health,Day Opps / Day Care -� Building-based�,A56144
Royal Borough of Kingston,25/03/2024,90318821,"1,080.00",Age Concern Kingston upon Thames,GRANTS & EX GRATIA PAYMENTS,Adult Social Care & Health,Day Opps / Day Care -� Building-based�,A56144
Royal Borough of Kingston,25/03/2024,90318823,"1,080.00",Age Concern Kingston upon Thames,GRANTS & EX GRATIA PAYMENTS,Adult Social Care & Health,Day Opps / Day Care -� Building-based�,A56144
Royal Borough of Kingston,25/03/2024,90318825,"1,080.00",Age Concern Kingston upon Thames,GRANTS & EX GRATIA PAYMENTS,Adult Social Care & Health,Day Opps / Day Care -� Building-based�,A56144
Royal Borough of Kingston,25/03/2024,90318827,"1,080.00",Age Concern Kingston upon Thames,GRANTS & EX GRATIA PAYMENTS,Adult Social Care & Health,Day Opps / Day Care -� Building-based�,A56144
Royal Borough of Kingston,25/03/2024,90318829,"1,080.00",Age Concern Kingston upon Thames,GRANTS & EX GRATIA PAYMENTS,Adult Social Care & Health,Day Opps / Day Care -� Building-based�,A56144
Royal Borough of Kingston,25/03/2024,90318831,"1,080.00",Age Concern Kingston upon Thames,GRANTS & EX GRATIA PAYMENTS,Adult Social Care & Health,Day Opps / Day Care -� Building-based�,A56144
Royal Borough of Kingston,25/03/2024,90318833,"1,080.00",Age Concern Kingston upon Thames,GRANTS & EX GRATIA PAYMENTS,Adult Social Care & Health,Day Opps / Day Care -� Building-based�,A56144
Royal Borough of Kingston,25/03/2024,90318835,"1,080.00",Age Concern Kingston upon Thames,GRANTS & EX GRATIA PAYMENTS,Adult Social Care & Health,Day Opps / Day Care -� Building-based�,A56144
Royal Borough of Kingston,25/03/2024,90318837,"1,080.00",Age Concern Kingston upon Thames,GRANTS & EX GRATIA PAYMENTS,Adult Social Care & Health,Day Opps / Day Care -� Building-based�,A56144
Royal Borough of Kingston,25/03/2024,90325198,-617.14,Age Concern Kingston upon Thames,GRANTS & EX GRATIA PAYMENTS,Adult Social Care & Health,Day Opps / Day Care -� Building-based�,A56144
Royal Borough of Kingston,25/03/2024,90325199,810.00,Age Concern Kingston upon Thames,GRANTS & EX GRATIA PAYMENTS,Adult Social Care & Health,Day Opps / Day Care -� Building-based�,A56144
Royal Borough of Kingston,25/03/2024,90325201,648.00,Age Concern Kingston upon Thames,GRANTS & EX GRATIA PAYMENTS,Adult Social Care & Health,Day Opps / Day Care -� Building-based�,A56144
Royal Borough of Kingston,04/04/2024,90318892,"2,812.50",REDACTED - PERSONAL DATA,ACADEMIC INSTNS - OTHER,Schools,PVI Providers,A60014
Royal Borough of Kingston,19/03/2024,70068845,650.00,AIM Qualifications & Assessment Group,ACADEMIC INSTNS - OTHER,Corporate & Communities,Examination Fees,A44200
Royal Borough of Kingston,27/03/2024,70068894,770.00,AIM Qualifications & Assessment Group,ACADEMIC INSTNS - OTHER,Corporate & Communities,Examination Fees,A44200
Royal Borough of Kingston,01/04/2024,90323506,"6,105.00",AIMS CARE LIMITED,SOCIAL SERVICES RESIDENTIAL,Adult Social Care & Health,Independent Placements,A56006
Royal Borough of Kingston,01/04/2024,90323507,"6,642.86",AIMS CARE LIMITED,SOCIAL SERVICES RESIDENTIAL,Adult Social Care & Health,Independent Placements,A56006
Royal Borough of Kingston,01/07/2023,90323909,"13,980.00",AIMS CARE LIMITED,SOCIAL SERVICES RESIDENTIAL,Adult Social Care & Health,Independent Placements,A56006
Royal Borough of Kingston,01/07/2023,90323910,"117,432.00",AIMS CARE LIMITED,SOCIAL SERVICES RESIDENTIAL,Adult Social Care & Health,Independent Placements,A56006
Royal Borough of Kingston,25/04/2024,90326664,810.00,REDACTED - PERSONAL DATA,ACADEMIC INSTNS - OTHER,Schools,2 Yr Old Place Funding,A60000
Royal Borough of Kingston,02/04/2024,90318710,500.00,REDACTED - PERSONAL DATA,GRANTS & EX GRATIA PAYMENTS,Adult Social Care & Health,"Grants, Contributions & Donations",A47005
Royal Borough of Kingston,02/04/2024,90318711,500.00,REDACTED - PERSONAL DATA,CHARITIES & VOLUNTARY ORGNS,Adult Social Care & Health,"Grants, Contributions & Donations",A47005
Royal Borough of Kingston,02/04/2024,90318426,"1,094.00",REDACTED - PERSONAL DATA,LANDLORDS,Place,PSL Payments To Landlords,A22031
Royal Borough of Kingston,25/04/2024,90326482,"1,094.00",REDACTED - PERSONAL DATA,LANDLORDS,Place,PSL Payments To Landlords,A22031
Royal Borough of Kingston,02/04/2024,90318651,540.00,ALEXANDRA SCHOOL,SCHOOL FUNDS,Schools,Early Years Contingency,A60030
Royal Borough of Kingston,04/04/2024,90318784,"169,425.43",ALEXANDRA SCHOOL,SCHOOL FUNDS,Schools,Miscellaneous Expenses,A49000
Royal Borough of Kingston,04/04/2024,90318889,"33,712.50",ALEXANDRA SCHOOL,SCHOOL FUNDS,Schools,PVI Providers,A60014
Royal Borough of Kingston,02/04/2024,90318610,"1,050.00",REDACTED - PERSONAL DATA,PLS LANDLORDS,Place,PSL Payments To Landlords,A22031
Royal Borough of Kingston,25/04/2024,90326251,"1,050.00",REDACTED - PERSONAL DATA,PLS LANDLORDS,Place,PSL Payments To Landlords,A22031
Royal Borough of Kingston,02/04/2024,90318713,550.00,REDACTED - PERSONAL DATA,CHARITIES & VOLUNTARY ORGNS,Adult Social Care & Health,"Grants, Contributions & Donations",A47005
Royal Borough of Kingston,25/04/2024,70070120,"4,266.67",ALLIANCE LEISURE,TEMP STAFF & CONSULTANCY,Place,External Fees and Consultants,C20000
Royal Borough of Kingston,15/04/2024,70069632,"2,995.00",Alljos Services Ltd,SUNDRY SUPPLIER - HOUSING,Place,Grants Given For Capital Purposes,C20004
Royal Borough of Kingston,18/03/2024,90319196,567.24,ALPENBEST LTD,SOCIAL SERVICES DAY CARE,Adult Social Care & Health,Homecare - new framework,A56127
Royal Borough of Kingston,18/03/2024,90319199,576.24,ALPENBEST LTD,SOCIAL SERVICES DAY CARE,Adult Social Care & Health,Homecare - new framework,A56127
Royal Borough of Kingston,18/03/2024,90319223,630.27,ALPENBEST LTD,SOCIAL SERVICES DAY CARE,Adult Social Care & Health,Homecare - new framework,A56127
Royal Borough of Kingston,18/03/2024,90319307,567.24,ALPENBEST LTD,SOCIAL SERVICES DAY CARE,Adult Social Care & Health,Homecare - new framework,A56127
Royal Borough of Kingston,18/03/2024,90319312,819.35,ALPENBEST LTD,SOCIAL SERVICES DAY CARE,Adult Social Care & Health,Homecare - new framework,A56127
Royal Borough of Kingston,18/03/2024,90319340,630.27,ALPENBEST LTD,SOCIAL SERVICES DAY CARE,Adult Social Care & Health,Homecare - new framework,A56127
Royal Borough of Kingston,18/03/2024,90319390,567.24,ALPENBEST LTD,SOCIAL SERVICES DAY CARE,Adult Social Care & Health,Homecare - new framework,A56127
Royal Borough of Kingston,18/03/2024,90319419,513.22,ALPENBEST LTD,SOCIAL SERVICES DAY CARE,Adult Social Care & Health,Homecare - new framework,A56127
Royal Borough of Kingston,18/03/2024,90319432,630.27,ALPENBEST LTD,SOCIAL SERVICES DAY CARE,Adult Social Care & Health,Homecare - new framework,A56127
Royal Borough of Kingston,18/03/2024,90319456,612.26,ALPENBEST LTD,SOCIAL SERVICES DAY CARE,Adult Social Care & Health,Homecare - new framework,A56127
Royal Borough of Kingston,18/03/2024,90319464,630.27,ALPENBEST LTD,SOCIAL SERVICES DAY CARE,Adult Social Care & Health,Homecare - new framework,A56127
Royal Borough of Kingston,18/03/2024,90319479,612.26,ALPENBEST LTD,SOCIAL SERVICES DAY CARE,Adult Social Care & Health,Homecare - new framework,A56127
Royal Borough of Kingston,18/03/2024,90319598,504.21,ALPENBEST LTD,SOCIAL SERVICES DAY CARE,Adult Social Care & Health,Homecare - Framework - double-handed,A56131
Royal Borough of Kingston,18/03/2024,90319599,630.27,ALPENBEST LTD,SOCIAL SERVICES DAY CARE,Adult Social Care & Health,Homecare - Framework - double-handed,A56131
Royal Borough of Kingston,18/03/2024,90319604,783.33,ALPENBEST LTD,SOCIAL SERVICES DAY CARE,Adult Social Care & Health,Homecare - Framework - double-handed,A56131
Royal Borough of Kingston,18/03/2024,90319609,630.27,ALPENBEST LTD,SOCIAL SERVICES DAY CARE,Adult Social Care & Health,Homecare - Framework - double-handed,A56131
Royal Borough of Kingston,18/03/2024,90319855,607.76,ALPENBEST LTD,SOCIAL SERVICES DAY CARE,Adult Social Care & Health,Homecare - Framework - D2A,A56133
Royal Borough of Kingston,18/03/2024,90319864,567.24,ALPENBEST LTD,SOCIAL SERVICES DAY CARE,Adult Social Care & Health,Homecare - Framework - D2A,A56133
Royal Borough of Kingston,18/03/2024,90320281,630.27,ALPENBEST LTD,SOCIAL SERVICES DAY CARE,Adult Social Care & Health,Personal Budget - Third Party,A61019
Royal Borough of Kingston,25/03/2024,90321992,567.24,ALPENBEST LTD,SOCIAL SERVICES DAY CARE,Adult Social Care & Health,Homecare - new framework,A56127
Royal Borough of Kingston,25/03/2024,90321995,576.24,ALPENBEST LTD,SOCIAL SERVICES DAY CARE,Adult Social Care & Health,Homecare - new framework,A56127
Royal Borough of Kingston,25/03/2024,90322019,625.76,ALPENBEST LTD,SOCIAL SERVICES DAY CARE,Adult Social Care & Health,Homecare - new framework,A56127
Royal Borough of Kingston,25/03/2024,90322253,567.24,ALPENBEST LTD,SOCIAL SERVICES DAY CARE,Adult Social Care & Health,Homecare - new framework,A56127
Royal Borough of Kingston,25/03/2024,90322257,819.35,ALPENBEST LTD,SOCIAL SERVICES DAY CARE,Adult Social Care & Health,Homecare - new framework,A56127
Royal Borough of Kingston,25/03/2024,90322285,639.27,ALPENBEST LTD,SOCIAL SERVICES DAY CARE,Adult Social Care & Health,Homecare - new framework,A56127
Royal Borough of Kingston,25/03/2024,90322387,567.24,ALPENBEST LTD,SOCIAL SERVICES DAY CARE,Adult Social Care & Health,Homecare - new framework,A56127
Royal Borough of Kingston,25/03/2024,90322414,513.22,ALPENBEST LTD,SOCIAL SERVICES DAY CARE,Adult Social Care & Health,Homecare - new framework,A56127
Royal Borough of Kingston,25/03/2024,90322427,621.26,ALPENBEST LTD,SOCIAL SERVICES DAY CARE,Adult Social Care & Health,Homecare - new framework,A56127
Royal Borough of Kingston,25/03/2024,90322443,621.26,ALPENBEST LTD,SOCIAL SERVICES DAY CARE,Adult Social Care & Health,Homecare - new framework,A56127
Royal Borough of Kingston,25/03/2024,90322451,630.27,ALPENBEST LTD,SOCIAL SERVICES DAY CARE,Adult Social Care & Health,Homecare - new framework,A56127
Royal Borough of Kingston,25/03/2024,90322466,630.27,ALPENBEST LTD,SOCIAL SERVICES DAY CARE,Adult Social Care & Health,Homecare - new framework,A56127
Royal Borough of Kingston,25/03/2024,90322519,630.27,ALPENBEST LTD,SOCIAL SERVICES DAY CARE,Adult Social Care & Health,Homecare - new framework,A56127
Royal Borough of Kingston,25/03/2024,90322562,621.26,ALPENBEST LTD,SOCIAL SERVICES DAY CARE,Adult Social Care & Health,Homecare - Framework - double-handed,A56131
Royal Borough of Kingston,25/03/2024,90322566,504.21,ALPENBEST LTD,SOCIAL SERVICES DAY CARE,Adult Social Care & Health,Homecare - Framework - double-handed,A56131
Royal Borough of Kingston,25/03/2024,90322567,630.27,ALPENBEST LTD,SOCIAL SERVICES DAY CARE,Adult Social Care & Health,Homecare - Framework - double-handed,A56131
Royal Borough of Kingston,25/03/2024,90322572,765.33,ALPENBEST LTD,SOCIAL SERVICES DAY CARE,Adult Social Care & Health,Homecare - Framework - double-handed,A56131
Royal Borough of Kingston,25/03/2024,90322577,630.27,ALPENBEST LTD,SOCIAL SERVICES DAY CARE,Adult Social Care & Health,Homecare - Framework - double-handed,A56131
Royal Borough of Kingston,25/03/2024,90322932,549.23,ALPENBEST LTD,SOCIAL SERVICES DAY CARE,Adult Social Care & Health,Homecare - Framework - D2A,A56133
Royal Borough of Kingston,25/03/2024,90322940,567.24,ALPENBEST LTD,SOCIAL SERVICES DAY CARE,Adult Social Care & Health,Homecare - Framework - D2A,A56133
Royal Borough of Kingston,25/03/2024,90322998,630.27,ALPENBEST LTD,SOCIAL SERVICES DAY CARE,Adult Social Care & Health,Personal Budget - Third Party,A61019
Royal Borough of Kingston,01/04/2024,90324207,661.78,ALPENBEST LTD,SOCIAL SERVICES DAY CARE,Adult Social Care & Health,Homecare - new framework,A56127
Royal Borough of Kingston,01/04/2024,90324210,605.06,ALPENBEST LTD,SOCIAL SERVICES DAY CARE,Adult Social Care & Health,Homecare - new framework,A56127
Royal Borough of Kingston,01/04/2024,90324245,661.78,ALPENBEST LTD,SOCIAL SERVICES DAY CARE,Adult Social Care & Health,Homecare - new framework,A56127
Royal Borough of Kingston,01/04/2024,90324358,595.60,ALPENBEST LTD,SOCIAL SERVICES DAY CARE,Adult Social Care & Health,Homecare - new framework,A56127
Royal Borough of Kingston,01/04/2024,90324362,860.32,ALPENBEST LTD,SOCIAL SERVICES DAY CARE,Adult Social Care & Health,Homecare - new framework,A56127
Royal Borough of Kingston,01/04/2024,90324398,822.50,ALPENBEST LTD,SOCIAL SERVICES DAY CARE,Adult Social Care & Health,Homecare - new framework,A56127
Royal Borough of Kingston,01/04/2024,90324466,595.60,ALPENBEST LTD,SOCIAL SERVICES DAY CARE,Adult Social Care & Health,Homecare - new framework,A56127
Royal Borough of Kingston,01/04/2024,90324498,538.88,ALPENBEST LTD,SOCIAL SERVICES DAY CARE,Adult Social Care & Health,Homecare - new framework,A56127
Royal Borough of Kingston,01/04/2024,90324521,661.78,ALPENBEST LTD,SOCIAL SERVICES DAY CARE,Adult Social Care & Health,Homecare - new framework,A56127
Royal Borough of Kingston,01/04/2024,90324549,633.42,ALPENBEST LTD,SOCIAL SERVICES DAY CARE,Adult Social Care & Health,Homecare - new framework,A56127
Royal Borough of Kingston,01/04/2024,90324557,860.32,ALPENBEST LTD,SOCIAL SERVICES DAY CARE,Adult Social Care & Health,Homecare - new framework,A56127
Royal Borough of Kingston,01/04/2024,90324577,661.78,ALPENBEST LTD,SOCIAL SERVICES DAY CARE,Adult Social Care & Health,Homecare - new framework,A56127
Royal Borough of Kingston,01/04/2024,90324665,642.87,ALPENBEST LTD,SOCIAL SERVICES DAY CARE,Adult Social Care & Health,Homecare - new framework,A56127
Royal Borough of Kingston,01/04/2024,90324734,614.51,ALPENBEST LTD,SOCIAL SERVICES DAY CARE,Adult Social Care & Health,Homecare - Framework - double-handed,A56131
Royal Borough of Kingston,01/04/2024,90324740,661.78,ALPENBEST LTD,SOCIAL SERVICES DAY CARE,Adult Social Care & Health,Homecare - Framework - double-handed,A56131
Royal Borough of Kingston,01/04/2024,90324747,822.50,ALPENBEST LTD,SOCIAL SERVICES DAY CARE,Adult Social Care & Health,Homecare - Framework - double-handed,A56131
Royal Borough of Kingston,01/04/2024,90324754,-630.27,ALPENBEST LTD,SOCIAL SERVICES DAY CARE,Adult Social Care & Health,Homecare - Framework - double-handed,A56131
Royal Borough of Kingston,01/04/2024,90324755,-630.27,ALPENBEST LTD,SOCIAL SERVICES DAY CARE,Adult Social Care & Health,Homecare - Framework - double-handed,A56131
Royal Borough of Kingston,01/04/2024,90326002,661.78,ALPENBEST LTD,SOCIAL SERVICES DAY CARE,Adult Social Care & Health,Personal Budget - Third Party,A61019
Royal Borough of Kingston,08/04/2024,90327422,595.60,ALPENBEST LTD,SOCIAL SERVICES DAY CARE,Adult Social Care & Health,Homecare - new framework,A56127
Royal Borough of Kingston,08/04/2024,90327425,605.06,ALPENBEST LTD,SOCIAL SERVICES DAY CARE,Adult Social Care & Health,Homecare - new framework,A56127
Royal Borough of Kingston,08/04/2024,90327448,661.78,ALPENBEST LTD,SOCIAL SERVICES DAY CARE,Adult Social Care & Health,Homecare - new framework,A56127
Royal Borough of Kingston,08/04/2024,90327499,595.60,ALPENBEST LTD,SOCIAL SERVICES DAY CARE,Adult Social Care & Health,Homecare - new framework,A56127
Royal Borough of Kingston,08/04/2024,90327516,860.32,ALPENBEST LTD,SOCIAL SERVICES DAY CARE,Adult Social Care & Health,Homecare - new framework,A56127
Royal Borough of Kingston,08/04/2024,90327592,595.60,ALPENBEST LTD,SOCIAL SERVICES DAY CARE,Adult Social Care & Health,Homecare - new framework,A56127
Royal Borough of Kingston,08/04/2024,90327594,519.97,ALPENBEST LTD,SOCIAL SERVICES DAY CARE,Adult Social Care & Health,Homecare - new framework,A56127
Royal Borough of Kingston,08/04/2024,90327621,538.88,ALPENBEST LTD,SOCIAL SERVICES DAY CARE,Adult Social Care & Health,Homecare - new framework,A56127
Royal Borough of Kingston,08/04/2024,90327633,661.78,ALPENBEST LTD,SOCIAL SERVICES DAY CARE,Adult Social Care & Health,Homecare - new framework,A56127
Royal Borough of Kingston,08/04/2024,90327648,652.33,ALPENBEST LTD,SOCIAL SERVICES DAY CARE,Adult Social Care & Health,Homecare - new framework,A56127
Royal Borough of Kingston,08/04/2024,90327656,661.78,ALPENBEST LTD,SOCIAL SERVICES DAY CARE,Adult Social Care & Health,Homecare - new framework,A56127
Royal Borough of Kingston,08/04/2024,90327671,661.78,ALPENBEST LTD,SOCIAL SERVICES DAY CARE,Adult Social Care & Health,Homecare - new framework,A56127
Royal Borough of Kingston,08/04/2024,90327781,529.42,ALPENBEST LTD,SOCIAL SERVICES DAY CARE,Adult Social Care & Health,Homecare - Framework - double-handed,A56131
Royal Borough of Kingston,08/04/2024,90327782,661.78,ALPENBEST LTD,SOCIAL SERVICES DAY CARE,Adult Social Care & Health,Homecare - Framework - double-handed,A56131
Royal Borough of Kingston,08/04/2024,90327820,529.42,ALPENBEST LTD,SOCIAL SERVICES DAY CARE,Adult Social Care & Health,Homecare - Framework - single - handed,A56132
Royal Borough of Kingston,08/04/2024,90328081,661.78,ALPENBEST LTD,SOCIAL SERVICES DAY CARE,Adult Social Care & Health,Personal Budget - Third Party,A61019
Royal Borough of Kingston,01/04/2024,90325418,"4,285.71",Alpha Care and Support Services Limited,SOCIAL SERVICES RESIDENTIAL,Adult Social Care & Health,S-L non - framework - other support,A56159
Royal Borough of Kingston,02/04/2024,90318715,500.00,REDACTED - PERSONAL DATA,CHARITIES & VOLUNTARY ORGNS,Adult Social Care & Health,"Grants, Contributions & Donations",A47005
Royal Borough of Kingston,24/04/2024,70070072,"15,829.40",Amazon Web Services EMEA SARL,IT EQUIPMENT MAINTENANCE,Corporate & Communities,IT Hardware Maintenance,A45008
Royal Borough of Kingston,02/04/2024,90318249,"1,136.00",REDACTED - PERSONAL DATA,PLS LANDLORDS,Place,PSL Payments To Landlords,A22031
Royal Borough of Kingston,25/04/2024,90326303,"1,136.00",REDACTED - PERSONAL DATA,PLS LANDLORDS,Place,PSL Payments To Landlords,A22031
Royal Borough of Kingston,31/03/2024,70068789,"2,000.00",ANA TREATMENT CENTRES LTD,SOCIAL SERVICES RESIDENTIAL,Adult Social Care & Health,Independent Placements,A56006
Royal Borough of Kingston,31/03/2024,70068790,"1,390.00",ANA TREATMENT CENTRES LTD,SOCIAL SERVICES RESIDENTIAL,Adult Social Care & Health,Independent Placements,A56006
Royal Borough of Kingston,31/03/2024,70068791,"3,077.86",ANA TREATMENT CENTRES LTD,SOCIAL SERVICES RESIDENTIAL,Adult Social Care & Health,Independent Placements,A56006
Royal Borough of Kingston,31/03/2024,70068792,"2,000.00",ANA TREATMENT CENTRES LTD,SOCIAL SERVICES RESIDENTIAL,Adult Social Care & Health,Independent Placements,A56006
Royal Borough of Kingston,31/03/2024,70068793,"2,085.00",ANA TREATMENT CENTRES LTD,SOCIAL SERVICES RESIDENTIAL,Adult Social Care & Health,Independent Placements,A56006
Royal Borough of Kingston,31/03/2024,70069107,695.00,ANA TREATMENT CENTRES LTD,SOCIAL SERVICES RESIDENTIAL,Adult Social Care & Health,Independent Placements,A56006
Royal Borough of Kingston,01/04/2024,90325140,585.71,ANCHOR TRUST,SOCIAL SERVICES RESIDENTIAL,Adult Social Care & Health,Residential / Nursing Placement,A56138
Royal Borough of Kingston,02/04/2024,90318586,"1,383.33",REDACTED - PERSONAL DATA,PLS LANDLORDS,Place,PSL Payments To Landlords,A22031
Royal Borough of Kingston,25/04/2024,90326643,"1,383.33",REDACTED - PERSONAL DATA,PLS LANDLORDS,Place,PSL Payments To Landlords,A22031
Royal Borough of Kingston,02/04/2024,90318565,"1,458.33",REDACTED - PERSONAL DATA,PLS LANDLORDS,Place,PSL Payments To Landlords,A22031
Royal Borough of Kingston,25/04/2024,90326621,"1,458.33",REDACTED - PERSONAL DATA,PLS LANDLORDS,Place,PSL Payments To Landlords,A22031
Royal Borough of Kingston,02/04/2024,90318489,"1,094.00",REDACTED - PERSONAL DATA,PLS LANDLORDS,Place,PSL Payments To Landlords,A22031
Royal Borough of Kingston,25/04/2024,90326545,"1,094.00",REDACTED - PERSONAL DATA,PLS LANDLORDS,Place,PSL Payments To Landlords,A22031
Royal Borough of Kingston,16/04/2024,70069660,"4,000.00",REDACTED - PERSONAL DATA,PLS LANDLORDS,Place,Housing Incentives,A62025
Royal Borough of Kingston,02/04/2024,90318274,"1,094.00",REDACTED - PERSONAL DATA,PLS LANDLORDS,Place,PSL Payments To Landlords,A22031
Royal Borough of Kingston,25/04/2024,90326328,"1,150.00",REDACTED - PERSONAL DATA,PLS LANDLORDS,Place,PSL Payments To Landlords,A22031
Royal Borough of Kingston,02/04/2024,90318607,"1,047.00",REDACTED - PERSONAL DATA,PLS LANDLORDS,Place,PSL Payments To Landlords,A22031
Royal Borough of Kingston,25/04/2024,90326248,"1,047.00",REDACTED - PERSONAL DATA,PLS LANDLORDS,Place,PSL Payments To Landlords,A22031
Royal Borough of Kingston,03/04/2024,70069197,"2,786.61",AON UK LTD,FINANCIAL / INSURANCE INSTNS,Housing Revenue Account,General Insurance (Excl Premises & Transport),A44260
Royal Borough of Kingston,02/04/2024,70068736,"1,500.00",AP RENTAL INC LTD,LANDLORDS,Adult Social Care & Health,Housing Benefit - Rent Allowances -Private Tenants Only,A62009
Royal Borough of Kingston,02/04/2024,70068738,"1,600.00",AP RENTAL INC LTD,LANDLORDS,Adult Social Care & Health,Housing Benefit - Rent Allowances -Private Tenants Only,A62009
Royal Borough of Kingston,02/04/2024,70068739,"1,400.00",AP RENTAL INC LTD,LANDLORDS,Adult Social Care & Health,Housing Benefit - Rent Allowances -Private Tenants Only,A62009
Royal Borough of Kingston,02/04/2024,70068741,"1,300.00",AP RENTAL INC LTD,LANDLORDS,Adult Social Care & Health,Housing Benefit - Rent Allowances -Private Tenants Only,A62009
Royal Borough of Kingston,02/04/2024,70068743,"1,600.00",AP RENTAL INC LTD,LANDLORDS,Adult Social Care & Health,Housing Benefit - Rent Allowances -Private Tenants Only,A62009
Royal Borough of Kingston,02/04/2024,70068747,"1,600.00",AP RENTAL INC LTD,LANDLORDS,Adult Social Care & Health,Housing Benefit - Rent Allowances -Private Tenants Only,A62009
Royal Borough of Kingston,02/04/2024,70068749,"1,600.00",AP RENTAL INC LTD,LANDLORDS,Adult Social Care & Health,Housing Benefit - Rent Allowances -Private Tenants Only,A62009
Royal Borough of Kingston,31/03/2024,70068920,"33,914.00",APEX HOUSING SOLUTIONS LTD,ACCOMMODATION BED & BREAKFAST,Place,Bed & Breakfast,A56000
Royal Borough of Kingston,31/03/2024,70068982,"6,600.00",AQUAVENT LIMITED,BUILDING MNTCE - SERVICES,Housing Revenue Account,Water Testing & Treatment,A20037
Royal Borough of Kingston,28/03/2024,70069186,"14,275.94",Architectural Decorators Ltd,CONSTRUCTION INDUSTRY,Housing Revenue Account,Council Dwellings - Construction & Renovation,C10002
Royal Borough of Kingston,01/04/2024,90323303,"3,500.23",Aria Healthcare Group Ltd,SOCIAL SERVICES-HOME CARE,Adult Social Care & Health,Independent Placements,A56006
Royal Borough of Kingston,01/04/2024,90323321,"3,836.06",Aria Healthcare Group Ltd,SOCIAL SERVICES-HOME CARE,Adult Social Care & Health,Independent Placements,A56006
Royal Borough of Kingston,11/04/2024,70069666,"5,441.00",ASCENDIT LIFTS LTD,BUILDING MNTCE - SERVICES,Place,Grants Given For Capital Purposes,C20004
Royal Borough of Kingston,02/04/2024,90318717,500.00,REDACTED - PERSONAL DATA,CHARITIES & VOLUNTARY ORGNS,Adult Social Care & Health,"Grants, Contributions & Donations",A47005
Royal Borough of Kingston,01/04/2024,90323906,"10,020.00",ASHCROFT CARE SERVICES LIMITED,SOCIAL SERVICES RESIDENTIAL,Adult Social Care & Health,Independent Placements,A56006
Royal Borough of Kingston,01/04/2024,90325937,967.80,ASHINGTON HOUSE LTD,SOCIAL SERVICES RESIDENTIAL,Adult Social Care & Health,Personal Budget - Third Party,A61019
Royal Borough of Kingston,25/03/2024,70068861,"4,023.10",ASHPRI LIMITED,SOCIAL SERVICES - OTHER,Adult Social Care & Health,Other Private Contractors - Third Party,A56080
Royal Borough of Kingston,01/04/2024,90325889,"1,409.14",ASHPRIME PROPERTIES LTD,SOCIAL SERVICES RESIDENTIAL,Adult Social Care & Health,Personal Budget - Third Party,A61019
Royal Borough of Kingston,02/04/2024,90318495,"1,595.92",REDACTED - PERSONAL DATA,PLS LANDLORDS,Place,PSL Payments To Landlords,A22031
Royal Borough of Kingston,25/04/2024,90326551,"1,595.92",REDACTED - PERSONAL DATA,PLS LANDLORDS,Place,PSL Payments To Landlords,A22031
Royal Borough of Kingston,22/04/2024,70069902,527.92,ASKEWS AND HOLTS LIBRARY SERVICES LTD,BOOKS PUBLICATIONS STATIONERY,Corporate & Communities,Books,A43050
Royal Borough of Kingston,01/04/2024,90325928,"2,698.33",Aspirations Care Ltd,SOCIAL SERVICES - OTHER,Adult Social Care & Health,Personal Budget - Third Party,A61019
Royal Borough of Kingston,01/04/2024,90323546,"4,153.16",ASPREY HEALTHCARE LTD,SOCIAL SERVICES RESIDENTIAL,Adult Social Care & Health,Independent Placements,A56006
Royal Borough of Kingston,17/04/2024,70069616,"8,910.00",ASSOCIATION OF LONDON ENVIRONMENTAL HEALTH MANAGERS,TRAINING,Place,Subscriptions,A47010
Royal Borough of Kingston,03/04/2024,70068912,"7,498.70",Aston Pearl Ltd,ACCOMMODATION BED & BREAKFAST,Place,Bed & Breakfast,A56000
Royal Borough of Kingston,01/04/2024,90323329,"4,695.56",ASTORIA HEALTHCARE LTD,SOCIAL SERVICES RESIDENTIAL,Adult Social Care & Health,Independent Placements,A56006
Royal Borough of Kingston,02/04/2024,90318709,500.00,REDACTED - PERSONAL DATA,CHARITIES & VOLUNTARY ORGNS,Adult Social Care & Health,"Grants, Contributions & Donations",A47005
Royal Borough of Kingston,02/04/2024,90318433,"1,094.34",AUMKARA INVESTMENTS LTD,PLS LANDLORDS,Place,PSL Payments To Landlords,A22031
Royal Borough of Kingston,02/04/2024,90318434,"1,094.34",AUMKARA INVESTMENTS LTD,PLS LANDLORDS,Place,PSL Payments To Landlords,A22031
Royal Borough of Kingston,02/04/2024,90318435,"1,094.34",AUMKARA INVESTMENTS LTD,PLS LANDLORDS,Place,PSL Payments To Landlords,A22031
Royal Borough of Kingston,25/04/2024,90326489,"1,094.34",AUMKARA INVESTMENTS LTD,PLS LANDLORDS,Place,PSL Payments To Landlords,A22031
Royal Borough of Kingston,25/04/2024,90326490,"1,094.34",AUMKARA INVESTMENTS LTD,PLS LANDLORDS,Place,PSL Payments To Landlords,A22031
Royal Borough of Kingston,25/04/2024,90326491,"1,094.34",AUMKARA INVESTMENTS LTD,PLS LANDLORDS,Place,PSL Payments To Landlords,A22031
Royal Borough of Kingston,01/04/2024,70068949,630.00,Aura Assets Management Limited,ACCOMMODATION BED & BREAKFAST,Place,Bed & Breakfast,A56000
Royal Borough of Kingston,01/04/2024,70068950,"1,105.00",Aura Assets Management Limited,ACCOMMODATION BED & BREAKFAST,Place,Bed & Breakfast,A56000
Royal Borough of Kingston,01/04/2024,70068951,"2,484.00",Aura Assets Management Limited,ACCOMMODATION BED & BREAKFAST,Place,Bed & Breakfast,A56000
Royal Borough of Kingston,01/04/2024,90323692,"11,528.01",AUTISM CONSULTANTS LTD,SOCIAL SERVICES RESIDENTIAL,Adult Social Care & Health,Independent Placements,A56006
Royal Borough of Kingston,25/03/2024,70068881,"1,407.40",AVICENNA PSYCHIATRY,SOCIAL SERVICES - OTHER,Adult Social Care & Health,Other Private Contractors - Third Party,A56080
Royal Borough of Kingston,09/04/2024,70069404,719.20,AVICENNA PSYCHIATRY,SOCIAL SERVICES - OTHER,Adult Social Care & Health,Other Private Contractors - Third Party,A56080
Royal Borough of Kingston,08/04/2024,70069610,"1,055.55",AVICENNA PSYCHIATRY,SOCIAL SERVICES - OTHER,Adult Social Care & Health,Other Private Contractors - Third Party,A56080
Royal Borough of Kingston,08/03/2024,70067793,"8,699.69",AXIELL ALM LIMITED,BUSINESS & COMPUTER SYSTEMS,Corporate & Communities,IT Software Maintenance,A45045
Royal Borough of Kingston,06/06/2023,70047797,"4,985.64",AXIS EUROPE PLC,CONSTRUCTION INDUSTRY,Housing Revenue Account,Council Dwellings - Construction & Renovation,C10002
Royal Borough of Kingston,26/02/2024,70065930,"51,193.78",AXIS EUROPE PLC,CONSTRUCTION INDUSTRY,Housing Revenue Account,Electrical Repairs,A20002
Royal Borough of Kingston,25/03/2024,70068262,"122,773.10",AXIS EUROPE PLC,CONSTRUCTION INDUSTRY,Housing Revenue Account,Housing - Heating & Ventilation,A20045
Royal Borough of Kingston,25/03/2024,70068263,"250,104.77",AXIS EUROPE PLC,CONSTRUCTION INDUSTRY,Housing Revenue Account,Property Repairs & Maintenance & Alterations - Responsive,A20011
Royal Borough of Kingston,25/03/2024,70068264,"51,193.78",AXIS EUROPE PLC,CONSTRUCTION INDUSTRY,Housing Revenue Account,Electrical Repairs,A20002
Royal Borough of Kingston,28/03/2024,70068686,"9,367.50",AXIS EUROPE PLC,CONSTRUCTION INDUSTRY,Housing Revenue Account,Council Dwellings - Construction & Renovation,C10002
Royal Borough of Kingston,31/03/2024,70068757,"1,245.82",AXIS EUROPE PLC,CONSTRUCTION INDUSTRY,Housing Revenue Account,Asbestos Removal,C10000
Royal Borough of Kingston,31/03/2024,70068758,"4,282.27",AXIS EUROPE PLC,CONSTRUCTION INDUSTRY,Housing Revenue Account,Council Dwellings - Construction & Renovation,C10002
Royal Borough of Kingston,31/03/2024,70068759,"2,667.95",AXIS EUROPE PLC,CONSTRUCTION INDUSTRY,Housing Revenue Account,Council Dwellings - Construction & Renovation,C10002
Royal Borough of Kingston,31/03/2024,70068760,"4,444.83",AXIS EUROPE PLC,CONSTRUCTION INDUSTRY,Housing Revenue Account,Council Dwellings - Construction & Renovation,C10002
Royal Borough of Kingston,31/03/2024,70068761,"2,445.30",AXIS EUROPE PLC,CONSTRUCTION INDUSTRY,Housing Revenue Account,Asbestos Removal,C10000
Royal Borough of Kingston,31/03/2024,70068763,760.57,AXIS EUROPE PLC,CONSTRUCTION INDUSTRY,Place,Contract Cleaning,A27010
Royal Borough of Kingston,31/03/2024,70068764,"15,316.20",AXIS EUROPE PLC,CONSTRUCTION INDUSTRY,Housing Revenue Account,Council Dwellings - Construction & Renovation,C10002
Royal Borough of Kingston,31/03/2024,70068765,"3,029.59",AXIS EUROPE PLC,CONSTRUCTION INDUSTRY,Housing Revenue Account,Asbestos Removal,C10000
Royal Borough of Kingston,31/03/2024,70068766,"1,730.76",AXIS EUROPE PLC,CONSTRUCTION INDUSTRY,Place,Property Repairs & Maintenance & Alterations - Responsive,A20011
Royal Borough of Kingston,31/03/2024,70068767,"16,783.03",AXIS EUROPE PLC,CONSTRUCTION INDUSTRY,Housing Revenue Account,Council Dwellings - Construction & Renovation,C10002
Royal Borough of Kingston,31/03/2024,70068768,"4,713.11",AXIS EUROPE PLC,CONSTRUCTION INDUSTRY,Housing Revenue Account,Council Dwellings - Construction & Renovation,C10002
Royal Borough of Kingston,31/03/2024,70068769,"5,283.65",AXIS EUROPE PLC,CONSTRUCTION INDUSTRY,Housing Revenue Account,Council Dwellings - Construction & Renovation,C10002
Royal Borough of Kingston,31/03/2024,70068771,"5,667.95",AXIS EUROPE PLC,CONSTRUCTION INDUSTRY,Housing Revenue Account,Council Dwellings - Construction & Renovation,C10002
Royal Borough of Kingston,31/03/2024,70068772,699.93,AXIS EUROPE PLC,CONSTRUCTION INDUSTRY,Place,Property Repairs & Maintenance & Alterations - Responsive,A20011
Royal Borough of Kingston,31/03/2024,70068774,"6,149.30",AXIS EUROPE PLC,CONSTRUCTION INDUSTRY,Housing Revenue Account,Council Dwellings - Construction & Renovation,C10002
Royal Borough of Kingston,31/03/2024,70068775,"14,769.95",AXIS EUROPE PLC,CONSTRUCTION INDUSTRY,Housing Revenue Account,Council Dwellings - Construction & Renovation,C10002
Royal Borough of Kingston,31/03/2024,70068776,675.71,AXIS EUROPE PLC,CONSTRUCTION INDUSTRY,Housing Revenue Account,Asbestos Removal,C10000
Royal Borough of Kingston,31/03/2024,70068777,"2,883.06",AXIS EUROPE PLC,CONSTRUCTION INDUSTRY,Housing Revenue Account,Council Dwellings - Construction & Renovation,C10002
Royal Borough of Kingston,31/03/2024,70068778,"1,225.11",AXIS EUROPE PLC,CONSTRUCTION INDUSTRY,Housing Revenue Account,Council Dwellings - Fire Safety,C10004
Royal Borough of Kingston,31/03/2024,70068779,"1,225.11",AXIS EUROPE PLC,CONSTRUCTION INDUSTRY,Housing Revenue Account,Council Dwellings - Fire Safety,C10004
Royal Borough of Kingston,31/03/2024,70068780,"1,225.11",AXIS EUROPE PLC,CONSTRUCTION INDUSTRY,Housing Revenue Account,Council Dwellings - Fire Safety,C10004
Royal Borough of Kingston,31/03/2024,70068781,"3,626.76",AXIS EUROPE PLC,CONSTRUCTION INDUSTRY,Housing Revenue Account,Asbestos Removal,C10000
Royal Borough of Kingston,29/02/2024,70068863,"2,073.88",AXIS EUROPE PLC,CONSTRUCTION INDUSTRY,Housing Revenue Account,Asbestos Removal,C10000
Royal Borough of Kingston,26/02/2024,70068864,"5,209.79",AXIS EUROPE PLC,CONSTRUCTION INDUSTRY,Housing Revenue Account,Council Dwellings - Construction & Renovation,C10002
Royal Borough of Kingston,08/04/2024,70069077,"2,425.02",AXIS EUROPE PLC,CONSTRUCTION INDUSTRY,Housing Revenue Account,Council Dwellings - Capitalised Voids,C10001
Royal Borough of Kingston,08/04/2024,70069078,"1,015.71",AXIS EUROPE PLC,CONSTRUCTION INDUSTRY,Housing Revenue Account,Council Dwellings - Fire Safety,C10004
Royal Borough of Kingston,08/04/2024,70069079,"2,058.38",AXIS EUROPE PLC,CONSTRUCTION INDUSTRY,Place,Contract Cleaning,A27010
Royal Borough of Kingston,08/04/2024,70069080,"14,769.95",AXIS EUROPE PLC,CONSTRUCTION INDUSTRY,Housing Revenue Account,Council Dwellings - Construction & Renovation,C10002
Royal Borough of Kingston,08/04/2024,70069081,"16,367.86",AXIS EUROPE PLC,CONSTRUCTION INDUSTRY,Housing Revenue Account,Council Dwellings - Construction & Renovation,C10002
Royal Borough of Kingston,08/04/2024,70069082,"1,015.71",AXIS EUROPE PLC,CONSTRUCTION INDUSTRY,Housing Revenue Account,Council Dwellings - Fire Safety,C10004
Royal Borough of Kingston,08/04/2024,70069083,"2,989.70",AXIS EUROPE PLC,CONSTRUCTION INDUSTRY,Housing Revenue Account,Disabled Adaptations,C20003
Royal Borough of Kingston,08/04/2024,70069084,"1,225.11",AXIS EUROPE PLC,CONSTRUCTION INDUSTRY,Housing Revenue Account,Council Dwellings - Fire Safety,C10004
Royal Borough of Kingston,08/04/2024,70069085,753.17,AXIS EUROPE PLC,CONSTRUCTION INDUSTRY,Place,Property Repairs & Maintenance & Alterations - Responsive,A20011
Royal Borough of Kingston,08/04/2024,70069087,"1,225.11",AXIS EUROPE PLC,CONSTRUCTION INDUSTRY,Housing Revenue Account,Council Dwellings - Fire Safety,C10004
Royal Borough of Kingston,08/04/2024,70069088,965.25,AXIS EUROPE PLC,CONSTRUCTION INDUSTRY,Housing Revenue Account,Council Dwellings - Construction & Renovation,C10002
Royal Borough of Kingston,08/04/2024,70069089,488.31,AXIS EUROPE PLC,CONSTRUCTION INDUSTRY,Place,Contract Cleaning,A27010
Royal Borough of Kingston,08/04/2024,70069090,"1,015.71",AXIS EUROPE PLC,CONSTRUCTION INDUSTRY,Housing Revenue Account,Council Dwellings - Fire Safety,C10004
Royal Borough of Kingston,08/04/2024,70069091,"1,544.40",AXIS EUROPE PLC,CONSTRUCTION INDUSTRY,Place,Property Repairs & Maintenance & Alterations - Responsive,A20011
Royal Borough of Kingston,08/04/2024,70069093,"16,579.50",AXIS EUROPE PLC,CONSTRUCTION INDUSTRY,Housing Revenue Account,Council Dwellings - Construction & Renovation,C10002
Royal Borough of Kingston,08/04/2024,70069094,"1,280.57",AXIS EUROPE PLC,CONSTRUCTION INDUSTRY,Housing Revenue Account,Council Dwellings - Construction & Renovation,C10002
Royal Borough of Kingston,12/03/2024,70069157,"21,627.38",AXIS EUROPE PLC,CONSTRUCTION INDUSTRY,Housing Revenue Account,Cyclical Maintenance Programme,A20001
Royal Borough of Kingston,15/04/2024,70069496,"3,603.60",AXIS EUROPE PLC,CONSTRUCTION INDUSTRY,Housing Revenue Account,Council Dwellings - Construction & Renovation,C10002
Royal Borough of Kingston,15/04/2024,70069497,"2,768.62",AXIS EUROPE PLC,CONSTRUCTION INDUSTRY,Housing Revenue Account,Buildings - Project Management,C14003
Royal Borough of Kingston,22/04/2024,70069876,"1,015.71",AXIS EUROPE PLC,CONSTRUCTION INDUSTRY,Housing Revenue Account,Council Dwellings - Fire Safety,C10004
Royal Borough of Kingston,22/04/2024,70069877,"1,015.71",AXIS EUROPE PLC,CONSTRUCTION INDUSTRY,Housing Revenue Account,Council Dwellings - Fire Safety,C10004
Royal Borough of Kingston,22/04/2024,70069878,"1,015.71",AXIS EUROPE PLC,CONSTRUCTION INDUSTRY,Housing Revenue Account,Council Dwellings - Fire Safety,C10004
Royal Borough of Kingston,22/04/2024,70069879,"1,225.11",AXIS EUROPE PLC,CONSTRUCTION INDUSTRY,Housing Revenue Account,Council Dwellings - Fire Safety,C10004
Royal Borough of Kingston,22/04/2024,70069880,"2,393.82",AXIS EUROPE PLC,CONSTRUCTION INDUSTRY,Housing Revenue Account,Council Dwellings - Capitalised Voids,C10001
Royal Borough of Kingston,22/04/2024,70069886,"1,015.71",AXIS EUROPE PLC,CONSTRUCTION INDUSTRY,Housing Revenue Account,Council Dwellings - Fire Safety,C10004
Royal Borough of Kingston,22/04/2024,70069887,"1,225.11",AXIS EUROPE PLC,CONSTRUCTION INDUSTRY,Housing Revenue Account,Council Dwellings - Fire Safety,C10004
Royal Borough of Kingston,22/04/2024,70069888,"13,198.08",AXIS EUROPE PLC,CONSTRUCTION INDUSTRY,Housing Revenue Account,Disabled Adaptations,C20003
Royal Borough of Kingston,22/04/2024,70069890,"1,000.00",AXIS EUROPE PLC,CONSTRUCTION INDUSTRY,Housing Revenue Account,Council Dwellings - Capitalised Voids,C10001
Royal Borough of Kingston,22/04/2024,70069891,"4,431.71",AXIS EUROPE PLC,CONSTRUCTION INDUSTRY,Housing Revenue Account,Council Dwellings - Construction & Renovation,C10002
Royal Borough of Kingston,22/04/2024,70069893,"4,844.78",AXIS EUROPE PLC,CONSTRUCTION INDUSTRY,Housing Revenue Account,Buildings - Project Management,C14003
Royal Borough of Kingston,22/04/2024,70069894,"1,025.06",AXIS EUROPE PLC,CONSTRUCTION INDUSTRY,Housing Revenue Account,Asbestos Removal,C10000
Royal Borough of Kingston,22/04/2024,70069897,"1,777.62",AXIS EUROPE PLC,CONSTRUCTION INDUSTRY,Housing Revenue Account,Council Dwellings - Construction & Renovation,C10002
Royal Borough of Kingston,22/04/2024,70069898,"4,524.91",AXIS EUROPE PLC,CONSTRUCTION INDUSTRY,Housing Revenue Account,Council Dwellings - Construction & Renovation,C10002
Royal Borough of Kingston,22/04/2024,70069899,"5,559.84",AXIS EUROPE PLC,CONSTRUCTION INDUSTRY,Housing Revenue Account,Electricity,A21000
Royal Borough of Kingston,24/04/2024,70069997,"21,588.57",AXIS EUROPE PLC,CONSTRUCTION INDUSTRY,Housing Revenue Account,Council Dwellings - Capitalised Voids,C10001
Royal Borough of Kingston,25/04/2024,70070058,"2,619.70",AXIS EUROPE PLC,CONSTRUCTION INDUSTRY,Housing Revenue Account,Council Dwellings - Construction & Renovation,C10002
Royal Borough of Kingston,25/04/2024,70070059,"2,540.24",AXIS EUROPE PLC,CONSTRUCTION INDUSTRY,Housing Revenue Account,Council Dwellings - Construction & Renovation,C10002
Royal Borough of Kingston,25/04/2024,70070060,"2,838.77",AXIS EUROPE PLC,CONSTRUCTION INDUSTRY,Housing Revenue Account,Council Dwellings - Construction & Renovation,C10002
Royal Borough of Kingston,25/04/2024,70070061,"2,811.17",AXIS EUROPE PLC,CONSTRUCTION INDUSTRY,Housing Revenue Account,Council Dwellings - Construction & Renovation,C10002
Royal Borough of Kingston,25/04/2024,70070062,"2,770.15",AXIS EUROPE PLC,CONSTRUCTION INDUSTRY,Housing Revenue Account,Council Dwellings - Construction & Renovation,C10002
Royal Borough of Kingston,25/04/2024,70070063,"2,562.10",AXIS EUROPE PLC,CONSTRUCTION INDUSTRY,Housing Revenue Account,Council Dwellings - Construction & Renovation,C10002
Royal Borough of Kingston,25/04/2024,70070064,"2,616.88",AXIS EUROPE PLC,CONSTRUCTION INDUSTRY,Housing Revenue Account,Council Dwellings - Construction & Renovation,C10002
Royal Borough of Kingston,25/04/2024,70070065,"2,661.18",AXIS EUROPE PLC,CONSTRUCTION INDUSTRY,Housing Revenue Account,Council Dwellings - Construction & Renovation,C10002
Royal Borough of Kingston,25/04/2024,70070066,"3,390.20",AXIS EUROPE PLC,CONSTRUCTION INDUSTRY,Housing Revenue Account,Council Dwellings - Construction & Renovation,C10002
Royal Borough of Kingston,25/04/2024,70070067,"2,533.44",AXIS EUROPE PLC,CONSTRUCTION INDUSTRY,Housing Revenue Account,Council Dwellings - Construction & Renovation,C10002
Royal Borough of Kingston,25/04/2024,70070068,"2,570.16",AXIS EUROPE PLC,CONSTRUCTION INDUSTRY,Housing Revenue Account,Council Dwellings - Construction & Renovation,C10002
Royal Borough of Kingston,25/04/2024,70070069,"3,449.59",AXIS EUROPE PLC,CONSTRUCTION INDUSTRY,Housing Revenue Account,Council Dwellings - Construction & Renovation,C10002
Royal Borough of Kingston,25/04/2024,70070070,"2,858.67",AXIS EUROPE PLC,CONSTRUCTION INDUSTRY,Housing Revenue Account,Council Dwellings - Construction & Renovation,C10002
Royal Borough of Kingston,26/04/2024,70070143,"2,685.22",AXIS EUROPE PLC,CONSTRUCTION INDUSTRY,Housing Revenue Account,Council Dwellings - Construction & Renovation,C10002
Royal Borough of Kingston,26/04/2024,70070144,"2,783.32",AXIS EUROPE PLC,CONSTRUCTION INDUSTRY,Housing Revenue Account,Council Dwellings - Construction & Renovation,C10002
Royal Borough of Kingston,26/04/2024,70070145,"2,844.31",AXIS EUROPE PLC,CONSTRUCTION INDUSTRY,Housing Revenue Account,Council Dwellings - Construction & Renovation,C10002
Royal Borough of Kingston,26/04/2024,70070146,"2,513.10",AXIS EUROPE PLC,CONSTRUCTION INDUSTRY,Housing Revenue Account,Council Dwellings - Construction & Renovation,C10002
Royal Borough of Kingston,26/04/2024,70070147,"2,701.67",AXIS EUROPE PLC,CONSTRUCTION INDUSTRY,Housing Revenue Account,Council Dwellings - Construction & Renovation,C10002
Royal Borough of Kingston,26/04/2024,70070148,"2,725.15",AXIS EUROPE PLC,CONSTRUCTION INDUSTRY,Housing Revenue Account,Council Dwellings - Construction & Renovation,C10002
Royal Borough of Kingston,26/04/2024,70070149,"2,827.65",AXIS EUROPE PLC,CONSTRUCTION INDUSTRY,Housing Revenue Account,Council Dwellings - Construction & Renovation,C10002
Royal Borough of Kingston,26/04/2024,70070151,"3,652.73",AXIS EUROPE PLC,CONSTRUCTION INDUSTRY,Housing Revenue Account,Council Dwellings - Construction & Renovation,C10002
Royal Borough of Kingston,26/04/2024,70070152,"2,529.16",AXIS EUROPE PLC,CONSTRUCTION INDUSTRY,Housing Revenue Account,Council Dwellings - Construction & Renovation,C10002
Royal Borough of Kingston,26/04/2024,70070153,"2,531.17",AXIS EUROPE PLC,CONSTRUCTION INDUSTRY,Housing Revenue Account,Council Dwellings - Construction & Renovation,C10002
Royal Borough of Kingston,26/04/2024,70070154,"2,584.50",AXIS EUROPE PLC,CONSTRUCTION INDUSTRY,Housing Revenue Account,Council Dwellings - Construction & Renovation,C10002
Royal Borough of Kingston,26/04/2024,70070155,"2,555.63",AXIS EUROPE PLC,CONSTRUCTION INDUSTRY,Housing Revenue Account,Council Dwellings - Construction & Renovation,C10002
Royal Borough of Kingston,26/04/2024,70070156,"2,608.10",AXIS EUROPE PLC,CONSTRUCTION INDUSTRY,Housing Revenue Account,Council Dwellings - Construction & Renovation,C10002
Royal Borough of Kingston,26/04/2024,70070157,"2,707.00",AXIS EUROPE PLC,CONSTRUCTION INDUSTRY,Housing Revenue Account,Council Dwellings - Construction & Renovation,C10002
Royal Borough of Kingston,26/04/2024,70070158,"2,824.19",AXIS EUROPE PLC,CONSTRUCTION INDUSTRY,Housing Revenue Account,Council Dwellings - Construction & Renovation,C10002
Royal Borough of Kingston,26/04/2024,70070159,"2,790.44",AXIS EUROPE PLC,CONSTRUCTION INDUSTRY,Housing Revenue Account,Council Dwellings - Construction & Renovation,C10002
Royal Borough of Kingston,18/03/2024,70070255,653.54,AXIS EUROPE PLC,CONSTRUCTION INDUSTRY,Housing Revenue Account,Other Property Repairs & Maintenance,A20007
Royal Borough of Kingston,18/03/2024,70070256,"7,458.17",AXIS EUROPE PLC,CONSTRUCTION INDUSTRY,Housing Revenue Account,Council Dwellings - Construction & Renovation,C10002
Royal Borough of Kingston,18/03/2024,70070257,"6,300.92",AXIS EUROPE PLC,CONSTRUCTION INDUSTRY,Housing Revenue Account,Council Dwellings - Construction & Renovation,C10002
Royal Borough of Kingston,18/03/2024,70070258,"1,406.56",AXIS EUROPE PLC,CONSTRUCTION INDUSTRY,Housing Revenue Account,Council Dwellings - Construction & Renovation,C10002
Royal Borough of Kingston,18/03/2024,70070259,"1,180.44",AXIS EUROPE PLC,CONSTRUCTION INDUSTRY,Place,Property Repairs & Maintenance & Alterations - Responsive,A20011
Royal Borough of Kingston,18/03/2024,70070260,"7,485.17",AXIS EUROPE PLC,CONSTRUCTION INDUSTRY,Housing Revenue Account,Council Dwellings - Construction & Renovation,C10002
Royal Borough of Kingston,18/03/2024,70070261,"3,272.00",AXIS EUROPE PLC,CONSTRUCTION INDUSTRY,Housing Revenue Account,Council Dwellings - Construction & Renovation,C10002
Royal Borough of Kingston,18/03/2024,70070262,"6,165.01",AXIS EUROPE PLC,CONSTRUCTION INDUSTRY,Housing Revenue Account,Cyclical Maintenance Programme,A20001
Royal Borough of Kingston,18/03/2024,70070263,"1,015.71",AXIS EUROPE PLC,CONSTRUCTION INDUSTRY,Housing Revenue Account,Council Dwellings - Fire Safety,C10004
Royal Borough of Kingston,18/03/2024,70070266,"7,564.99",AXIS EUROPE PLC,CONSTRUCTION INDUSTRY,Housing Revenue Account,Disabled Adaptations,C20003
Royal Borough of Kingston,18/03/2024,70070267,"15,271.33",AXIS EUROPE PLC,CONSTRUCTION INDUSTRY,Housing Revenue Account,Council Dwellings - Construction & Renovation,C10002
Royal Borough of Kingston,18/03/2024,70070268,"3,690.27",AXIS EUROPE PLC,CONSTRUCTION INDUSTRY,Housing Revenue Account,Council Dwellings - Construction & Renovation,C10002
Royal Borough of Kingston,18/03/2024,70070269,"2,543.11",AXIS EUROPE PLC,CONSTRUCTION INDUSTRY,Housing Revenue Account,Buildings - Project Management,C14003
Royal Borough of Kingston,18/03/2024,70070270,"1,015.71",AXIS EUROPE PLC,CONSTRUCTION INDUSTRY,Housing Revenue Account,Council Dwellings - Fire Safety,C10004
Royal Borough of Kingston,29/04/2024,70070280,"2,187.90",AXIS EUROPE PLC,CONSTRUCTION INDUSTRY,Place,Contract Cleaning,A27010
Royal Borough of Kingston,29/04/2024,70070282,"1,528.81",AXIS EUROPE PLC,CONSTRUCTION INDUSTRY,Place,Property Repairs & Maintenance & Alterations - Responsive,A20011
Royal Borough of Kingston,29/04/2024,70070309,"1,498.35",AXIS EUROPE PLC,CONSTRUCTION INDUSTRY,Place,Contract Cleaning,A27010
Royal Borough of Kingston,29/04/2024,70070310,"2,365.09",AXIS EUROPE PLC,CONSTRUCTION INDUSTRY,Housing Revenue Account,Buildings - Project Management,C14003
Royal Borough of Kingston,29/04/2024,70070312,"1,331.33",AXIS EUROPE PLC,CONSTRUCTION INDUSTRY,Housing Revenue Account,Maintenance of trees,A28003
Royal Borough of Kingston,02/04/2024,90318432,"1,314.00",REDACTED - PERSONAL DATA,PLS LANDLORDS,Place,PSL Payments To Landlords,A22031
Royal Borough of Kingston,25/04/2024,90326488,"1,314.00",REDACTED - PERSONAL DATA,PLS LANDLORDS,Place,PSL Payments To Landlords,A22031
Royal Borough of Kingston,02/04/2024,90318542,"1,094.00",REDACTED - PERSONAL DATA,PLS LANDLORDS,Place,PSL Payments To Landlords,A22031
Royal Borough of Kingston,25/04/2024,90326598,"1,094.00",REDACTED - PERSONAL DATA,PLS LANDLORDS,Place,PSL Payments To Landlords,A22031
Royal Borough of Kingston,02/04/2024,90318235,758.33,REDACTED - PERSONAL DATA,PLS LANDLORDS,Place,PSL Payments To Landlords,A22031
Royal Borough of Kingston,25/04/2024,90326289,758.33,REDACTED - PERSONAL DATA,PLS LANDLORDS,Place,PSL Payments To Landlords,A22031
Royal Borough of Kingston,01/04/2024,90324077,"2,406.00",BALANCE (SUPPORT) C.I.C,SOCIAL SERVICES - OTHER,Adult Social Care & Health,Supported Living - new framework,A56126
Royal Borough of Kingston,01/04/2024,90324078,598.34,BALANCE (SUPPORT) C.I.C,SOCIAL SERVICES - OTHER,Adult Social Care & Health,Supported Living - new framework,A56126
Royal Borough of Kingston,01/04/2024,90324079,"1,804.49",BALANCE (SUPPORT) C.I.C,SOCIAL SERVICES - OTHER,Adult Social Care & Health,Supported Living - new framework,A56126
Royal Borough of Kingston,01/04/2024,90324080,"1,351.35",BALANCE (SUPPORT) C.I.C,SOCIAL SERVICES - OTHER,Adult Social Care & Health,Supported Living - new framework,A56126
Royal Borough of Kingston,01/04/2024,90324084,"1,621.62",BALANCE (SUPPORT) C.I.C,SOCIAL SERVICES - OTHER,Adult Social Care & Health,Supported Living - new framework,A56126
Royal Borough of Kingston,01/04/2024,90324091,900.90,BALANCE (SUPPORT) C.I.C,SOCIAL SERVICES - OTHER,Adult Social Care & Health,Supported Living - new framework,A56126
Royal Borough of Kingston,01/04/2024,90324092,"1,722.97",BALANCE (SUPPORT) C.I.C,SOCIAL SERVICES - OTHER,Adult Social Care & Health,Supported Living - new framework,A56126
Royal Borough of Kingston,01/04/2024,90324095,"2,297.30",BALANCE (SUPPORT) C.I.C,SOCIAL SERVICES - OTHER,Adult Social Care & Health,Supported Living - new framework,A56126
Royal Borough of Kingston,01/04/2024,90324096,564.99,BALANCE (SUPPORT) C.I.C,SOCIAL SERVICES - OTHER,Adult Social Care & Health,Supported Living - new framework,A56126
Royal Borough of Kingston,01/04/2024,90324098,"1,171.17",BALANCE (SUPPORT) C.I.C,SOCIAL SERVICES - OTHER,Adult Social Care & Health,Supported Living - new framework,A56126
Royal Borough of Kingston,01/04/2024,90324099,"2,297.30",BALANCE (SUPPORT) C.I.C,SOCIAL SERVICES - OTHER,Adult Social Care & Health,Supported Living - new framework,A56126
Royal Borough of Kingston,01/04/2024,90324100,564.99,BALANCE (SUPPORT) C.I.C,SOCIAL SERVICES - OTHER,Adult Social Care & Health,Supported Living - new framework,A56126
Royal Borough of Kingston,01/04/2024,90324101,"1,804.49",BALANCE (SUPPORT) C.I.C,SOCIAL SERVICES - OTHER,Adult Social Care & Health,Supported Living - new framework,A56126
Royal Borough of Kingston,01/04/2024,90324102,679.33,BALANCE (SUPPORT) C.I.C,SOCIAL SERVICES - OTHER,Adult Social Care & Health,Supported Living - new framework,A56126
Royal Borough of Kingston,01/04/2024,90324103,720.72,BALANCE (SUPPORT) C.I.C,SOCIAL SERVICES - OTHER,Adult Social Care & Health,Supported Living - new framework,A56126
Royal Borough of Kingston,01/04/2024,90324105,"2,297.30",BALANCE (SUPPORT) C.I.C,SOCIAL SERVICES - OTHER,Adult Social Care & Health,Supported Living - new framework,A56126
Royal Borough of Kingston,01/04/2024,90324106,564.99,BALANCE (SUPPORT) C.I.C,SOCIAL SERVICES - OTHER,Adult Social Care & Health,Supported Living - new framework,A56126
Royal Borough of Kingston,01/04/2024,90324107,630.63,BALANCE (SUPPORT) C.I.C,SOCIAL SERVICES - OTHER,Adult Social Care & Health,Supported Living - new framework,A56126
Royal Borough of Kingston,01/04/2024,90324111,"9,459.45",BALANCE (SUPPORT) C.I.C,SOCIAL SERVICES - OTHER,Adult Social Care & Health,Supported Living - new framework,A56126
Royal Borough of Kingston,01/04/2024,90324112,"1,695.00",BALANCE (SUPPORT) C.I.C,SOCIAL SERVICES - OTHER,Adult Social Care & Health,Supported Living - new framework,A56126
Royal Borough of Kingston,01/04/2024,90324113,990.99,BALANCE (SUPPORT) C.I.C,SOCIAL SERVICES - OTHER,Adult Social Care & Health,Supported Living - new framework,A56126
Royal Borough of Kingston,01/04/2024,90324114,"1,722.97",BALANCE (SUPPORT) C.I.C,SOCIAL SERVICES - OTHER,Adult Social Care & Health,Supported Living - new framework,A56126
Royal Borough of Kingston,01/04/2024,90324116,"1,722.97",BALANCE (SUPPORT) C.I.C,SOCIAL SERVICES - OTHER,Adult Social Care & Health,Supported Living - new framework,A56126
Royal Borough of Kingston,25/03/2024,90325376,624.00,BALANCE (SUPPORT) C.I.C,SOCIAL SERVICES - OTHER,Adult Social Care & Health,Day Opps / Day Care -� Community-based�,A56145
Royal Borough of Kingston,01/04/2024,90325576,530.59,BALANCE (SUPPORT) C.I.C,SOCIAL SERVICES - OTHER,Adult Social Care & Health,Personal Budget - Third Party,A61019
Royal Borough of Kingston,01/04/2024,90325577,530.59,BALANCE (SUPPORT) C.I.C,SOCIAL SERVICES - OTHER,Adult Social Care & Health,Personal Budget - Third Party,A61019
Royal Borough of Kingston,01/04/2024,90325578,"12,516.43",BALANCE (SUPPORT) C.I.C,SOCIAL SERVICES - OTHER,Adult Social Care & Health,Personal Budget - Third Party,A61019
Royal Borough of Kingston,25/03/2024,90325800,780.00,BALANCE (SUPPORT) C.I.C,SOCIAL SERVICES - OTHER,Adult Social Care & Health,Personal Budget - Third Party,A61019
Royal Borough of Kingston,25/03/2024,90325802,624.00,BALANCE (SUPPORT) C.I.C,SOCIAL SERVICES - OTHER,Adult Social Care & Health,Personal Budget - Third Party,A61019
Royal Borough of Kingston,25/03/2024,90325811,780.00,BALANCE (SUPPORT) C.I.C,SOCIAL SERVICES - OTHER,Adult Social Care & Health,Personal Budget - Third Party,A61019
Royal Borough of Kingston,01/04/2024,90325849,"2,687.40",BALANCE (SUPPORT) C.I.C,SOCIAL SERVICES - OTHER,Adult Social Care & Health,Personal Budget - Third Party,A61019
Royal Borough of Kingston,04/03/2024,90326675,630.60,BALANCE (SUPPORT) C.I.C,SOCIAL SERVICES - OTHER,Adult Social Care & Health,Supported Living - new framework,A56126
Royal Borough of Kingston,04/03/2024,90326676,504.48,BALANCE (SUPPORT) C.I.C,SOCIAL SERVICES - OTHER,Adult Social Care & Health,Supported Living - new framework,A56126
Royal Borough of Kingston,04/03/2024,90326678,840.80,BALANCE (SUPPORT) C.I.C,SOCIAL SERVICES - OTHER,Adult Social Care & Health,Supported Living - new framework,A56126
Royal Borough of Kingston,04/03/2024,90326680,840.80,BALANCE (SUPPORT) C.I.C,SOCIAL SERVICES - OTHER,Adult Social Care & Health,Supported Living - new framework,A56126
Royal Borough of Kingston,04/03/2024,90326681,588.56,BALANCE (SUPPORT) C.I.C,SOCIAL SERVICES - OTHER,Adult Social Care & Health,Supported Living - new framework,A56126
Royal Borough of Kingston,04/03/2024,90326683,-693.66,BALANCE (SUPPORT) C.I.C,SOCIAL SERVICES - OTHER,Adult Social Care & Health,Supported Living - new framework,A56126
Royal Borough of Kingston,04/03/2024,90326684,"1,135.08",BALANCE (SUPPORT) C.I.C,SOCIAL SERVICES - OTHER,Adult Social Care & Health,Supported Living - new framework,A56126
Royal Borough of Kingston,04/03/2024,90326685,504.48,BALANCE (SUPPORT) C.I.C,SOCIAL SERVICES - OTHER,Adult Social Care & Health,Supported Living - new framework,A56126
Royal Borough of Kingston,04/03/2024,90326689,"1,261.20",BALANCE (SUPPORT) C.I.C,SOCIAL SERVICES - OTHER,Adult Social Care & Health,Supported Living - new framework,A56126
Royal Borough of Kingston,04/03/2024,90326690,"1,933.84",BALANCE (SUPPORT) C.I.C,SOCIAL SERVICES - OTHER,Adult Social Care & Health,Supported Living - new framework,A56126
Royal Borough of Kingston,04/03/2024,90326691,672.64,BALANCE (SUPPORT) C.I.C,SOCIAL SERVICES - OTHER,Adult Social Care & Health,Supported Living - new framework,A56126
Royal Borough of Kingston,04/03/2024,90326697,504.48,BALANCE (SUPPORT) C.I.C,SOCIAL SERVICES - OTHER,Adult Social Care & Health,Supported Living - new framework,A56126
Royal Borough of Kingston,04/03/2024,90326698,504.48,BALANCE (SUPPORT) C.I.C,SOCIAL SERVICES - OTHER,Adult Social Care & Health,Supported Living - new framework,A56126
Royal Borough of Kingston,04/03/2024,90326700,"1,345.28",BALANCE (SUPPORT) C.I.C,SOCIAL SERVICES - OTHER,Adult Social Care & Health,Supported Living - new framework,A56126
Royal Borough of Kingston,04/03/2024,90326703,588.56,BALANCE (SUPPORT) C.I.C,SOCIAL SERVICES - OTHER,Adult Social Care & Health,Supported Living - new framework,A56126
Royal Borough of Kingston,04/03/2024,90326704,672.64,BALANCE (SUPPORT) C.I.C,SOCIAL SERVICES - OTHER,Adult Social Care & Health,Supported Living - new framework,A56126
Royal Borough of Kingston,04/03/2024,90326705,"1,429.36",BALANCE (SUPPORT) C.I.C,SOCIAL SERVICES - OTHER,Adult Social Care & Health,Supported Living - new framework,A56126
Royal Borough of Kingston,04/03/2024,90326706,"1,261.20",BALANCE (SUPPORT) C.I.C,SOCIAL SERVICES - OTHER,Adult Social Care & Health,Supported Living - new framework,A56126
Royal Borough of Kingston,04/03/2024,90326707,756.72,BALANCE (SUPPORT) C.I.C,SOCIAL SERVICES - OTHER,Adult Social Care & Health,Supported Living - new framework,A56126
Royal Borough of Kingston,04/03/2024,90326709,504.48,BALANCE (SUPPORT) C.I.C,SOCIAL SERVICES - OTHER,Adult Social Care & Health,Supported Living - new framework,A56126
Royal Borough of Kingston,04/03/2024,90326710,504.48,BALANCE (SUPPORT) C.I.C,SOCIAL SERVICES - OTHER,Adult Social Care & Health,Supported Living - new framework,A56126
Royal Borough of Kingston,04/03/2024,90326715,756.72,BALANCE (SUPPORT) C.I.C,SOCIAL SERVICES - OTHER,Adult Social Care & Health,Supported Living - new framework,A56126
Royal Borough of Kingston,04/03/2024,90326719,672.64,BALANCE (SUPPORT) C.I.C,SOCIAL SERVICES - OTHER,Adult Social Care & Health,Supported Living - new framework,A56126
Royal Borough of Kingston,04/03/2024,90326720,"1,429.36",BALANCE (SUPPORT) C.I.C,SOCIAL SERVICES - OTHER,Adult Social Care & Health,Supported Living - new framework,A56126
Royal Borough of Kingston,04/03/2024,90326721,504.48,BALANCE (SUPPORT) C.I.C,SOCIAL SERVICES - OTHER,Adult Social Care & Health,Supported Living - new framework,A56126
Royal Borough of Kingston,04/03/2024,90326723,672.64,BALANCE (SUPPORT) C.I.C,SOCIAL SERVICES - OTHER,Adult Social Care & Health,Supported Living - new framework,A56126
Royal Borough of Kingston,04/03/2024,90326724,504.48,BALANCE (SUPPORT) C.I.C,SOCIAL SERVICES - OTHER,Adult Social Care & Health,Supported Living - new framework,A56126
Royal Borough of Kingston,04/03/2024,90326725,"1,177.12",BALANCE (SUPPORT) C.I.C,SOCIAL SERVICES - OTHER,Adult Social Care & Health,Supported Living - new framework,A56126
Royal Borough of Kingston,04/03/2024,90326726,504.48,BALANCE (SUPPORT) C.I.C,SOCIAL SERVICES - OTHER,Adult Social Care & Health,Supported Living - new framework,A56126
Royal Borough of Kingston,04/03/2024,90326728,"1,513.44",BALANCE (SUPPORT) C.I.C,SOCIAL SERVICES - OTHER,Adult Social Care & Health,Supported Living - new framework,A56126
Royal Borough of Kingston,04/03/2024,90326730,672.64,BALANCE (SUPPORT) C.I.C,SOCIAL SERVICES - OTHER,Adult Social Care & Health,Supported Living - new framework,A56126
Royal Borough of Kingston,04/03/2024,90326731,"1,681.60",BALANCE (SUPPORT) C.I.C,SOCIAL SERVICES - OTHER,Adult Social Care & Health,Supported Living - new framework,A56126
Royal Borough of Kingston,04/03/2024,90326732,504.48,BALANCE (SUPPORT) C.I.C,SOCIAL SERVICES - OTHER,Adult Social Care & Health,Supported Living - new framework,A56126
Royal Borough of Kingston,04/03/2024,90326733,"1,008.96",BALANCE (SUPPORT) C.I.C,SOCIAL SERVICES - OTHER,Adult Social Care & Health,Supported Living - new framework,A56126
Royal Borough of Kingston,04/03/2024,90326736,672.64,BALANCE (SUPPORT) C.I.C,SOCIAL SERVICES - OTHER,Adult Social Care & Health,Supported Living - new framework,A56126
Royal Borough of Kingston,04/03/2024,90326861,504.48,BALANCE (SUPPORT) C.I.C,SOCIAL SERVICES - OTHER,Adult Social Care & Health,S-L non - framework - other support,A56159
Royal Borough of Kingston,04/03/2024,90326896,"1,072.02",BALANCE (SUPPORT) C.I.C,SOCIAL SERVICES - OTHER,Adult Social Care & Health,S-L non - framework - other support,A56159
Royal Borough of Kingston,04/03/2024,90326897,"1,072.02",BALANCE (SUPPORT) C.I.C,SOCIAL SERVICES - OTHER,Adult Social Care & Health,S-L non - framework - other support,A56159
Royal Borough of Kingston,04/03/2024,90326904,"1,337.77",BALANCE (SUPPORT) C.I.C,SOCIAL SERVICES - OTHER,Adult Social Care & Health,S-L non - framework - other support,A56159
Royal Borough of Kingston,04/03/2024,90326905,"1,261.20",BALANCE (SUPPORT) C.I.C,SOCIAL SERVICES - OTHER,Adult Social Care & Health,S-L non - framework - other support,A56159
Royal Borough of Kingston,04/03/2024,90326907,"1,429.36",BALANCE (SUPPORT) C.I.C,SOCIAL SERVICES - OTHER,Adult Social Care & Health,S-L non - framework - other support,A56159
Royal Borough of Kingston,01/04/2024,90327351,630.60,BALANCE (SUPPORT) C.I.C,SOCIAL SERVICES - OTHER,Adult Social Care & Health,Supported Living - new framework,A56126
Royal Borough of Kingston,01/04/2024,90327352,504.48,BALANCE (SUPPORT) C.I.C,SOCIAL SERVICES - OTHER,Adult Social Care & Health,Supported Living - new framework,A56126
Royal Borough of Kingston,01/04/2024,90327354,840.80,BALANCE (SUPPORT) C.I.C,SOCIAL SERVICES - OTHER,Adult Social Care & Health,Supported Living - new framework,A56126
Royal Borough of Kingston,01/04/2024,90327356,840.80,BALANCE (SUPPORT) C.I.C,SOCIAL SERVICES - OTHER,Adult Social Care & Health,Supported Living - new framework,A56126
Royal Borough of Kingston,01/04/2024,90327357,588.56,BALANCE (SUPPORT) C.I.C,SOCIAL SERVICES - OTHER,Adult Social Care & Health,Supported Living - new framework,A56126
Royal Borough of Kingston,01/04/2024,90327359,"1,135.08",BALANCE (SUPPORT) C.I.C,SOCIAL SERVICES - OTHER,Adult Social Care & Health,Supported Living - new framework,A56126
Royal Borough of Kingston,01/04/2024,90327360,504.48,BALANCE (SUPPORT) C.I.C,SOCIAL SERVICES - OTHER,Adult Social Care & Health,Supported Living - new framework,A56126
Royal Borough of Kingston,01/04/2024,90327364,"1,261.20",BALANCE (SUPPORT) C.I.C,SOCIAL SERVICES - OTHER,Adult Social Care & Health,Supported Living - new framework,A56126
Royal Borough of Kingston,01/04/2024,90327365,"1,933.84",BALANCE (SUPPORT) C.I.C,SOCIAL SERVICES - OTHER,Adult Social Care & Health,Supported Living - new framework,A56126
Royal Borough of Kingston,01/04/2024,90327366,672.64,BALANCE (SUPPORT) C.I.C,SOCIAL SERVICES - OTHER,Adult Social Care & Health,Supported Living - new framework,A56126
Royal Borough of Kingston,01/04/2024,90327369,504.48,BALANCE (SUPPORT) C.I.C,SOCIAL SERVICES - OTHER,Adult Social Care & Health,Supported Living - new framework,A56126
Royal Borough of Kingston,01/04/2024,90327370,504.48,BALANCE (SUPPORT) C.I.C,SOCIAL SERVICES - OTHER,Adult Social Care & Health,Supported Living - new framework,A56126
Royal Borough of Kingston,01/04/2024,90327372,"1,345.28",BALANCE (SUPPORT) C.I.C,SOCIAL SERVICES - OTHER,Adult Social Care & Health,Supported Living - new framework,A56126
Royal Borough of Kingston,01/04/2024,90327375,588.56,BALANCE (SUPPORT) C.I.C,SOCIAL SERVICES - OTHER,Adult Social Care & Health,Supported Living - new framework,A56126
Royal Borough of Kingston,01/04/2024,90327376,672.64,BALANCE (SUPPORT) C.I.C,SOCIAL SERVICES - OTHER,Adult Social Care & Health,Supported Living - new framework,A56126
Royal Borough of Kingston,01/04/2024,90327377,"1,429.36",BALANCE (SUPPORT) C.I.C,SOCIAL SERVICES - OTHER,Adult Social Care & Health,Supported Living - new framework,A56126
Royal Borough of Kingston,01/04/2024,90327378,"1,261.20",BALANCE (SUPPORT) C.I.C,SOCIAL SERVICES - OTHER,Adult Social Care & Health,Supported Living - new framework,A56126
Royal Borough of Kingston,01/04/2024,90327379,756.72,BALANCE (SUPPORT) C.I.C,SOCIAL SERVICES - OTHER,Adult Social Care & Health,Supported Living - new framework,A56126
Royal Borough of Kingston,01/04/2024,90327380,504.48,BALANCE (SUPPORT) C.I.C,SOCIAL SERVICES - OTHER,Adult Social Care & Health,Supported Living - new framework,A56126
Royal Borough of Kingston,01/04/2024,90327381,504.48,BALANCE (SUPPORT) C.I.C,SOCIAL SERVICES - OTHER,Adult Social Care & Health,Supported Living - new framework,A56126
Royal Borough of Kingston,01/04/2024,90327385,756.72,BALANCE (SUPPORT) C.I.C,SOCIAL SERVICES - OTHER,Adult Social Care & Health,Supported Living - new framework,A56126
Royal Borough of Kingston,01/04/2024,90327387,672.64,BALANCE (SUPPORT) C.I.C,SOCIAL SERVICES - OTHER,Adult Social Care & Health,Supported Living - new framework,A56126
Royal Borough of Kingston,01/04/2024,90327388,"1,429.36",BALANCE (SUPPORT) C.I.C,SOCIAL SERVICES - OTHER,Adult Social Care & Health,Supported Living - new framework,A56126
Royal Borough of Kingston,01/04/2024,90327389,504.48,BALANCE (SUPPORT) C.I.C,SOCIAL SERVICES - OTHER,Adult Social Care & Health,Supported Living - new framework,A56126
Royal Borough of Kingston,01/04/2024,90327391,672.64,BALANCE (SUPPORT) C.I.C,SOCIAL SERVICES - OTHER,Adult Social Care & Health,Supported Living - new framework,A56126
Royal Borough of Kingston,01/04/2024,90327392,504.48,BALANCE (SUPPORT) C.I.C,SOCIAL SERVICES - OTHER,Adult Social Care & Health,Supported Living - new framework,A56126
Royal Borough of Kingston,01/04/2024,90327393,"1,177.12",BALANCE (SUPPORT) C.I.C,SOCIAL SERVICES - OTHER,Adult Social Care & Health,Supported Living - new framework,A56126
Royal Borough of Kingston,01/04/2024,90327394,504.48,BALANCE (SUPPORT) C.I.C,SOCIAL SERVICES - OTHER,Adult Social Care & Health,Supported Living - new framework,A56126
Royal Borough of Kingston,01/04/2024,90327396,"1,513.44",BALANCE (SUPPORT) C.I.C,SOCIAL SERVICES - OTHER,Adult Social Care & Health,Supported Living - new framework,A56126
Royal Borough of Kingston,01/04/2024,90327397,672.64,BALANCE (SUPPORT) C.I.C,SOCIAL SERVICES - OTHER,Adult Social Care & Health,Supported Living - new framework,A56126
Royal Borough of Kingston,01/04/2024,90327398,"1,681.60",BALANCE (SUPPORT) C.I.C,SOCIAL SERVICES - OTHER,Adult Social Care & Health,Supported Living - new framework,A56126
Royal Borough of Kingston,01/04/2024,90327399,504.48,BALANCE (SUPPORT) C.I.C,SOCIAL SERVICES - OTHER,Adult Social Care & Health,Supported Living - new framework,A56126
Royal Borough of Kingston,01/04/2024,90327400,"1,008.96",BALANCE (SUPPORT) C.I.C,SOCIAL SERVICES - OTHER,Adult Social Care & Health,Supported Living - new framework,A56126
Royal Borough of Kingston,01/04/2024,90327403,672.64,BALANCE (SUPPORT) C.I.C,SOCIAL SERVICES - OTHER,Adult Social Care & Health,Supported Living - new framework,A56126
Royal Borough of Kingston,01/04/2024,90328031,504.48,BALANCE (SUPPORT) C.I.C,SOCIAL SERVICES - OTHER,Adult Social Care & Health,S-L non - framework - other support,A56159
Royal Borough of Kingston,01/04/2024,90328033,"1,072.02",BALANCE (SUPPORT) C.I.C,SOCIAL SERVICES - OTHER,Adult Social Care & Health,S-L non - framework - other support,A56159
Royal Borough of Kingston,01/04/2024,90328035,840.80,BALANCE (SUPPORT) C.I.C,SOCIAL SERVICES - OTHER,Adult Social Care & Health,S-L non - framework - other support,A56159
Royal Borough of Kingston,01/04/2024,90328036,"1,387.32",BALANCE (SUPPORT) C.I.C,SOCIAL SERVICES - OTHER,Adult Social Care & Health,S-L non - framework - other support,A56159
Royal Borough of Kingston,01/04/2024,90328037,"1,261.20",BALANCE (SUPPORT) C.I.C,SOCIAL SERVICES - OTHER,Adult Social Care & Health,S-L non - framework - other support,A56159
Royal Borough of Kingston,01/04/2024,90328038,"1,429.36",BALANCE (SUPPORT) C.I.C,SOCIAL SERVICES - OTHER,Adult Social Care & Health,S-L non - framework - other support,A56159
Royal Borough of Kingston,01/04/2024,90323267,"3,736.93",BARCHESTER HEALTHCARE ,SOCIAL SERVICES RESIDENTIAL,Adult Social Care & Health,Independent Placements,A56006
Royal Borough of Kingston,02/04/2024,90318718,500.00,REDACTED - PERSONAL DATA,CHARITIES & VOLUNTARY ORGNS,Adult Social Care & Health,"Grants, Contributions & Donations",A47005
Royal Borough of Kingston,01/04/2024,90323572,"4,558.63",BAVANI CARE HOME LIMITED,SOCIAL SERVICES RESIDENTIAL,Adult Social Care & Health,Independent Placements,A56006
Royal Borough of Kingston,01/04/2024,90323584,"4,050.00",BAVANI CARE HOME LIMITED,SOCIAL SERVICES RESIDENTIAL,Adult Social Care & Health,Independent Placements,A56006
Royal Borough of Kingston,01/04/2024,90323597,"5,785.71",BAVANI CARE HOME LIMITED,SOCIAL SERVICES RESIDENTIAL,Adult Social Care & Health,Independent Placements,A56006
Royal Borough of Kingston,05/04/2024,70069521,"5,705.00",Beacon Partnership LLP,SUBSCRIPTIONS & PUBLICATIONS,Housing Revenue Account,Consultancy Services - Other,A44065
Royal Borough of Kingston,04/04/2024,70068901,"1,541.22",Bellfords International Ltd,SUNDRY SUPPLIER - HOUSING,Place,Prevention Of Homelessness,A44141
Royal Borough of Kingston,15/03/2024,70067539,751.37,BES utilities,UTILITIES,Place,Electricity,A21000
Royal Borough of Kingston,28/03/2024,70069169,"3,000.00",BEVAN BRITTAN LLP,LEGAL & PROFESSIONAL SERVICES,Place,Property-Related Professional Fees,A20035
Royal Borough of Kingston,02/04/2024,90318221,"1,595.63",REDACTED - PERSONAL DATA,PLS LANDLORDS,Place,PSL Payments To Landlords,A22031
Royal Borough of Kingston,25/04/2024,90326275,"1,595.63",REDACTED - PERSONAL DATA,PLS LANDLORDS,Place,PSL Payments To Landlords,A22031
Royal Borough of Kingston,12/04/2024,90321546,810.00,REDACTED - PERSONAL DATA,ACADEMIC INSTNS - OTHER,Schools,PVI Providers,A60014
Royal Borough of Kingston,01/04/2024,70069015,"7,706.50",BIBLIOGRAPHIC DATA SERVICES LTD,OPERATIONAL EQUIPMENT/MATERIAL,Corporate & Communities,Subscriptions,A47010
Royal Borough of Kingston,17/04/2024,70069734,"11,417.87",BIBLIOTHECA LIMITED,LEGAL & PROFESSIONAL SERVICES,Corporate & Communities,IT Software Maintenance,A45045
Royal Borough of Kingston,31/03/2024,70068987,"1,913.67",BIO COLLECTORS LTD,REFUSE COLLECTION / DISPOSAL,Corporate & Communities,Compostables,A56055
Royal Borough of Kingston,18/03/2024,90320282,559.02,BLUE ARROW CARE LTD,SOCIAL SERVICES-HOME CARE,Adult Social Care & Health,Personal Budget - Third Party,A61019
Royal Borough of Kingston,18/03/2024,90320293,745.36,BLUE ARROW CARE LTD,SOCIAL SERVICES-HOME CARE,Adult Social Care & Health,Personal Budget - Third Party,A61019
Royal Borough of Kingston,25/03/2024,90322972,745.36,BLUE ARROW CARE LTD,SOCIAL SERVICES-HOME CARE,Adult Social Care & Health,Homecare - non - Framework - single - handed,A56165
Royal Borough of Kingston,25/03/2024,90322999,559.02,BLUE ARROW CARE LTD,SOCIAL SERVICES-HOME CARE,Adult Social Care & Health,Personal Budget - Third Party,A61019
Royal Borough of Kingston,25/03/2024,90323010,745.36,BLUE ARROW CARE LTD,SOCIAL SERVICES-HOME CARE,Adult Social Care & Health,Personal Budget - Third Party,A61019
Royal Borough of Kingston,01/04/2024,90325519,782.62,BLUE ARROW CARE LTD,SOCIAL SERVICES-HOME CARE,Adult Social Care & Health,Homecare - non - Framework - single - handed,A56165
Royal Borough of Kingston,01/04/2024,90325992,521.75,BLUE ARROW CARE LTD,SOCIAL SERVICES-HOME CARE,Adult Social Care & Health,Personal Budget - Third Party,A61019
Royal Borough of Kingston,01/04/2024,90325999,521.75,BLUE ARROW CARE LTD,SOCIAL SERVICES-HOME CARE,Adult Social Care & Health,Personal Budget - Third Party,A61019
Royal Borough of Kingston,01/04/2024,90326003,586.97,BLUE ARROW CARE LTD,SOCIAL SERVICES-HOME CARE,Adult Social Care & Health,Personal Budget - Third Party,A61019
Royal Borough of Kingston,01/04/2024,90326017,782.62,BLUE ARROW CARE LTD,SOCIAL SERVICES-HOME CARE,Adult Social Care & Health,Personal Budget - Third Party,A61019
Royal Borough of Kingston,08/04/2024,90328051,782.62,BLUE ARROW CARE LTD,SOCIAL SERVICES-HOME CARE,Adult Social Care & Health,Homecare - non - Framework - single - handed,A56165
Royal Borough of Kingston,08/04/2024,90328071,521.75,BLUE ARROW CARE LTD,SOCIAL SERVICES-HOME CARE,Adult Social Care & Health,Personal Budget - Third Party,A61019
Royal Borough of Kingston,08/04/2024,90328078,521.75,BLUE ARROW CARE LTD,SOCIAL SERVICES-HOME CARE,Adult Social Care & Health,Personal Budget - Third Party,A61019
Royal Borough of Kingston,08/04/2024,90328082,586.97,BLUE ARROW CARE LTD,SOCIAL SERVICES-HOME CARE,Adult Social Care & Health,Personal Budget - Third Party,A61019
Royal Borough of Kingston,08/04/2024,90328092,782.62,BLUE ARROW CARE LTD,SOCIAL SERVICES-HOME CARE,Adult Social Care & Health,Personal Budget - Third Party,A61019
Royal Borough of Kingston,10/04/2024,70069513,"2,000.00",Bond Turner,SUNDRY SUPPLIER - FINANCE,Housing Revenue Account,Vandalism Damage,A20029
Royal Borough of Kingston,01/04/2024,90323244,"3,434.61",BONDCARE (LONDON) LTD ,SOCIAL SERVICES RESIDENTIAL,Adult Social Care & Health,Independent Placements,A56006
Royal Borough of Kingston,02/04/2024,90318383,916.66,BONSOR PENNINGTONS LTD,PLS LANDLORDS,Place,PSL Payments To Landlords,A22031
Royal Borough of Kingston,25/04/2024,90326439,916.66,BONSOR PENNINGTONS LTD,PLS LANDLORDS,Place,PSL Payments To Landlords,A22031
Royal Borough of Kingston,23/03/2024,70068568,"5,000.00",BOURNEMOUTH UNIVERSITY,ACADEMIC INSTNS - OTHER,Corporate & Communities,Staff Development And Training,A15022
Royal Borough of Kingston,02/04/2024,90318385,900.00,BR INVESTMENTS LIMITED,PLS LANDLORDS,Place,PSL Payments To Landlords,A22031
Royal Borough of Kingston,25/04/2024,90326441,900.00,BR INVESTMENTS LIMITED,PLS LANDLORDS,Place,PSL Payments To Landlords,A22031
Royal Borough of Kingston,01/03/2024,70068147,"7,925.00",BRIDGEALL LIBRARIES LTD,PROFESSIONAL ASSOCIATIONS TU,Corporate & Communities,Subscriptions,A47010
Royal Borough of Kingston,04/04/2024,90318848,"24,450.00",BRIGHT HORIZONS FAMILY SOLUTIONS,ACADEMIC INSTNS - OTHER,Schools,PVI Providers,A60014
Royal Borough of Kingston,04/04/2024,90318926,"16,875.00",BRIGHT HORIZONS FAMILY SOLUTIONS,ACADEMIC INSTNS - OTHER,Schools,PVI Providers,A60014
Royal Borough of Kingston,04/04/2024,90318938,"19,275.00",BRIGHT HORIZONS FAMILY SOLUTIONS,ACADEMIC INSTNS - OTHER,Schools,PVI Providers,A60014
Royal Borough of Kingston,04/04/2024,90318941,"23,625.00",BRIGHT HORIZONS FAMILY SOLUTIONS,ACADEMIC INSTNS - OTHER,Schools,PVI Providers,A60014
Royal Borough of Kingston,04/04/2024,90318944,"20,962.50",BRIGHT HORIZONS FAMILY SOLUTIONS,ACADEMIC INSTNS - OTHER,Schools,PVI Providers,A60014
Royal Borough of Kingston,04/04/2024,90318964,"2,430.00",BRIGHT HORIZONS FAMILY SOLUTIONS,ACADEMIC INSTNS - OTHER,Schools,2 Yr Old Place Funding,A60000
Royal Borough of Kingston,04/04/2024,90319024,"7,128.00",BRIGHT HORIZONS FAMILY SOLUTIONS,ACADEMIC INSTNS - OTHER,Schools,2 Yr Old Place Funding,A60000
Royal Borough of Kingston,04/04/2024,90319035,810.00,BRIGHT HORIZONS FAMILY SOLUTIONS,ACADEMIC INSTNS - OTHER,Schools,2 Yr Old Place Funding,A60000
Royal Borough of Kingston,04/04/2024,90319037,"1,620.00",BRIGHT HORIZONS FAMILY SOLUTIONS,ACADEMIC INSTNS - OTHER,Schools,2 Yr Old Place Funding,A60000
Royal Borough of Kingston,04/04/2024,90319040,"13,770.00",BRIGHT HORIZONS FAMILY SOLUTIONS,ACADEMIC INSTNS - OTHER,Schools,2 Yr Old Place Funding,A60000
Royal Borough of Kingston,25/02/2024,70068884,"11,470.65",BRITISH TELECOMMUNICATIONS PLC,TELECOMS,Corporate & Communities,Telephones,A45020
Royal Borough of Kingston,06/03/2024,70069245,"2,858.36",BRITISH TELECOMMUNICATIONS PLC,TELECOMS,Corporate & Communities,Telephones,A45020
Royal Borough of Kingston,03/04/2024,70070020,"1,700.94",BRITISH TELECOMMUNICATIONS PLC,TELECOMS,Corporate & Communities,Other Private Contractors - Third Party,A56080
Royal Borough of Kingston,13/04/2024,70070027,740.96,BRITISH TELECOMMUNICATIONS PLC,TELECOMS,Corporate & Communities,Telephones,A45020
Royal Borough of Kingston,01/04/2024,90323632,"4,714.29",Brownlow Enterprises Limited,SOCIAL SERVICES RESIDENTIAL,Adult Social Care & Health,Independent Placements,A56006
Royal Borough of Kingston,02/04/2024,70068919,"49,717.00","Buildvantage Management Limited,",ACCOMMODATION BED & BREAKFAST,Place,Bed & Breakfast,A56000
Royal Borough of Kingston,04/04/2024,70068981,450.79,BUNZL OUTSOURCING SVS UK LTD,CLOTHING & UNIFORMS,Housing Revenue Account,Cleaning Equipment - Purchase and Repairs,A27025
Royal Borough of Kingston,09/04/2024,70069320,"2,443.84",BUNZL OUTSOURCING SVS UK LTD,CLOTHING & UNIFORMS,Housing Revenue Account,Cleaning Equipment - Purchase and Repairs,A27025
Royal Borough of Kingston,23/04/2024,70069989,728.91,BUNZL OUTSOURCING SVS UK LTD,CLOTHING & UNIFORMS,Housing Revenue Account,Cleaning Supplies,A27020
Royal Borough of Kingston,01/04/2024,90323333,"9,153.26",BUPA CARE HOMES (AKW) LIMITED,SOCIAL SERVICES RESIDENTIAL,Adult Social Care & Health,Independent Placements,A56006
Royal Borough of Kingston,01/04/2024,90323525,"3,817.76",BUPA CARE HOMES (AKW) LIMITED,SOCIAL SERVICES RESIDENTIAL,Adult Social Care & Health,Independent Placements,A56006
Royal Borough of Kingston,01/04/2024,90323914,"5,411.06",BUPA CARE HOMES (AKW) LIMITED,SOCIAL SERVICES RESIDENTIAL,Adult Social Care & Health,Independent Placements,A56006
Royal Borough of Kingston,04/04/2024,90318785,"153,306.83",BURLINGTON INFANT AND NURSERY SCHOOL,SCHOOL FUNDS,Schools,Miscellaneous Expenses,A49000
Royal Borough of Kingston,04/04/2024,90318900,"72,562.50",BURLINGTON INFANT AND NURSERY SCHOOL,SCHOOL FUNDS,Schools,PVI Providers,A60014
Royal Borough of Kingston,04/04/2024,90319008,"5,670.00",BURLINGTON INFANT AND NURSERY SCHOOL,SCHOOL FUNDS,Schools,2 Yr Old Place Funding,A60000
Royal Borough of Kingston,04/04/2024,90318786,"194,807.48",BURLINGTON JUNIOR SCHOOL,SCHOOL FUNDS,Schools,Miscellaneous Expenses,A49000
Royal Borough of Kingston,26/03/2024,70069189,"30,000.00",BURO HAPPOLD LIMTED,LEGAL & PROFESSIONAL SERVICES,Place,Consultancy Services - Other,A44065
Royal Borough of Kingston,26/04/2024,70070293,"20,950.00",BURO HAPPOLD LIMTED,LEGAL & PROFESSIONAL SERVICES,Place,Consultancy Services - Other,A44065
Royal Borough of Kingston,25/04/2024,70070089,"10,580.00",Butler & Young Services Ltd,CONSULTING ARCHITECTS ENGINEER,Housing Revenue Account,Council Dwellings - Project Management,C10005
Royal Borough of Kingston,28/03/2024,70068818,"34,403.00",BYTES SOFTWARE SERVICES LTD,BUSINESS & COMPUTER SYSTEMS,Corporate & Communities,IT Software Maintenance,A45045
Royal Borough of Kingston,28/03/2024,70068866,"2,996.80",BYTES SOFTWARE SERVICES LTD,BUSINESS & COMPUTER SYSTEMS,Corporate & Communities,IT Hardware Purchase,A45005
Royal Borough of Kingston,28/03/2024,70068873,"2,996.80",BYTES SOFTWARE SERVICES LTD,BUSINESS & COMPUTER SYSTEMS,Corporate & Communities,IT Hardware Purchase,A45005
Royal Borough of Kingston,28/03/2024,70069011,501.76,BYTES SOFTWARE SERVICES LTD,BUSINESS & COMPUTER SYSTEMS,Corporate & Communities,IT Software Purchase,A45040
Royal Borough of Kingston,28/03/2024,70069027,"20,921.90",BYTES SOFTWARE SERVICES LTD,BUSINESS & COMPUTER SYSTEMS,Corporate & Communities,IT Hardware Purchase,A45005
Royal Borough of Kingston,15/04/2024,70069527,514.07,BYTES SOFTWARE SERVICES LTD,BUSINESS & COMPUTER SYSTEMS,Corporate & Communities,IT Software Purchase,A45040
Royal Borough of Kingston,16/04/2024,70069600,"6,749.00",BYTES SOFTWARE SERVICES LTD,BUSINESS & COMPUTER SYSTEMS,Corporate & Communities,Communications,A45025
Royal Borough of Kingston,17/04/2024,70069724,-501.76,BYTES SOFTWARE SERVICES LTD,BUSINESS & COMPUTER SYSTEMS,Corporate & Communities,IT Software Purchase,A45040
Royal Borough of Kingston,17/04/2024,70069731,"3,189.87",BYTES SOFTWARE SERVICES LTD,BUSINESS & COMPUTER SYSTEMS,Corporate & Communities,IT Hardware Purchase,A45005
Royal Borough of Kingston,02/04/2024,90318333,"1,314.08",REDACTED - PERSONAL DATA,PLS LANDLORDS,Place,PSL Payments To Landlords,A22031
Royal Borough of Kingston,02/04/2024,90318335,"1,094.00",REDACTED - PERSONAL DATA,PLS LANDLORDS,Place,PSL Payments To Landlords,A22031
Royal Borough of Kingston,02/04/2024,90318453,"1,314.08",REDACTED - PERSONAL DATA,PLS LANDLORDS,Place,PSL Payments To Landlords,A22031
Royal Borough of Kingston,02/04/2024,90318454,"1,314.08",REDACTED - PERSONAL DATA,PLS LANDLORDS,Place,PSL Payments To Landlords,A22031
Royal Borough of Kingston,02/04/2024,90318455,"1,314.08",REDACTED - PERSONAL DATA,PLS LANDLORDS,Place,PSL Payments To Landlords,A22031
Royal Borough of Kingston,02/04/2024,90318456,"1,314.08",REDACTED - PERSONAL DATA,PLS LANDLORDS,Place,PSL Payments To Landlords,A22031
Royal Borough of Kingston,25/04/2024,90326388,"1,314.08",REDACTED - PERSONAL DATA,PLS LANDLORDS,Place,PSL Payments To Landlords,A22031
Royal Borough of Kingston,25/04/2024,90326390,"1,094.00",REDACTED - PERSONAL DATA,PLS LANDLORDS,Place,PSL Payments To Landlords,A22031
Royal Borough of Kingston,25/04/2024,90326509,"1,314.08",REDACTED - PERSONAL DATA,PLS LANDLORDS,Place,PSL Payments To Landlords,A22031
Royal Borough of Kingston,25/04/2024,90326510,"1,314.08",REDACTED - PERSONAL DATA,PLS LANDLORDS,Place,PSL Payments To Landlords,A22031
Royal Borough of Kingston,25/04/2024,90326511,"1,314.08",REDACTED - PERSONAL DATA,PLS LANDLORDS,Place,PSL Payments To Landlords,A22031
Royal Borough of Kingston,25/04/2024,90326512,"1,314.08",REDACTED - PERSONAL DATA,PLS LANDLORDS,Place,PSL Payments To Landlords,A22031
Royal Borough of Kingston,02/04/2024,90318413,"1,317.76",REDACTED - PERSONAL DATA,PLS LANDLORDS,Place,PSL Payments To Landlords,A22031
Royal Borough of Kingston,25/04/2024,90326469,"1,317.76",REDACTED - PERSONAL DATA,PLS LANDLORDS,Place,PSL Payments To Landlords,A22031
Royal Borough of Kingston,02/04/2024,90318397,"1,025.00",REDACTED - PERSONAL DATA,PLS LANDLORDS,Place,PSL Payments To Landlords,A22031
Royal Borough of Kingston,25/04/2024,90326453,"1,025.00",REDACTED - PERSONAL DATA,PLS LANDLORDS,Place,PSL Payments To Landlords,A22031
Royal Borough of Kingston,02/04/2024,90318533,"1,679.75",REDACTED - PERSONAL DATA,PLS LANDLORDS,Place,PSL Payments To Landlords,A22031
Royal Borough of Kingston,25/04/2024,90326589,"1,679.75",REDACTED - PERSONAL DATA,PLS LANDLORDS,Place,PSL Payments To Landlords,A22031
Royal Borough of Kingston,28/04/2024,70070304,480.00,Calford Seaden (Health & Safety) Limited,CONSULTING ARCHITECTS ENGINEER,Place,Buildings - Design & Planning,C14001
Royal Borough of Kingston,18/03/2024,70067478,"2,850.00",CAMBRIDGE HOUSE AND TALBOT,LEGAL & PROFESSIONAL SERVICES,Adult Social Care & Health,Professional Fees,A44066
Royal Borough of Kingston,16/04/2024,70069621,"3,060.00",CAMBRIDGE HOUSE AND TALBOT,LEGAL & PROFESSIONAL SERVICES,Adult Social Care & Health,Professional Fees,A44066
Royal Borough of Kingston,26/03/2024,70069000,"41,074.60",Cambridge Road Estate (RBK) LLP,LEGAL & PROFESSIONAL SERVICES,Housing Revenue Account,Council Dwellings - Acquisition,C10006
Royal Borough of Kingston,26/03/2024,70069002,"116,685.13",Cambridge Road Estate (RBK) LLP,LEGAL & PROFESSIONAL SERVICES,Housing Revenue Account,Council Dwellings - Acquisition,C10006
Royal Borough of Kingston,01/04/2024,70069108,"703,282.00",Cambridge Road Estate (RBK) LLP,LEGAL & PROFESSIONAL SERVICES,Housing Revenue Account,Council Dwellings - Acquisition,C10006
Royal Borough of Kingston,01/04/2024,90325809,945.62,Camphill Village Trust Ltd,SOCIAL SERVICES RESIDENTIAL,Adult Social Care & Health,Personal Budget - Third Party,A61019
Royal Borough of Kingston,01/04/2024,90325939,"11,464.29",Camphill Village Trust Ltd,SOCIAL SERVICES RESIDENTIAL,Adult Social Care & Health,Personal Budget - Third Party,A61019
Royal Borough of Kingston,01/04/2024,90325940,"3,347.10",Camphill Village Trust Ltd,SOCIAL SERVICES RESIDENTIAL,Adult Social Care & Health,Personal Budget - Third Party,A61019
Royal Borough of Kingston,02/04/2024,70069028,"1,078.40",CANON (UK) LTD,OPERATIONAL EQUIPMENT/MATERIAL,Corporate & Communities,Printing And Photocopying,A43005
Royal Borough of Kingston,04/04/2024,70069112,"1,270.32",CANON (UK) LTD,OPERATIONAL EQUIPMENT/MATERIAL,Corporate & Communities,Printing And Photocopying,A43005
Royal Borough of Kingston,04/04/2024,70069137,"1,047.98",CANON (UK) LTD,OPERATIONAL EQUIPMENT/MATERIAL,Corporate & Communities,Printing And Photocopying,A43005
Royal Borough of Kingston,04/04/2024,70069180,"8,629.44",CANON (UK) LTD,OPERATIONAL EQUIPMENT/MATERIAL,Corporate & Communities,Printing And Photocopying,A43005
Royal Borough of Kingston,04/04/2024,70069193,"1,725.27",CANON (UK) LTD,OPERATIONAL EQUIPMENT/MATERIAL,Corporate & Communities,Printing And Photocopying,A43005
Royal Borough of Kingston,22/04/2024,70069958,"1,324.15",CANON (UK) LTD,OPERATIONAL EQUIPMENT/MATERIAL,Corporate & Communities,Printing And Photocopying,A43005
Royal Borough of Kingston,31/03/2024,70068823,995.00,Capita Road Safety Limited,CONSULTING ARCHITECTS ENGINEER,Place,Infrastructure Assets - Project Management,C12000
Royal Borough of Kingston,09/04/2024,70069322,914.30,Care & Support Consultants Ltd,TEMP STAFF & CONSULTANCY,Adult Social Care & Health,Other Private Contractors - Third Party,A56080
Royal Borough of Kingston,01/04/2024,90325879,"5,513.31",CARE MANAGEMENT GROUP LTD,SOCIAL SERVICES RESIDENTIAL,Adult Social Care & Health,Personal Budget - Third Party,A61019
Royal Borough of Kingston,01/04/2024,90323479,"4,437.73",CARE UK COMMUNITY PARTNERSHIPS LTD,SOCIAL SERVICES RESIDENTIAL,Adult Social Care & Health,Independent Placements,A56006
Royal Borough of Kingston,01/04/2024,90323489,"4,392.86",CARE UK COMMUNITY PARTNERSHIPS LTD,SOCIAL SERVICES RESIDENTIAL,Adult Social Care & Health,Independent Placements,A56006
Royal Borough of Kingston,01/04/2024,90323491,"2,742.86",CARE UK COMMUNITY PARTNERSHIPS LTD,SOCIAL SERVICES RESIDENTIAL,Adult Social Care & Health,Independent Placements,A56006
Royal Borough of Kingston,01/04/2024,90323492,"-2,742.86",CARE UK COMMUNITY PARTNERSHIPS LTD,SOCIAL SERVICES RESIDENTIAL,Adult Social Care & Health,Independent Placements,A56006
Royal Borough of Kingston,01/04/2024,90323493,"5,314.29",CARE UK COMMUNITY PARTNERSHIPS LTD,SOCIAL SERVICES RESIDENTIAL,Adult Social Care & Health,Independent Placements,A56006
Royal Borough of Kingston,01/04/2024,90323494,"-5,314.29",CARE UK COMMUNITY PARTNERSHIPS LTD,SOCIAL SERVICES RESIDENTIAL,Adult Social Care & Health,Independent Placements,A56006
Royal Borough of Kingston,01/04/2024,90323495,"5,142.86",CARE UK COMMUNITY PARTNERSHIPS LTD,SOCIAL SERVICES RESIDENTIAL,Adult Social Care & Health,Independent Placements,A56006
Royal Borough of Kingston,01/04/2024,90323523,"3,278.57",CARE UK COMMUNITY PARTNERSHIPS LTD,SOCIAL SERVICES RESIDENTIAL,Adult Social Care & Health,Independent Placements,A56006
Royal Borough of Kingston,01/04/2024,90323535,"4,151.71",CARE UK COMMUNITY PARTNERSHIPS LTD,SOCIAL SERVICES RESIDENTIAL,Adult Social Care & Health,Independent Placements,A56006
Royal Borough of Kingston,01/04/2024,90323582,"7,152.86",CARE UK COMMUNITY PARTNERSHIPS LTD,SOCIAL SERVICES RESIDENTIAL,Adult Social Care & Health,Independent Placements,A56006
Royal Borough of Kingston,01/04/2024,90323636,"4,363.16",CARE UK COMMUNITY PARTNERSHIPS LTD,SOCIAL SERVICES RESIDENTIAL,Adult Social Care & Health,Independent Placements,A56006
Royal Borough of Kingston,01/04/2024,90323645,"3,398.01",CARE UK COMMUNITY PARTNERSHIPS LTD,SOCIAL SERVICES RESIDENTIAL,Adult Social Care & Health,Independent Placements,A56006
Royal Borough of Kingston,01/04/2024,90324051,"2,142.86",CARE UK COMMUNITY PARTNERSHIPS LTD,SOCIAL SERVICES RESIDENTIAL,Adult Social Care & Health,Other Private Contractors - Third Party,A56080
Royal Borough of Kingston,01/04/2024,90324052,"2,142.86",CARE UK COMMUNITY PARTNERSHIPS LTD,SOCIAL SERVICES RESIDENTIAL,Adult Social Care & Health,Other Private Contractors - Third Party,A56080
Royal Borough of Kingston,01/04/2024,90324053,"2,142.86",CARE UK COMMUNITY PARTNERSHIPS LTD,SOCIAL SERVICES RESIDENTIAL,Adult Social Care & Health,Other Private Contractors - Third Party,A56080
Royal Borough of Kingston,01/04/2024,90324054,"2,142.86",CARE UK COMMUNITY PARTNERSHIPS LTD,SOCIAL SERVICES RESIDENTIAL,Adult Social Care & Health,Other Private Contractors - Third Party,A56080
Royal Borough of Kingston,01/04/2024,90324055,"2,142.86",CARE UK COMMUNITY PARTNERSHIPS LTD,SOCIAL SERVICES RESIDENTIAL,Adult Social Care & Health,Other Private Contractors - Third Party,A56080
Royal Borough of Kingston,01/04/2024,90324056,"2,142.86",CARE UK COMMUNITY PARTNERSHIPS LTD,SOCIAL SERVICES RESIDENTIAL,Adult Social Care & Health,Other Private Contractors - Third Party,A56080
Royal Borough of Kingston,01/04/2024,90323547,"4,950.00",CARELODGES GROUP LTD,SOCIAL SERVICES RESIDENTIAL,Adult Social Care & Health,Independent Placements,A56006
Royal Borough of Kingston,01/04/2024,90323548,"-4,714.29",CARELODGES GROUP LTD,SOCIAL SERVICES RESIDENTIAL,Adult Social Care & Health,Independent Placements,A56006
Royal Borough of Kingston,01/04/2024,90323549,"5,115.00",CARELODGES GROUP LTD,SOCIAL SERVICES RESIDENTIAL,Adult Social Care & Health,Independent Placements,A56006
Royal Borough of Kingston,01/04/2024,90323550,"-4,871.43",CARELODGES GROUP LTD,SOCIAL SERVICES RESIDENTIAL,Adult Social Care & Health,Independent Placements,A56006
Royal Borough of Kingston,01/04/2024,90323551,"4,950.00",CARELODGES GROUP LTD,SOCIAL SERVICES RESIDENTIAL,Adult Social Care & Health,Independent Placements,A56006
Royal Borough of Kingston,01/04/2024,90323552,"-4,714.29",CARELODGES GROUP LTD,SOCIAL SERVICES RESIDENTIAL,Adult Social Care & Health,Independent Placements,A56006
Royal Borough of Kingston,01/04/2024,90323553,"5,115.00",CARELODGES GROUP LTD,SOCIAL SERVICES RESIDENTIAL,Adult Social Care & Health,Independent Placements,A56006
Royal Borough of Kingston,01/04/2024,90323554,"-4,871.43",CARELODGES GROUP LTD,SOCIAL SERVICES RESIDENTIAL,Adult Social Care & Health,Independent Placements,A56006
Royal Borough of Kingston,01/04/2024,90323555,"5,115.00",CARELODGES GROUP LTD,SOCIAL SERVICES RESIDENTIAL,Adult Social Care & Health,Independent Placements,A56006
Royal Borough of Kingston,01/04/2024,90323556,"-4,871.43",CARELODGES GROUP LTD,SOCIAL SERVICES RESIDENTIAL,Adult Social Care & Health,Independent Placements,A56006
Royal Borough of Kingston,01/04/2024,90323557,"4,950.00",CARELODGES GROUP LTD,SOCIAL SERVICES RESIDENTIAL,Adult Social Care & Health,Independent Placements,A56006
Royal Borough of Kingston,01/04/2024,90323558,"-4,714.29",CARELODGES GROUP LTD,SOCIAL SERVICES RESIDENTIAL,Adult Social Care & Health,Independent Placements,A56006
Royal Borough of Kingston,01/04/2024,90323559,"5,115.00",CARELODGES GROUP LTD,SOCIAL SERVICES RESIDENTIAL,Adult Social Care & Health,Independent Placements,A56006
Royal Borough of Kingston,01/04/2024,90323560,"-4,871.43",CARELODGES GROUP LTD,SOCIAL SERVICES RESIDENTIAL,Adult Social Care & Health,Independent Placements,A56006
Royal Borough of Kingston,01/04/2024,90323561,"4,950.00",CARELODGES GROUP LTD,SOCIAL SERVICES RESIDENTIAL,Adult Social Care & Health,Independent Placements,A56006
Royal Borough of Kingston,01/04/2024,90323562,"-4,714.29",CARELODGES GROUP LTD,SOCIAL SERVICES RESIDENTIAL,Adult Social Care & Health,Independent Placements,A56006
Royal Borough of Kingston,01/04/2024,90323563,"5,115.00",CARELODGES GROUP LTD,SOCIAL SERVICES RESIDENTIAL,Adult Social Care & Health,Independent Placements,A56006
Royal Borough of Kingston,01/04/2024,90323564,"-4,871.43",CARELODGES GROUP LTD,SOCIAL SERVICES RESIDENTIAL,Adult Social Care & Health,Independent Placements,A56006
Royal Borough of Kingston,01/04/2024,90323565,"5,115.00",CARELODGES GROUP LTD,SOCIAL SERVICES RESIDENTIAL,Adult Social Care & Health,Independent Placements,A56006
Royal Borough of Kingston,01/04/2024,90323566,"-4,871.43",CARELODGES GROUP LTD,SOCIAL SERVICES RESIDENTIAL,Adult Social Care & Health,Independent Placements,A56006
Royal Borough of Kingston,01/04/2024,90323567,"4,785.00",CARELODGES GROUP LTD,SOCIAL SERVICES RESIDENTIAL,Adult Social Care & Health,Independent Placements,A56006
Royal Borough of Kingston,01/04/2024,90323568,"-4,557.14",CARELODGES GROUP LTD,SOCIAL SERVICES RESIDENTIAL,Adult Social Care & Health,Independent Placements,A56006
Royal Borough of Kingston,01/04/2024,90323569,"5,115.00",CARELODGES GROUP LTD,SOCIAL SERVICES RESIDENTIAL,Adult Social Care & Health,Independent Placements,A56006
Royal Borough of Kingston,01/04/2024,90323570,"-4,871.43",CARELODGES GROUP LTD,SOCIAL SERVICES RESIDENTIAL,Adult Social Care & Health,Independent Placements,A56006
Royal Borough of Kingston,01/04/2024,90323571,"4,950.00",CARELODGES GROUP LTD,SOCIAL SERVICES RESIDENTIAL,Adult Social Care & Health,Independent Placements,A56006
Royal Borough of Kingston,01/04/2024,90323792,"5,658.81",CARELODGES GROUP LTD,SOCIAL SERVICES RESIDENTIAL,Adult Social Care & Health,Independent Placements,A56006
Royal Borough of Kingston,04/04/2024,90318845,"25,312.50",CAREROOM LTD,ACADEMIC INSTNS - OTHER,Schools,PVI Providers,A60014
Royal Borough of Kingston,04/04/2024,90318961,"18,630.00",CAREROOM LTD,ACADEMIC INSTNS - OTHER,Schools,2 Yr Old Place Funding,A60000
Royal Borough of Kingston,11/03/2024,90319265,756.32,CARLCARE LTD,SOCIAL SERVICES-HOME CARE,Adult Social Care & Health,Homecare - new framework,A56127
Royal Borough of Kingston,11/03/2024,90319291,504.21,CARLCARE LTD,SOCIAL SERVICES-HOME CARE,Adult Social Care & Health,Homecare - new framework,A56127
Royal Borough of Kingston,11/03/2024,90319301,504.21,CARLCARE LTD,SOCIAL SERVICES-HOME CARE,Adult Social Care & Health,Homecare - new framework,A56127
Royal Borough of Kingston,11/03/2024,90319460,513.22,CARLCARE LTD,SOCIAL SERVICES-HOME CARE,Adult Social Care & Health,Homecare - new framework,A56127
Royal Borough of Kingston,11/03/2024,90319588,567.24,CARLCARE LTD,SOCIAL SERVICES-HOME CARE,Adult Social Care & Health,Homecare - Framework - double-handed,A56131
Royal Borough of Kingston,01/04/2024,90320305,"1,275.71",CARLCARE LTD,SOCIAL SERVICES-HOME CARE,Adult Social Care & Health,Personal Budget - Third Party,A61019
Royal Borough of Kingston,18/03/2024,90322077,756.32,CARLCARE LTD,SOCIAL SERVICES-HOME CARE,Adult Social Care & Health,Homecare - new framework,A56127
Royal Borough of Kingston,18/03/2024,90322100,504.21,CARLCARE LTD,SOCIAL SERVICES-HOME CARE,Adult Social Care & Health,Homecare - new framework,A56127
Royal Borough of Kingston,18/03/2024,90322247,504.21,CARLCARE LTD,SOCIAL SERVICES-HOME CARE,Adult Social Care & Health,Homecare - new framework,A56127
Royal Borough of Kingston,18/03/2024,90322447,513.22,CARLCARE LTD,SOCIAL SERVICES-HOME CARE,Adult Social Care & Health,Homecare - new framework,A56127
Royal Borough of Kingston,18/03/2024,90322554,549.23,CARLCARE LTD,SOCIAL SERVICES-HOME CARE,Adult Social Care & Health,Homecare - Framework - double-handed,A56131
Royal Borough of Kingston,08/04/2024,90323022,"1,275.71",CARLCARE LTD,SOCIAL SERVICES-HOME CARE,Adult Social Care & Health,Personal Budget - Third Party,A61019
Royal Borough of Kingston,25/03/2024,90324318,756.32,CARLCARE LTD,SOCIAL SERVICES-HOME CARE,Adult Social Care & Health,Homecare - new framework,A56127
Royal Borough of Kingston,25/03/2024,90324352,504.21,CARLCARE LTD,SOCIAL SERVICES-HOME CARE,Adult Social Care & Health,Homecare - new framework,A56127
Royal Borough of Kingston,25/03/2024,90324553,513.22,CARLCARE LTD,SOCIAL SERVICES-HOME CARE,Adult Social Care & Health,Homecare - new framework,A56127
Royal Borough of Kingston,25/03/2024,90324720,630.27,CARLCARE LTD,SOCIAL SERVICES-HOME CARE,Adult Social Care & Health,Homecare - Framework - double-handed,A56131
Royal Borough of Kingston,25/03/2024,90324724,567.24,CARLCARE LTD,SOCIAL SERVICES-HOME CARE,Adult Social Care & Health,Homecare - Framework - double-handed,A56131
Royal Borough of Kingston,15/04/2024,90326044,"1,275.71",CARLCARE LTD,SOCIAL SERVICES-HOME CARE,Adult Social Care & Health,Personal Budget - Third Party,A61019
Royal Borough of Kingston,01/04/2024,90327486,794.14,CARLCARE LTD,SOCIAL SERVICES-HOME CARE,Adult Social Care & Health,Homecare - new framework,A56127
Royal Borough of Kingston,01/04/2024,90327508,529.43,CARLCARE LTD,SOCIAL SERVICES-HOME CARE,Adult Social Care & Health,Homecare - new framework,A56127
Royal Borough of Kingston,01/04/2024,90327652,538.88,CARLCARE LTD,SOCIAL SERVICES-HOME CARE,Adult Social Care & Health,Homecare - new framework,A56127
Royal Borough of Kingston,01/04/2024,90327760,661.78,CARLCARE LTD,SOCIAL SERVICES-HOME CARE,Adult Social Care & Health,Homecare - Framework - double-handed,A56131
Royal Borough of Kingston,01/04/2024,90327768,595.60,CARLCARE LTD,SOCIAL SERVICES-HOME CARE,Adult Social Care & Health,Homecare - Framework - double-handed,A56131
Royal Borough of Kingston,22/04/2024,90328107,"1,275.71",CARLCARE LTD,SOCIAL SERVICES-HOME CARE,Adult Social Care & Health,Personal Budget - Third Party,A61019
Royal Borough of Kingston,02/04/2024,90318428,"1,550.00",CARLISLE SECURITIES LTD,PLS LANDLORDS,Place,PSL Payments To Landlords,A22031
Royal Borough of Kingston,25/04/2024,90326484,"1,550.00",CARLISLE SECURITIES LTD,PLS LANDLORDS,Place,PSL Payments To Landlords,A22031
Royal Borough of Kingston,02/04/2024,90318255,"1,185.00",REDACTED - PERSONAL DATA,PLS LANDLORDS,Place,PSL Payments To Landlords,A22031
Royal Borough of Kingston,25/04/2024,90326309,"1,185.00",REDACTED - PERSONAL DATA,PLS LANDLORDS,Place,PSL Payments To Landlords,A22031
Royal Borough of Kingston,04/04/2024,90318965,"1,620.00",REDACTED - PERSONAL DATA,ACADEMIC INSTNS - OTHER,Schools,2 Yr Old Place Funding,A60000
Royal Borough of Kingston,04/04/2024,90318882,"2,925.00",REDACTED - PERSONAL DATA,ACADEMIC INSTNS - OTHER,Schools,PVI Providers,A60014
Royal Borough of Kingston,02/04/2024,90318721,500.00,REDACTED - PERSONAL DATA,CHARITIES & VOLUNTARY ORGNS,Adult Social Care & Health,"Grants, Contributions & Donations",A47005
Royal Borough of Kingston,01/04/2024,90323793,"9,623.19",CARTREF HOMES,SOCIAL SERVICES RESIDENTIAL,Adult Social Care & Health,Independent Placements,A56006
Royal Borough of Kingston,01/04/2024,90323694,"14,249.87",CAS CARE SERVICES LTD,SOCIAL SERVICES - OTHER,Adult Social Care & Health,Independent Placements,A56006
Royal Borough of Kingston,01/04/2024,90323813,"14,249.87",CAS CARE SERVICES LTD,SOCIAL SERVICES - OTHER,Adult Social Care & Health,Independent Placements,A56006
Royal Borough of Kingston,04/04/2024,90318901,"29,025.00",CASTLE HILL SCHOOL,SCHOOL FUNDS,Schools,Miscellaneous Expenses,A49000
Royal Borough of Kingston,04/04/2024,90318934,"3,712.50",CASTLE HILL SCHOOL,SCHOOL FUNDS,Schools,PVI Providers,A60014
Royal Borough of Kingston,04/04/2024,90319031,"3,888.00",CASTLE HILL SCHOOL,SCHOOL FUNDS,Schools,2 Yr Old Place Funding,A60000
Royal Borough of Kingston,02/04/2024,90318228,"2,543.06",CASTLE RESIDENTIAL PROPERTIES LTD,PLS LANDLORDS,Place,PSL Payments To Landlords,A22031
Royal Borough of Kingston,02/04/2024,90318229,"1,540.00",CASTLE RESIDENTIAL PROPERTIES LTD,PLS LANDLORDS,Place,PSL Payments To Landlords,A22031
Royal Borough of Kingston,02/04/2024,90318334,"1,321.00",CASTLE RESIDENTIAL PROPERTIES LTD,PLS LANDLORDS,Place,PSL Payments To Landlords,A22031
Royal Borough of Kingston,02/04/2024,90318336,"1,049.98",CASTLE RESIDENTIAL PROPERTIES LTD,PLS LANDLORDS,Place,PSL Payments To Landlords,A22031
Royal Borough of Kingston,02/04/2024,90318494,"2,543.06",CASTLE RESIDENTIAL PROPERTIES LTD,PLS LANDLORDS,Place,PSL Payments To Landlords,A22031
Royal Borough of Kingston,02/04/2024,90318564,"2,543.06",CASTLE RESIDENTIAL PROPERTIES LTD,PLS LANDLORDS,Place,PSL Payments To Landlords,A22031
Royal Borough of Kingston,25/04/2024,90326282,"2,543.06",CASTLE RESIDENTIAL PROPERTIES LTD,PLS LANDLORDS,Place,PSL Payments To Landlords,A22031
Royal Borough of Kingston,25/04/2024,90326283,"1,540.00",CASTLE RESIDENTIAL PROPERTIES LTD,PLS LANDLORDS,Place,PSL Payments To Landlords,A22031
Royal Borough of Kingston,25/04/2024,90326389,"1,321.00",CASTLE RESIDENTIAL PROPERTIES LTD,PLS LANDLORDS,Place,PSL Payments To Landlords,A22031
Royal Borough of Kingston,25/04/2024,90326391,"1,049.98",CASTLE RESIDENTIAL PROPERTIES LTD,PLS LANDLORDS,Place,PSL Payments To Landlords,A22031
Royal Borough of Kingston,25/04/2024,90326550,"2,543.06",CASTLE RESIDENTIAL PROPERTIES LTD,PLS LANDLORDS,Place,PSL Payments To Landlords,A22031
Royal Borough of Kingston,25/04/2024,90326620,"2,543.06",CASTLE RESIDENTIAL PROPERTIES LTD,PLS LANDLORDS,Place,PSL Payments To Landlords,A22031
Royal Borough of Kingston,02/04/2024,90318227,"1,094.34",CASTLE WILDISH RESI LTD,PLS LANDLORDS,Place,PSL Payments To Landlords,A22031
Royal Borough of Kingston,02/04/2024,90318546,"2,100.00",CASTLE WILDISH RESI LTD,PLS LANDLORDS,Place,PSL Payments To Landlords,A22031
Royal Borough of Kingston,02/04/2024,90318547,"2,100.00",CASTLE WILDISH RESI LTD,PLS LANDLORDS,Place,PSL Payments To Landlords,A22031
Royal Borough of Kingston,25/04/2024,90326281,"1,094.34",CASTLE WILDISH RESI LTD,PLS LANDLORDS,Place,PSL Payments To Landlords,A22031
Royal Borough of Kingston,25/04/2024,90326602,"2,100.00",CASTLE WILDISH RESI LTD,PLS LANDLORDS,Place,PSL Payments To Landlords,A22031
Royal Borough of Kingston,25/04/2024,90326603,"2,100.00",CASTLE WILDISH RESI LTD,PLS LANDLORDS,Place,PSL Payments To Landlords,A22031
Royal Borough of Kingston,15/03/2024,70067484,"1,050.00",CATTANEO COMMERCIAL LIMITED,PROFESSIONAL ASSOCIATIONS TU,Place,Property-Related Professional Fees,A20035
Royal Borough of Kingston,15/03/2024,70068837,"4,287.50",CATTANEO COMMERCIAL LIMITED,PROFESSIONAL ASSOCIATIONS TU,Place,Property-Related Professional Fees,A20035
Royal Borough of Kingston,18/04/2024,70069946,"2,500.00",CATTANEO COMMERCIAL LIMITED,PROFESSIONAL ASSOCIATIONS TU,Place,Property-Related Professional Fees,A20035
Royal Borough of Kingston,01/04/2024,90323737,"11,331.99",Gresham Care Operations Limited,SOCIAL SERVICES RESIDENTIAL,Adult Social Care & Health,Independent Placements,A56006
Royal Borough of Kingston,02/04/2024,90318362,867.83,REDACTED - PERSONAL DATA,PLS LANDLORDS,Place,PSL Payments To Landlords,A22031
Royal Borough of Kingston,25/04/2024,90326418,867.83,REDACTED - PERSONAL DATA,PLS LANDLORDS,Place,PSL Payments To Landlords,A22031
Royal Borough of Kingston,03/04/2024,70068903,"3,000.00",Celebrating Chessington Group,SUNDRY SUPPLIER - FINANCE,Corporate & Communities,Payments to Voluntary Organisations,A54005
Royal Borough of Kingston,01/04/2024,90323637,"6,428.57",CENTRAL AND CECIL HOUSING TRUST,SOCIAL SERVICES - OTHER,Adult Social Care & Health,Independent Placements,A56006
Royal Borough of Kingston,04/04/2024,90319042,810.00,REDACTED - PERSONAL DATA,ACADEMIC INSTNS - OTHER,Schools,2 Yr Old Place Funding,A60000
Royal Borough of Kingston,31/03/2024,70069151,623.33,CHAWTON HILL ASSOCIATES LIMITED,LEGAL & PROFESSIONAL SERVICES,Housing Revenue Account,Professional Fees,A44066
Royal Borough of Kingston,10/04/2024,70069246,623.33,CHAWTON HILL ASSOCIATES LIMITED,LEGAL & PROFESSIONAL SERVICES,Housing Revenue Account,Professional Fees,A44066
Royal Borough of Kingston,31/03/2024,70069459,561.00,CHAWTON HILL ASSOCIATES LIMITED,LEGAL & PROFESSIONAL SERVICES,Place,Payments to Contractors,C14000
Royal Borough of Kingston,16/04/2024,70069983,623.33,CHAWTON HILL ASSOCIATES LIMITED,LEGAL & PROFESSIONAL SERVICES,Housing Revenue Account,Professional Fees,A44066
Royal Borough of Kingston,01/04/2024,90323505,"3,740.40",CHD (CARE HOMES) LTD,SOCIAL SERVICES RESIDENTIAL,Adult Social Care & Health,Independent Placements,A56006
Royal Borough of Kingston,01/04/2024,90323644,"5,280.00",CHD (CARE HOMES) LTD,SOCIAL SERVICES RESIDENTIAL,Adult Social Care & Health,Independent Placements,A56006
Royal Borough of Kingston,01/04/2024,90323657,"3,866.27",CHD (CARE HOMES) LTD,SOCIAL SERVICES RESIDENTIAL,Adult Social Care & Health,Independent Placements,A56006
Royal Borough of Kingston,01/04/2024,90323428,"4,280.57",CHD CARE LTD,SOCIAL SERVICES RESIDENTIAL,Adult Social Care & Health,Independent Placements,A56006
Royal Borough of Kingston,01/04/2024,90324041,"2,357.14",CHD CARE LTD,SOCIAL SERVICES RESIDENTIAL,Adult Social Care & Health,Other Private Contractors - Third Party,A56080
Royal Borough of Kingston,01/04/2024,90324042,"2,357.14",CHD CARE LTD,SOCIAL SERVICES RESIDENTIAL,Adult Social Care & Health,Other Private Contractors - Third Party,A56080
Royal Borough of Kingston,01/04/2024,90324043,"2,357.14",CHD CARE LTD,SOCIAL SERVICES RESIDENTIAL,Adult Social Care & Health,Other Private Contractors - Third Party,A56080
Royal Borough of Kingston,01/04/2024,90324044,"2,357.14",CHD CARE LTD,SOCIAL SERVICES RESIDENTIAL,Adult Social Care & Health,Other Private Contractors - Third Party,A56080
Royal Borough of Kingston,01/04/2024,90324045,"2,357.14",CHD CARE LTD,SOCIAL SERVICES RESIDENTIAL,Adult Social Care & Health,Other Private Contractors - Third Party,A56080
Royal Borough of Kingston,01/04/2024,90324046,"2,357.14",CHD CARE LTD,SOCIAL SERVICES RESIDENTIAL,Adult Social Care & Health,Other Private Contractors - Third Party,A56080
Royal Borough of Kingston,01/04/2024,90324047,"2,357.14",CHD CARE LTD,SOCIAL SERVICES RESIDENTIAL,Adult Social Care & Health,Other Private Contractors - Third Party,A56080
Royal Borough of Kingston,01/04/2024,90324048,"2,357.14",CHD CARE LTD,SOCIAL SERVICES RESIDENTIAL,Adult Social Care & Health,Other Private Contractors - Third Party,A56080
Royal Borough of Kingston,01/04/2024,90324049,"2,357.14",CHD CARE LTD,SOCIAL SERVICES RESIDENTIAL,Adult Social Care & Health,Other Private Contractors - Third Party,A56080
Royal Borough of Kingston,01/04/2024,90324050,"2,357.14",CHD CARE LTD,SOCIAL SERVICES RESIDENTIAL,Adult Social Care & Health,Other Private Contractors - Third Party,A56080
Royal Borough of Kingston,17/04/2024,70069773,666.96,CHESSINGTON SPORTS CENTRE,OPERATIONAL EQUIPMENT/MATERIAL,Adult Social Care & Health,"Grants, Contributions & Donations",A47005
Royal Borough of Kingston,04/04/2024,90318855,"14,625.00",CHILDS PLAY NURSERY SCHOOL LTD,ACADEMIC INSTNS - OTHER,Schools,PVI Providers,A60014
Royal Borough of Kingston,04/04/2024,90318972,"2,430.00",CHILDS PLAY NURSERY SCHOOL LTD,ACADEMIC INSTNS - OTHER,Schools,2 Yr Old Place Funding,A60000
Royal Borough of Kingston,01/03/2024,90323265,"-3,528.57",CHISWICK NURSING CENTRE,SOCIAL SERVICES RESIDENTIAL,Adult Social Care & Health,Independent Placements,A56006
Royal Borough of Kingston,01/04/2024,90327234,"3,633.90",CHISWICK NURSING CENTRE,SOCIAL SERVICES RESIDENTIAL,Adult Social Care & Health,Independent Placements,A56006
Royal Borough of Kingston,01/04/2024,90327235,"3,323.61",CHISWICK NURSING CENTRE,SOCIAL SERVICES RESIDENTIAL,Adult Social Care & Health,Independent Placements,A56006
Royal Borough of Kingston,01/04/2024,90323808,"8,539.41",CHOICE LTD,SOCIAL SERVICES RESIDENTIAL,Adult Social Care & Health,Independent Placements,A56006
Royal Borough of Kingston,01/04/2024,90323818,"7,545.51",CHOICE LTD,SOCIAL SERVICES RESIDENTIAL,Adult Social Care & Health,Independent Placements,A56006
Royal Borough of Kingston,04/04/2024,90318788,"164,975.21",CHRIST CHURCH  C. OF E.  PRIMARY SCHOOL (NEW MALDEN),SCHOOL FUNDS,Schools,Miscellaneous Expenses,A49000
Royal Borough of Kingston,04/04/2024,90318902,"17,437.50",CHRIST CHURCH  C. OF E.  PRIMARY SCHOOL (NEW MALDEN),SCHOOL FUNDS,Schools,Miscellaneous Expenses,A49000
Royal Borough of Kingston,04/04/2024,90318787,"172,478.22",CHRIST CHURCH C.OF E. PRIMARY SCHOOL - (SURBITON),ACADEMIC INSTNS - OTHER,Schools,Miscellaneous Expenses,A49000
Royal Borough of Kingston,25/03/2024,90319890,"1,408.19",CHRISTIES CARE LTD,SOCIAL SERVICES RESIDENTIAL,Adult Social Care & Health,Homecare - non - Framework - 24 hour care & live-in,A56166
Royal Borough of Kingston,25/03/2024,90319891,"1,316.40",CHRISTIES CARE LTD,SOCIAL SERVICES RESIDENTIAL,Adult Social Care & Health,Homecare - non - Framework - 24 hour care & live-in,A56166
Royal Borough of Kingston,25/03/2024,90319892,"1,369.70",CHRISTIES CARE LTD,SOCIAL SERVICES RESIDENTIAL,Adult Social Care & Health,Homecare - non - Framework - 24 hour care & live-in,A56166
Royal Borough of Kingston,25/03/2024,90319894,"1,321.65",CHRISTIES CARE LTD,SOCIAL SERVICES RESIDENTIAL,Adult Social Care & Health,Homecare - non - Framework - 24 hour care & live-in,A56166
Royal Borough of Kingston,01/04/2024,90322978,"1,408.19",CHRISTIES CARE LTD,SOCIAL SERVICES RESIDENTIAL,Adult Social Care & Health,Homecare - non - Framework - 24 hour care & live-in,A56166
Royal Borough of Kingston,01/04/2024,90322979,"1,316.40",CHRISTIES CARE LTD,SOCIAL SERVICES RESIDENTIAL,Adult Social Care & Health,Homecare - non - Framework - 24 hour care & live-in,A56166
Royal Borough of Kingston,01/04/2024,90322980,"1,369.70",CHRISTIES CARE LTD,SOCIAL SERVICES RESIDENTIAL,Adult Social Care & Health,Homecare - non - Framework - 24 hour care & live-in,A56166
Royal Borough of Kingston,01/04/2024,90322982,"1,321.65",CHRISTIES CARE LTD,SOCIAL SERVICES RESIDENTIAL,Adult Social Care & Health,Homecare - non - Framework - 24 hour care & live-in,A56166
Royal Borough of Kingston,08/04/2024,90325526,"1,408.19",CHRISTIES CARE LTD,SOCIAL SERVICES RESIDENTIAL,Adult Social Care & Health,Homecare - non - Framework - 24 hour care & live-in,A56166
Royal Borough of Kingston,08/04/2024,90325527,"1,316.40",CHRISTIES CARE LTD,SOCIAL SERVICES RESIDENTIAL,Adult Social Care & Health,Homecare - non - Framework - 24 hour care & live-in,A56166
Royal Borough of Kingston,08/04/2024,90325528,"1,369.70",CHRISTIES CARE LTD,SOCIAL SERVICES RESIDENTIAL,Adult Social Care & Health,Homecare - non - Framework - 24 hour care & live-in,A56166
Royal Borough of Kingston,08/04/2024,90325529,"1,321.65",CHRISTIES CARE LTD,SOCIAL SERVICES RESIDENTIAL,Adult Social Care & Health,Homecare - non - Framework - 24 hour care & live-in,A56166
Royal Borough of Kingston,15/04/2024,90328062,"1,408.19",CHRISTIES CARE LTD,SOCIAL SERVICES RESIDENTIAL,Adult Social Care & Health,Homecare - non - Framework - 24 hour care & live-in,A56166
Royal Borough of Kingston,15/04/2024,90328063,"1,316.40",CHRISTIES CARE LTD,SOCIAL SERVICES RESIDENTIAL,Adult Social Care & Health,Homecare - non - Framework - 24 hour care & live-in,A56166
Royal Borough of Kingston,15/04/2024,90328064,"1,369.70",CHRISTIES CARE LTD,SOCIAL SERVICES RESIDENTIAL,Adult Social Care & Health,Homecare - non - Framework - 24 hour care & live-in,A56166
Royal Borough of Kingston,15/04/2024,90328065,"1,321.65",CHRISTIES CARE LTD,SOCIAL SERVICES RESIDENTIAL,Adult Social Care & Health,Homecare - non - Framework - 24 hour care & live-in,A56166
Royal Borough of Kingston,12/04/2024,90321545,810.00,REDACTED - PERSONAL DATA,ACADEMIC INSTNS - OTHER,Schools,PVI Providers,A60014
Royal Borough of Kingston,10/04/2024,70069248,"21,750.00",REDACTED - PERSONAL DATA,SUNDRY SUPPLIER - FINANCE,Place,Property-Related Professional Fees,A20035
Royal Borough of Kingston,01/04/2024,70068680,"2,443.74",CITRON HYGIENE LIMITED,REFUSE COLLECTION / DISPOSAL,Place,Clinical Waste,A56054
Royal Borough of Kingston,09/04/2024,70069173,"3,250.00",CITY OF LONDON,CENTRAL & LOCAL GOVERNMENT,Adult Social Care & Health,Independent Placements,A56006
Royal Borough of Kingston,12/04/2024,70069401,"1,596.00",CITY OF LONDON,CENTRAL & LOCAL GOVERNMENT,Adult Social Care & Health,Independent Placements,A56006
Royal Borough of Kingston,18/03/2024,70069582,749.84,CITY OF LONDON,CENTRAL & LOCAL GOVERNMENT,Place,Professional Fees,A44066
Royal Borough of Kingston,11/04/2024,70069405,"120,331.40",CityAxis,CONSTRUCTION INDUSTRY,Place,Payments to Contractors,C14000
Royal Borough of Kingston,25/03/2024,70068499,709.56,CITYSPRINT (UK) LTD,OFFICE SERVICES,Corporate & Communities,Books,A43050
Royal Borough of Kingston,29/03/2024,70068689,"3,660.00",CIVICA UK LTD,BUSINESS & COMPUTER SYSTEMS,Corporate & Communities,Infrastructure Assets - Project Management,C12000
Royal Borough of Kingston,04/04/2024,90319050,"1,620.00",REDACTED - PERSONAL DATA,ACADEMIC INSTNS - OTHER,Schools,2 Yr Old Place Funding,A60000
Royal Borough of Kingston,04/04/2024,90319052,"1,620.00",REDACTED - PERSONAL DATA,ACADEMIC INSTNS - OTHER,Schools,2 Yr Old Place Funding,A60000
Royal Borough of Kingston,04/04/2024,90318859,"2,812.50",REDACTED - PERSONAL DATA,ACADEMIC INSTNS - OTHER,Schools,PVI Providers,A60014
Royal Borough of Kingston,04/04/2024,90318975,"1,620.00",REDACTED - PERSONAL DATA,ACADEMIC INSTNS - OTHER,Schools,2 Yr Old Place Funding,A60000
Royal Borough of Kingston,01/04/2024,90323538,"7,500.00",Claremont Care Services Ltd,SOCIAL SERVICES RESIDENTIAL,Adult Social Care & Health,Independent Placements,A56006
Royal Borough of Kingston,01/04/2024,90323660,"7,296.00",Claremont Care Services Ltd,SOCIAL SERVICES RESIDENTIAL,Adult Social Care & Health,Independent Placements,A56006
Royal Borough of Kingston,01/04/2024,90323661,"-6,840.00",Claremont Care Services Ltd,SOCIAL SERVICES RESIDENTIAL,Adult Social Care & Health,Independent Placements,A56006
Royal Borough of Kingston,01/04/2024,90323662,"13,680.00",Claremont Care Services Ltd,SOCIAL SERVICES RESIDENTIAL,Adult Social Care & Health,Independent Placements,A56006
Royal Borough of Kingston,01/04/2024,90323845,"8,953.59",CLEARWATER CARE (HACKNEY) LTD,SOCIAL SERVICES RESIDENTIAL,Adult Social Care & Health,Independent Placements,A56006
Royal Borough of Kingston,31/03/2024,70069447,"1,100.00",Clearway Environmental Services (UK) Ltd,CONSTRUCTION INDUSTRY,Place,Property-Related Professional Fees,A20035
Royal Borough of Kingston,01/04/2024,90326082,"6,418.89",CLIA Care Ltd,ACCOMMODATION - OTHER,Adult Social Care & Health,Personal Budget - Third Party,A61019
Royal Borough of Kingston,02/04/2024,90318451,"1,094.00",REDACTED - PERSONAL DATA,PLS LANDLORDS,Place,PSL Payments To Landlords,A22031
Royal Borough of Kingston,25/04/2024,90326507,"1,094.00",REDACTED - PERSONAL DATA,PLS LANDLORDS,Place,PSL Payments To Landlords,A22031
Royal Borough of Kingston,02/04/2024,90318282,"1,435.50",CLIQUE 187 LTD,PLS LANDLORDS,Place,PSL Payments To Landlords,A22031
Royal Borough of Kingston,25/04/2024,90326336,"1,435.50",CLIQUE 187 LTD,PLS LANDLORDS,Place,PSL Payments To Landlords,A22031
Royal Borough of Kingston,14/03/2024,70068684,"5,173.20",CLOSOMAT LIMITED,PREMISES - CLEANING & LAUNDRY,Housing Revenue Account,Disabled Adaptations,C20003
Royal Borough of Kingston,22/12/2023,70069346,"8,750.00",Cluttons LLP,LEGAL & PROFESSIONAL SERVICES,Housing Revenue Account,Professional Fees,A44066
Royal Borough of Kingston,01/04/2024,90325444,"5,592.00",CM CARE LTD,SOCIAL SERVICES RESIDENTIAL,Adult Social Care & Health,S-L non - framework - other support,A56159
Royal Borough of Kingston,01/04/2024,90325445,"5,991.43",CM CARE LTD,SOCIAL SERVICES RESIDENTIAL,Adult Social Care & Health,S-L non - framework - other support,A56159
Royal Borough of Kingston,01/04/2024,90325446,"6,191.14",CM CARE LTD,SOCIAL SERVICES RESIDENTIAL,Adult Social Care & Health,S-L non - framework - other support,A56159
Royal Borough of Kingston,01/04/2024,90325447,"6,191.14",CM CARE LTD,SOCIAL SERVICES RESIDENTIAL,Adult Social Care & Health,S-L non - framework - other support,A56159
Royal Borough of Kingston,01/04/2024,90325448,"5,791.71",CM CARE LTD,SOCIAL SERVICES RESIDENTIAL,Adult Social Care & Health,S-L non - framework - other support,A56159
Royal Borough of Kingston,01/04/2024,90325449,"6,191.14",CM CARE LTD,SOCIAL SERVICES RESIDENTIAL,Adult Social Care & Health,S-L non - framework - other support,A56159
Royal Borough of Kingston,01/04/2024,90325450,"5,991.43",CM CARE LTD,SOCIAL SERVICES RESIDENTIAL,Adult Social Care & Health,S-L non - framework - other support,A56159
Royal Borough of Kingston,01/04/2024,90325451,"11,423.72",CM CARE LTD,SOCIAL SERVICES RESIDENTIAL,Adult Social Care & Health,S-L non - framework - other support,A56159
Royal Borough of Kingston,01/04/2024,90325452,"12,239.70",CM CARE LTD,SOCIAL SERVICES RESIDENTIAL,Adult Social Care & Health,S-L non - framework - other support,A56159
Royal Borough of Kingston,01/04/2024,90325453,"3,902.71",CM CARE LTD,SOCIAL SERVICES RESIDENTIAL,Adult Social Care & Health,S-L non - framework - other support,A56159
Royal Borough of Kingston,01/04/2024,90325454,"5,499.27",CM CARE LTD,SOCIAL SERVICES RESIDENTIAL,Adult Social Care & Health,S-L non - framework - other support,A56159
Royal Borough of Kingston,01/04/2024,90325455,"5,499.27",CM CARE LTD,SOCIAL SERVICES RESIDENTIAL,Adult Social Care & Health,S-L non - framework - other support,A56159
Royal Borough of Kingston,01/04/2024,90325456,"5,144.48",CM CARE LTD,SOCIAL SERVICES RESIDENTIAL,Adult Social Care & Health,S-L non - framework - other support,A56159
Royal Borough of Kingston,01/04/2024,90325457,"5,499.27",CM CARE LTD,SOCIAL SERVICES RESIDENTIAL,Adult Social Care & Health,S-L non - framework - other support,A56159
Royal Borough of Kingston,01/04/2024,90325458,"5,321.87",CM CARE LTD,SOCIAL SERVICES RESIDENTIAL,Adult Social Care & Health,S-L non - framework - other support,A56159
Royal Borough of Kingston,01/04/2024,90325461,"4,364.29",CM CARE LTD,SOCIAL SERVICES RESIDENTIAL,Adult Social Care & Health,S-L non - framework - other support,A56159
Royal Borough of Kingston,01/04/2024,90325462,"5,035.71",CM CARE LTD,SOCIAL SERVICES RESIDENTIAL,Adult Social Care & Health,S-L non - framework - other support,A56159
Royal Borough of Kingston,01/04/2024,90325463,"5,203.57",CM CARE LTD,SOCIAL SERVICES RESIDENTIAL,Adult Social Care & Health,S-L non - framework - other support,A56159
Royal Borough of Kingston,01/04/2024,90325464,"5,203.57",CM CARE LTD,SOCIAL SERVICES RESIDENTIAL,Adult Social Care & Health,S-L non - framework - other support,A56159
Royal Borough of Kingston,01/04/2024,90325465,"4,867.86",CM CARE LTD,SOCIAL SERVICES RESIDENTIAL,Adult Social Care & Health,S-L non - framework - other support,A56159
Royal Borough of Kingston,01/04/2024,90325466,"5,203.57",CM CARE LTD,SOCIAL SERVICES RESIDENTIAL,Adult Social Care & Health,S-L non - framework - other support,A56159
Royal Borough of Kingston,01/04/2024,90325467,"5,035.71",CM CARE LTD,SOCIAL SERVICES RESIDENTIAL,Adult Social Care & Health,S-L non - framework - other support,A56159
Royal Borough of Kingston,01/04/2024,90326063,"-5,592.00",CM CARE LTD,SOCIAL SERVICES RESIDENTIAL,Adult Social Care & Health,Personal Budget - Third Party,A61019
Royal Borough of Kingston,01/04/2024,90326064,"-5,991.43",CM CARE LTD,SOCIAL SERVICES RESIDENTIAL,Adult Social Care & Health,Personal Budget - Third Party,A61019
Royal Borough of Kingston,01/04/2024,90326065,"-6,191.14",CM CARE LTD,SOCIAL SERVICES RESIDENTIAL,Adult Social Care & Health,Personal Budget - Third Party,A61019
Royal Borough of Kingston,01/04/2024,90326066,"-6,191.14",CM CARE LTD,SOCIAL SERVICES RESIDENTIAL,Adult Social Care & Health,Personal Budget - Third Party,A61019
Royal Borough of Kingston,01/04/2024,90326067,"-5,791.71",CM CARE LTD,SOCIAL SERVICES RESIDENTIAL,Adult Social Care & Health,Personal Budget - Third Party,A61019
Royal Borough of Kingston,01/04/2024,90326068,"-6,191.14",CM CARE LTD,SOCIAL SERVICES RESIDENTIAL,Adult Social Care & Health,Personal Budget - Third Party,A61019
Royal Borough of Kingston,01/04/2024,90326077,"-3,902.71",CM CARE LTD,SOCIAL SERVICES RESIDENTIAL,Adult Social Care & Health,Personal Budget - Third Party,A61019
Royal Borough of Kingston,01/04/2024,90326078,"-5,499.27",CM CARE LTD,SOCIAL SERVICES RESIDENTIAL,Adult Social Care & Health,Personal Budget - Third Party,A61019
Royal Borough of Kingston,01/04/2024,90326079,"-5,499.27",CM CARE LTD,SOCIAL SERVICES RESIDENTIAL,Adult Social Care & Health,Personal Budget - Third Party,A61019
Royal Borough of Kingston,01/04/2024,90326080,"-5,144.48",CM CARE LTD,SOCIAL SERVICES RESIDENTIAL,Adult Social Care & Health,Personal Budget - Third Party,A61019
Royal Borough of Kingston,01/04/2024,90326081,"-5,499.27",CM CARE LTD,SOCIAL SERVICES RESIDENTIAL,Adult Social Care & Health,Personal Budget - Third Party,A61019
Royal Borough of Kingston,01/04/2024,90326086,"-4,364.29",CM CARE LTD,SOCIAL SERVICES RESIDENTIAL,Adult Social Care & Health,Personal Budget - Third Party,A61019
Royal Borough of Kingston,01/04/2024,90326087,"-5,035.71",CM CARE LTD,SOCIAL SERVICES RESIDENTIAL,Adult Social Care & Health,Personal Budget - Third Party,A61019
Royal Borough of Kingston,01/04/2024,90326088,"-5,203.57",CM CARE LTD,SOCIAL SERVICES RESIDENTIAL,Adult Social Care & Health,Personal Budget - Third Party,A61019
Royal Borough of Kingston,01/04/2024,90326089,"-5,203.57",CM CARE LTD,SOCIAL SERVICES RESIDENTIAL,Adult Social Care & Health,Personal Budget - Third Party,A61019
Royal Borough of Kingston,01/04/2024,90326090,"-4,867.86",CM CARE LTD,SOCIAL SERVICES RESIDENTIAL,Adult Social Care & Health,Personal Budget - Third Party,A61019
Royal Borough of Kingston,01/04/2024,90326091,"-5,203.57",CM CARE LTD,SOCIAL SERVICES RESIDENTIAL,Adult Social Care & Health,Personal Budget - Third Party,A61019
Royal Borough of Kingston,01/04/2024,90325882,"5,623.29",CMG LIMITED,SOCIAL SERVICES - OTHER,Adult Social Care & Health,Personal Budget - Third Party,A61019
Royal Borough of Kingston,01/04/2024,90325883,"5,589.94",CMG LIMITED,SOCIAL SERVICES - OTHER,Adult Social Care & Health,Personal Budget - Third Party,A61019
Royal Borough of Kingston,01/04/2024,90325888,"6,137.96",CMG LIMITED,SOCIAL SERVICES - OTHER,Adult Social Care & Health,Personal Budget - Third Party,A61019
Royal Borough of Kingston,01/04/2024,90325895,945.26,CMG LIMITED,SOCIAL SERVICES - OTHER,Adult Social Care & Health,Personal Budget - Third Party,A61019
Royal Borough of Kingston,01/04/2024,90325896,"4,083.86",CMG LIMITED,SOCIAL SERVICES - OTHER,Adult Social Care & Health,Personal Budget - Third Party,A61019
Royal Borough of Kingston,01/04/2024,90325938,"4,871.57",CMG LIMITED,SOCIAL SERVICES - OTHER,Adult Social Care & Health,Personal Budget - Third Party,A61019
Royal Borough of Kingston,18/03/2024,90319321,567.24,CN Healthcare,SOCIAL SERVICES - OTHER,Adult Social Care & Health,Homecare - new framework,A56127
Royal Borough of Kingston,18/03/2024,90319362,630.27,CN Healthcare,SOCIAL SERVICES - OTHER,Adult Social Care & Health,Homecare - new framework,A56127
Royal Borough of Kingston,18/03/2024,90319482,693.29,CN Healthcare,SOCIAL SERVICES - OTHER,Adult Social Care & Health,Homecare - new framework,A56127
Royal Borough of Kingston,18/03/2024,90319589,504.21,CN Healthcare,SOCIAL SERVICES - OTHER,Adult Social Care & Health,Homecare - Framework - double-handed,A56131
Royal Borough of Kingston,18/03/2024,90319602,504.21,CN Healthcare,SOCIAL SERVICES - OTHER,Adult Social Care & Health,Homecare - Framework - double-handed,A56131
Royal Borough of Kingston,18/03/2024,90319857,567.24,CN Healthcare,SOCIAL SERVICES - OTHER,Adult Social Care & Health,Homecare - Framework - D2A,A56133
Royal Borough of Kingston,18/03/2024,90319874,630.35,CN Healthcare,SOCIAL SERVICES - OTHER,Adult Social Care & Health,Homecare - Framework - D2A,A56133
Royal Borough of Kingston,25/03/2024,90322266,567.24,CN Healthcare,SOCIAL SERVICES - OTHER,Adult Social Care & Health,Homecare - new framework,A56127
Royal Borough of Kingston,25/03/2024,90322306,630.27,CN Healthcare,SOCIAL SERVICES - OTHER,Adult Social Care & Health,Homecare - new framework,A56127
Royal Borough of Kingston,25/03/2024,90322469,693.29,CN Healthcare,SOCIAL SERVICES - OTHER,Adult Social Care & Health,Homecare - new framework,A56127
Royal Borough of Kingston,25/03/2024,90322557,504.21,CN Healthcare,SOCIAL SERVICES - OTHER,Adult Social Care & Health,Homecare - Framework - double-handed,A56131
Royal Borough of Kingston,25/03/2024,90322570,504.21,CN Healthcare,SOCIAL SERVICES - OTHER,Adult Social Care & Health,Homecare - Framework - double-handed,A56131
Royal Borough of Kingston,25/03/2024,90322934,567.24,CN Healthcare,SOCIAL SERVICES - OTHER,Adult Social Care & Health,Homecare - Framework - D2A,A56133
Royal Borough of Kingston,25/03/2024,90322941,504.21,CN Healthcare,SOCIAL SERVICES - OTHER,Adult Social Care & Health,Homecare - Framework - D2A,A56133
Royal Borough of Kingston,25/03/2024,90322956,630.35,CN Healthcare,SOCIAL SERVICES - OTHER,Adult Social Care & Health,Homecare - Framework - D2A,A56133
Royal Borough of Kingston,01/04/2024,90324373,595.60,CN Healthcare,SOCIAL SERVICES - OTHER,Adult Social Care & Health,Homecare - new framework,A56127
Royal Borough of Kingston,01/04/2024,90324429,661.78,CN Healthcare,SOCIAL SERVICES - OTHER,Adult Social Care & Health,Homecare - new framework,A56127
Royal Borough of Kingston,01/04/2024,90324580,727.96,CN Healthcare,SOCIAL SERVICES - OTHER,Adult Social Care & Health,Homecare - new framework,A56127
Royal Borough of Kingston,01/04/2024,90324726,529.43,CN Healthcare,SOCIAL SERVICES - OTHER,Adult Social Care & Health,Homecare - Framework - double-handed,A56131
Royal Borough of Kingston,01/04/2024,90324745,529.43,CN Healthcare,SOCIAL SERVICES - OTHER,Adult Social Care & Health,Homecare - Framework - double-handed,A56131
Royal Borough of Kingston,01/04/2024,90325064,576.70,CN Healthcare,SOCIAL SERVICES - OTHER,Adult Social Care & Health,Homecare - Framework - D2A,A56133
Royal Borough of Kingston,01/04/2024,90325119,661.85,CN Healthcare,SOCIAL SERVICES - OTHER,Adult Social Care & Health,Homecare - Framework - D2A,A56133
Royal Borough of Kingston,08/04/2024,90327525,595.60,CN Healthcare,SOCIAL SERVICES - OTHER,Adult Social Care & Health,Homecare - new framework,A56127
Royal Borough of Kingston,08/04/2024,90327565,661.78,CN Healthcare,SOCIAL SERVICES - OTHER,Adult Social Care & Health,Homecare - new framework,A56127
Royal Borough of Kingston,08/04/2024,90327674,727.96,CN Healthcare,SOCIAL SERVICES - OTHER,Adult Social Care & Health,Homecare - new framework,A56127
Royal Borough of Kingston,08/04/2024,90327771,529.43,CN Healthcare,SOCIAL SERVICES - OTHER,Adult Social Care & Health,Homecare - Framework - double-handed,A56131
Royal Borough of Kingston,08/04/2024,90327785,529.43,CN Healthcare,SOCIAL SERVICES - OTHER,Adult Social Care & Health,Homecare - Framework - double-handed,A56131
Royal Borough of Kingston,08/04/2024,90327871,529.42,CN Healthcare,SOCIAL SERVICES - OTHER,Adult Social Care & Health,Homecare - Framework - single - handed,A56132
Royal Borough of Kingston,08/04/2024,90327990,595.60,CN Healthcare,SOCIAL SERVICES - OTHER,Adult Social Care & Health,Homecare - Framework - D2A,A56133
Royal Borough of Kingston,08/04/2024,90328011,661.85,CN Healthcare,SOCIAL SERVICES - OTHER,Adult Social Care & Health,Homecare - Framework - D2A,A56133
Royal Borough of Kingston,19/04/2024,70069650,"49,250.00",Cognetix Limited,TEMP STAFF & CONSULTANCY,Place,External Fees and Consultants,C20000
Royal Borough of Kingston,02/04/2024,90318319,"1,215.00",REDACTED - PERSONAL DATA,PLS LANDLORDS,Place,PSL Payments To Landlords,A22031
Royal Borough of Kingston,02/04/2024,90318338,"1,094.00",REDACTED - PERSONAL DATA,PLS LANDLORDS,Place,PSL Payments To Landlords,A22031
Royal Borough of Kingston,25/04/2024,90326374,"1,215.00",REDACTED - PERSONAL DATA,PLS LANDLORDS,Place,PSL Payments To Landlords,A22031
Royal Borough of Kingston,25/04/2024,90326393,"1,094.00",REDACTED - PERSONAL DATA,PLS LANDLORDS,Place,PSL Payments To Landlords,A22031
Royal Borough of Kingston,30/03/2024,70069203,514.39,COMETT LIMITED,ENTERTAINMENTS INDUSTRY,Adult Social Care & Health,Consultancy Services - Other,A44065
Royal Borough of Kingston,01/04/2024,90324068,"1,434.38",COMFORT CARE SERVICES UK LTD,SOCIAL SERVICES-HOME CARE,Adult Social Care & Health,Supported Living - new framework,A56126
Royal Borough of Kingston,01/04/2024,90324069,"3,061.91",COMFORT CARE SERVICES UK LTD,SOCIAL SERVICES-HOME CARE,Adult Social Care & Health,Supported Living - new framework,A56126
Royal Borough of Kingston,01/04/2024,90324070,"2,843.10",COMFORT CARE SERVICES UK LTD,SOCIAL SERVICES-HOME CARE,Adult Social Care & Health,Supported Living - new framework,A56126
Royal Borough of Kingston,01/04/2024,90324072,"1,784.36",COMFORT CARE SERVICES UK LTD,SOCIAL SERVICES-HOME CARE,Adult Social Care & Health,Supported Living - new framework,A56126
Royal Borough of Kingston,01/04/2024,90324073,892.18,COMFORT CARE SERVICES UK LTD,SOCIAL SERVICES-HOME CARE,Adult Social Care & Health,Supported Living - new framework,A56126
Royal Borough of Kingston,01/04/2024,90324075,"1,784.36",COMFORT CARE SERVICES UK LTD,SOCIAL SERVICES-HOME CARE,Adult Social Care & Health,Supported Living - new framework,A56126
Royal Borough of Kingston,01/04/2024,90324076,892.18,COMFORT CARE SERVICES UK LTD,SOCIAL SERVICES-HOME CARE,Adult Social Care & Health,Supported Living - new framework,A56126
Royal Borough of Kingston,01/04/2024,90324124,"1,912.50",COMFORT CARE SERVICES UK LTD,SOCIAL SERVICES-HOME CARE,Adult Social Care & Health,Supported Living - new framework,A56126
Royal Borough of Kingston,01/04/2024,90324125,765.00,COMFORT CARE SERVICES UK LTD,SOCIAL SERVICES-HOME CARE,Adult Social Care & Health,Supported Living - new framework,A56126
Royal Borough of Kingston,01/04/2024,90324127,903.60,COMFORT CARE SERVICES UK LTD,SOCIAL SERVICES-HOME CARE,Adult Social Care & Health,Supported Living - new framework,A56126
Royal Borough of Kingston,01/04/2024,90324129,"1,784.36",COMFORT CARE SERVICES UK LTD,SOCIAL SERVICES-HOME CARE,Adult Social Care & Health,Supported Living - new framework,A56126
Royal Borough of Kingston,01/04/2024,90324130,892.18,COMFORT CARE SERVICES UK LTD,SOCIAL SERVICES-HOME CARE,Adult Social Care & Health,Supported Living - new framework,A56126
Royal Borough of Kingston,01/04/2024,90324131,573.69,COMFORT CARE SERVICES UK LTD,SOCIAL SERVICES-HOME CARE,Adult Social Care & Health,Supported Living - new framework,A56126
Royal Borough of Kingston,01/04/2024,90324132,"1,147.50",COMFORT CARE SERVICES UK LTD,SOCIAL SERVICES-HOME CARE,Adult Social Care & Health,Supported Living - new framework,A56126
Royal Borough of Kingston,01/04/2024,90324136,"1,784.36",COMFORT CARE SERVICES UK LTD,SOCIAL SERVICES-HOME CARE,Adult Social Care & Health,Supported Living - new framework,A56126
Royal Borough of Kingston,01/04/2024,90324137,892.18,COMFORT CARE SERVICES UK LTD,SOCIAL SERVICES-HOME CARE,Adult Social Care & Health,Supported Living - new framework,A56126
Royal Borough of Kingston,01/04/2024,90324139,"2,142.00",COMFORT CARE SERVICES UK LTD,SOCIAL SERVICES-HOME CARE,Adult Social Care & Health,Supported Living - new framework,A56126
Royal Borough of Kingston,01/04/2024,90324140,535.50,COMFORT CARE SERVICES UK LTD,SOCIAL SERVICES-HOME CARE,Adult Social Care & Health,Supported Living - new framework,A56126
Royal Borough of Kingston,01/04/2024,90324142,"1,784.36",COMFORT CARE SERVICES UK LTD,SOCIAL SERVICES-HOME CARE,Adult Social Care & Health,Supported Living - new framework,A56126
Royal Borough of Kingston,01/04/2024,90324143,892.18,COMFORT CARE SERVICES UK LTD,SOCIAL SERVICES-HOME CARE,Adult Social Care & Health,Supported Living - new framework,A56126
Royal Borough of Kingston,01/04/2024,90324146,855.00,COMFORT CARE SERVICES UK LTD,SOCIAL SERVICES-HOME CARE,Adult Social Care & Health,Supported Living - new framework,A56126
Royal Borough of Kingston,01/04/2024,90324147,"2,142.00",COMFORT CARE SERVICES UK LTD,SOCIAL SERVICES-HOME CARE,Adult Social Care & Health,Supported Living - new framework,A56126
Royal Borough of Kingston,01/04/2024,90324148,535.50,COMFORT CARE SERVICES UK LTD,SOCIAL SERVICES-HOME CARE,Adult Social Care & Health,Supported Living - new framework,A56126
Royal Borough of Kingston,01/04/2024,90324150,903.60,COMFORT CARE SERVICES UK LTD,SOCIAL SERVICES-HOME CARE,Adult Social Care & Health,Supported Living - new framework,A56126
Royal Borough of Kingston,01/04/2024,90324152,"1,784.36",COMFORT CARE SERVICES UK LTD,SOCIAL SERVICES-HOME CARE,Adult Social Care & Health,Supported Living - new framework,A56126
Royal Borough of Kingston,01/04/2024,90324153,892.18,COMFORT CARE SERVICES UK LTD,SOCIAL SERVICES-HOME CARE,Adult Social Care & Health,Supported Living - new framework,A56126
Royal Borough of Kingston,01/04/2024,90324155,"1,784.36",COMFORT CARE SERVICES UK LTD,SOCIAL SERVICES-HOME CARE,Adult Social Care & Health,Supported Living - new framework,A56126
Royal Borough of Kingston,01/04/2024,90324156,892.18,COMFORT CARE SERVICES UK LTD,SOCIAL SERVICES-HOME CARE,Adult Social Care & Health,Supported Living - new framework,A56126
Royal Borough of Kingston,01/04/2024,90324158,"1,784.36",COMFORT CARE SERVICES UK LTD,SOCIAL SERVICES-HOME CARE,Adult Social Care & Health,Supported Living - new framework,A56126
Royal Borough of Kingston,01/04/2024,90324159,892.18,COMFORT CARE SERVICES UK LTD,SOCIAL SERVICES-HOME CARE,Adult Social Care & Health,Supported Living - new framework,A56126
Royal Borough of Kingston,01/04/2024,90324161,"1,784.36",COMFORT CARE SERVICES UK LTD,SOCIAL SERVICES-HOME CARE,Adult Social Care & Health,Supported Living - new framework,A56126
Royal Borough of Kingston,01/04/2024,90324162,892.18,COMFORT CARE SERVICES UK LTD,SOCIAL SERVICES-HOME CARE,Adult Social Care & Health,Supported Living - new framework,A56126
Royal Borough of Kingston,01/04/2024,90324167,"1,784.36",COMFORT CARE SERVICES UK LTD,SOCIAL SERVICES-HOME CARE,Adult Social Care & Health,Supported Living - new framework,A56126
Royal Borough of Kingston,01/04/2024,90324168,892.18,COMFORT CARE SERVICES UK LTD,SOCIAL SERVICES-HOME CARE,Adult Social Care & Health,Supported Living - new framework,A56126
Royal Borough of Kingston,01/04/2024,90324170,"2,142.00",COMFORT CARE SERVICES UK LTD,SOCIAL SERVICES-HOME CARE,Adult Social Care & Health,Supported Living - new framework,A56126
Royal Borough of Kingston,01/04/2024,90324171,535.50,COMFORT CARE SERVICES UK LTD,SOCIAL SERVICES-HOME CARE,Adult Social Care & Health,Supported Living - new framework,A56126
Royal Borough of Kingston,01/04/2024,90324173,"2,142.00",COMFORT CARE SERVICES UK LTD,SOCIAL SERVICES-HOME CARE,Adult Social Care & Health,Supported Living - new framework,A56126
Royal Borough of Kingston,01/04/2024,90324174,535.50,COMFORT CARE SERVICES UK LTD,SOCIAL SERVICES-HOME CARE,Adult Social Care & Health,Supported Living - new framework,A56126
Royal Borough of Kingston,01/04/2024,90324175,573.69,COMFORT CARE SERVICES UK LTD,SOCIAL SERVICES-HOME CARE,Adult Social Care & Health,Supported Living - new framework,A56126
Royal Borough of Kingston,01/04/2024,90324176,"1,147.50",COMFORT CARE SERVICES UK LTD,SOCIAL SERVICES-HOME CARE,Adult Social Care & Health,Supported Living - new framework,A56126
Royal Borough of Kingston,01/04/2024,90324181,"1,784.36",COMFORT CARE SERVICES UK LTD,SOCIAL SERVICES-HOME CARE,Adult Social Care & Health,Supported Living - new framework,A56126
Royal Borough of Kingston,01/04/2024,90324182,892.18,COMFORT CARE SERVICES UK LTD,SOCIAL SERVICES-HOME CARE,Adult Social Care & Health,Supported Living - new framework,A56126
Royal Borough of Kingston,01/04/2024,90324185,"1,784.36",COMFORT CARE SERVICES UK LTD,SOCIAL SERVICES-HOME CARE,Adult Social Care & Health,Supported Living - new framework,A56126
Royal Borough of Kingston,01/04/2024,90324186,892.18,COMFORT CARE SERVICES UK LTD,SOCIAL SERVICES-HOME CARE,Adult Social Care & Health,Supported Living - new framework,A56126
Royal Borough of Kingston,01/04/2024,90325474,"2,106.78",COMFORT CARE SERVICES UK LTD,SOCIAL SERVICES-HOME CARE,Adult Social Care & Health,S-L non - framework - Managed Service - S - L,A56162
Royal Borough of Kingston,01/04/2024,90325475,"3,009.69",COMFORT CARE SERVICES UK LTD,SOCIAL SERVICES-HOME CARE,Adult Social Care & Health,S-L non - framework - Managed Service - S - L,A56162
Royal Borough of Kingston,01/04/2024,90325485,"2,032.71",COMFORT CARE SERVICES UK LTD,SOCIAL SERVICES-HOME CARE,Adult Social Care & Health,S-L non - framework - Managed Service - S - L,A56162
Royal Borough of Kingston,01/04/2024,90325486,"1,967.14",COMFORT CARE SERVICES UK LTD,SOCIAL SERVICES-HOME CARE,Adult Social Care & Health,S-L non - framework - Managed Service - S - L,A56162
Royal Borough of Kingston,01/04/2024,90325487,"2,032.71",COMFORT CARE SERVICES UK LTD,SOCIAL SERVICES-HOME CARE,Adult Social Care & Health,S-L non - framework - Managed Service - S - L,A56162
Royal Borough of Kingston,01/04/2024,90325488,"2,032.71",COMFORT CARE SERVICES UK LTD,SOCIAL SERVICES-HOME CARE,Adult Social Care & Health,S-L non - framework - Managed Service - S - L,A56162
Royal Borough of Kingston,01/04/2024,90325489,"1,967.14",COMFORT CARE SERVICES UK LTD,SOCIAL SERVICES-HOME CARE,Adult Social Care & Health,S-L non - framework - Managed Service - S - L,A56162
Royal Borough of Kingston,01/04/2024,90325490,"2,032.71",COMFORT CARE SERVICES UK LTD,SOCIAL SERVICES-HOME CARE,Adult Social Care & Health,S-L non - framework - Managed Service - S - L,A56162
Royal Borough of Kingston,01/04/2024,90325491,"1,967.14",COMFORT CARE SERVICES UK LTD,SOCIAL SERVICES-HOME CARE,Adult Social Care & Health,S-L non - framework - Managed Service - S - L,A56162
Royal Borough of Kingston,01/04/2024,90325492,"2,032.71",COMFORT CARE SERVICES UK LTD,SOCIAL SERVICES-HOME CARE,Adult Social Care & Health,S-L non - framework - Managed Service - S - L,A56162
Royal Borough of Kingston,01/04/2024,90325493,"2,032.71",COMFORT CARE SERVICES UK LTD,SOCIAL SERVICES-HOME CARE,Adult Social Care & Health,S-L non - framework - Managed Service - S - L,A56162
Royal Borough of Kingston,01/04/2024,90325494,"1,901.57",COMFORT CARE SERVICES UK LTD,SOCIAL SERVICES-HOME CARE,Adult Social Care & Health,S-L non - framework - Managed Service - S - L,A56162
Royal Borough of Kingston,01/04/2024,90325495,"2,032.71",COMFORT CARE SERVICES UK LTD,SOCIAL SERVICES-HOME CARE,Adult Social Care & Health,S-L non - framework - Managed Service - S - L,A56162
Royal Borough of Kingston,01/04/2024,90325496,"1,967.14",COMFORT CARE SERVICES UK LTD,SOCIAL SERVICES-HOME CARE,Adult Social Care & Health,S-L non - framework - Managed Service - S - L,A56162
Royal Borough of Kingston,01/04/2024,90325823,"1,095.48",COMFORT CARE SERVICES UK LTD,SOCIAL SERVICES-HOME CARE,Adult Social Care & Health,Personal Budget - Third Party,A61019
Royal Borough of Kingston,01/04/2024,90325824,"4,364.06",COMFORT CARE SERVICES UK LTD,SOCIAL SERVICES-HOME CARE,Adult Social Care & Health,Personal Budget - Third Party,A61019
Royal Borough of Kingston,01/04/2024,90325826,"1,059.84",COMFORT CARE SERVICES UK LTD,SOCIAL SERVICES-HOME CARE,Adult Social Care & Health,Personal Budget - Third Party,A61019
Royal Borough of Kingston,01/04/2024,90325828,935.15,COMFORT CARE SERVICES UK LTD,SOCIAL SERVICES-HOME CARE,Adult Social Care & Health,Personal Budget - Third Party,A61019
Royal Borough of Kingston,01/04/2024,90325829,"4,364.06",COMFORT CARE SERVICES UK LTD,SOCIAL SERVICES-HOME CARE,Adult Social Care & Health,Personal Budget - Third Party,A61019
Royal Borough of Kingston,01/04/2024,90325831,"1,059.84",COMFORT CARE SERVICES UK LTD,SOCIAL SERVICES-HOME CARE,Adult Social Care & Health,Personal Budget - Third Party,A61019
Royal Borough of Kingston,01/04/2024,90325837,"1,095.48",COMFORT CARE SERVICES UK LTD,SOCIAL SERVICES-HOME CARE,Adult Social Care & Health,Personal Budget - Third Party,A61019
Royal Borough of Kingston,01/04/2024,90325838,"4,364.06",COMFORT CARE SERVICES UK LTD,SOCIAL SERVICES-HOME CARE,Adult Social Care & Health,Personal Budget - Third Party,A61019
Royal Borough of Kingston,01/04/2024,90325840,"1,059.84",COMFORT CARE SERVICES UK LTD,SOCIAL SERVICES-HOME CARE,Adult Social Care & Health,Personal Budget - Third Party,A61019
Royal Borough of Kingston,01/04/2024,90325898,"1,442.84",COMFORT CARE SERVICES UK LTD,SOCIAL SERVICES-HOME CARE,Adult Social Care & Health,Personal Budget - Third Party,A61019
Royal Borough of Kingston,01/04/2024,90325899,"4,364.06",COMFORT CARE SERVICES UK LTD,SOCIAL SERVICES-HOME CARE,Adult Social Care & Health,Personal Budget - Third Party,A61019
Royal Borough of Kingston,01/04/2024,90325901,"1,059.84",COMFORT CARE SERVICES UK LTD,SOCIAL SERVICES-HOME CARE,Adult Social Care & Health,Personal Budget - Third Party,A61019
Royal Borough of Kingston,01/04/2024,90325910,"1,469.52",COMFORT CARE SERVICES UK LTD,SOCIAL SERVICES-HOME CARE,Adult Social Care & Health,Personal Budget - Third Party,A61019
Royal Borough of Kingston,01/04/2024,90325911,"4,364.06",COMFORT CARE SERVICES UK LTD,SOCIAL SERVICES-HOME CARE,Adult Social Care & Health,Personal Budget - Third Party,A61019
Royal Borough of Kingston,01/04/2024,90325913,"1,059.84",COMFORT CARE SERVICES UK LTD,SOCIAL SERVICES-HOME CARE,Adult Social Care & Health,Personal Budget - Third Party,A61019
Royal Borough of Kingston,01/04/2024,90325932,"1,549.67",COMFORT CARE SERVICES UK LTD,SOCIAL SERVICES-HOME CARE,Adult Social Care & Health,Personal Budget - Third Party,A61019
Royal Borough of Kingston,01/04/2024,90325933,"4,364.06",COMFORT CARE SERVICES UK LTD,SOCIAL SERVICES-HOME CARE,Adult Social Care & Health,Personal Budget - Third Party,A61019
Royal Borough of Kingston,01/04/2024,90325935,"1,059.84",COMFORT CARE SERVICES UK LTD,SOCIAL SERVICES-HOME CARE,Adult Social Care & Health,Personal Budget - Third Party,A61019
Royal Borough of Kingston,01/04/2024,90326055,"2,985.26",COMFORT CARE SERVICES UK LTD,SOCIAL SERVICES-HOME CARE,Adult Social Care & Health,Personal Budget - Third Party,A61019
Royal Borough of Kingston,02/04/2024,90318601,842.00,REDACTED - PERSONAL DATA,PLS LANDLORDS,Place,PSL Payments To Landlords,A22031
Royal Borough of Kingston,25/04/2024,90326658,842.00,REDACTED - PERSONAL DATA,PLS LANDLORDS,Place,PSL Payments To Landlords,A22031
Royal Borough of Kingston,04/04/2024,90318912,"19,125.00",COOMBE ACADEMY TRUST,SCHOOL FUNDS,Schools,Miscellaneous Expenses,A49000
Royal Borough of Kingston,04/04/2024,90318789,"119,812.38",COOMBE HILL INFANTS SCHOOL,SCHOOL FUNDS,Schools,Miscellaneous Expenses,A49000
Royal Borough of Kingston,04/04/2024,90318790,"158,112.67",COOMBE HILL JUNIOR SCHOOL,SCHOOL FUNDS,Schools,Miscellaneous Expenses,A49000
Royal Borough of Kingston,04/04/2024,90318791,"160,593.83",CORPUS CHRISTI CATHOLIC PRIMARY SCHOOL ,SCHOOL FUNDS,Schools,Miscellaneous Expenses,A49000
Royal Borough of Kingston,04/04/2024,90318903,"22,500.00",CORPUS CHRISTI CATHOLIC PRIMARY SCHOOL ,SCHOOL FUNDS,Schools,Miscellaneous Expenses,A49000
Royal Borough of Kingston,01/04/2024,90323293,"3,820.67",COUNTRY COURT CARE HOMES 2 LTD,SOCIAL SERVICES RESIDENTIAL,Adult Social Care & Health,Independent Placements,A56006
Royal Borough of Kingston,01/04/2024,90323427,"3,899.70",COUNTRY COURT CARE HOMES 2 LTD,SOCIAL SERVICES RESIDENTIAL,Adult Social Care & Health,Independent Placements,A56006
Royal Borough of Kingston,01/04/2024,90323432,"4,059.13",COUNTRY COURT CARE HOMES 2 LTD,SOCIAL SERVICES RESIDENTIAL,Adult Social Care & Health,Independent Placements,A56006
Royal Borough of Kingston,01/04/2024,90323461,"2,928.57",COUNTRY COURT CARE HOMES 2 LTD,SOCIAL SERVICES RESIDENTIAL,Adult Social Care & Health,Independent Placements,A56006
Royal Borough of Kingston,01/04/2024,90323462,"4,437.73",COUNTRY COURT CARE HOMES 2 LTD,SOCIAL SERVICES RESIDENTIAL,Adult Social Care & Health,Independent Placements,A56006
Royal Borough of Kingston,01/04/2024,90323590,"3,075.00",COUNTRY COURT CARE HOMES 2 LTD,SOCIAL SERVICES RESIDENTIAL,Adult Social Care & Health,Independent Placements,A56006
Royal Borough of Kingston,01/04/2024,90323591,"4,392.86",COUNTRY COURT CARE HOMES 2 LTD,SOCIAL SERVICES RESIDENTIAL,Adult Social Care & Health,Independent Placements,A56006
Royal Borough of Kingston,01/04/2024,90323655,"3,642.86",COUNTRY COURT CARE HOMES 2 LTD,SOCIAL SERVICES RESIDENTIAL,Adult Social Care & Health,Independent Placements,A56006
Royal Borough of Kingston,12/04/2024,70069726,"206,500.80",COUNTRYSIDE PROPERTIES (UK) LTD,CONSTRUCTION INDUSTRY,Housing Revenue Account,Payments to Contractors,C14000
Royal Borough of Kingston,12/04/2024,70069728,"445,020.73",COUNTRYSIDE PROPERTIES (UK) LTD,CONSTRUCTION INDUSTRY,Housing Revenue Account,Payments to Contractors,C14000
Royal Borough of Kingston,31/03/2024,70069122,"10,137.33",Countrystyle Recycling Limited,REFUSE COLLECTION / DISPOSAL,Corporate & Communities,Compostables,A56055
Royal Borough of Kingston,10/04/2024,70069327,"2,392.50",CRAVENCROFT LTD,CONSTRUCTION INDUSTRY,Place,Payments to Contractors,C14000
Royal Borough of Kingston,10/04/2024,70069328,"3,897.35",CRAVENCROFT LTD,CONSTRUCTION INDUSTRY,Place,Payments to Contractors,C14000
Royal Borough of Kingston,31/03/2024,70068816,475.00,CREATIVE YOUTH,GRANTS & EX GRATIA PAYMENTS,Place,Hospitality,A46020
Royal Borough of Kingston,05/04/2024,70069075,"1,349.50",Credence Direct Limited,TEMP STAFF & CONSULTANCY,Adult Social Care & Health,Other Private Contractors - Third Party,A56080
Royal Borough of Kingston,29/02/2024,70068910,"2,755.00",CROMWOOD LIMITED,PLS LANDLORDS,Place,Bed & Breakfast,A56000
Royal Borough of Kingston,20/03/2024,70068911,"2,945.00",CROMWOOD LIMITED,PLS LANDLORDS,Place,Bed & Breakfast,A56000
Royal Borough of Kingston,02/04/2024,90318358,"2,144.08",CROMWOOD LIMITED,PLS LANDLORDS,Place,PSL Payments To Landlords,A22031
Royal Borough of Kingston,25/04/2024,90326414,"2,144.08",CROMWOOD LIMITED,PLS LANDLORDS,Place,PSL Payments To Landlords,A22031
Royal Borough of Kingston,31/03/2024,70069247,640.00,CROWN PROMOTIONS & REMOVALS LTD,PREMISES - REMOVALS,Housing Revenue Account,Removal Services,A44075
Royal Borough of Kingston,31/03/2024,70069278,560.00,CROWN PROMOTIONS & REMOVALS LTD,PREMISES - REMOVALS,Place,Removal Services,A44075
Royal Borough of Kingston,31/03/2024,70069279,540.00,CROWN PROMOTIONS & REMOVALS LTD,PREMISES - REMOVALS,Housing Revenue Account,Removal Services,A44075
Royal Borough of Kingston,26/03/2024,70068669,"657,645.16",LONDON BOROUGH OF CROYDON,CENTRAL & LOCAL GOVERNMENT,Corporate & Communities,Waste Disposal Contract,A56074
Royal Borough of Kingston,26/04/2024,70069183,"124,576.02",LONDON BOROUGH OF CROYDON,CENTRAL & LOCAL GOVERNMENT,Corporate & Communities,Contract Cleaning,A27010
Royal Borough of Kingston,26/03/2024,70069221,"-24,368.00",LONDON BOROUGH OF CROYDON,CENTRAL & LOCAL GOVERNMENT,SLWP,Waste Management Strategy,A44090
Royal Borough of Kingston,10/04/2024,70069525,"268,214.10",LONDON BOROUGH OF CROYDON,CENTRAL & LOCAL GOVERNMENT,Corporate & Communities,Waste Disposal Contract,A56074
Royal Borough of Kingston,11/04/2024,70069526,"58,474.80",LONDON BOROUGH OF CROYDON,CENTRAL & LOCAL GOVERNMENT,Place,Payments to Voluntary Organisations,A54005
Royal Borough of Kingston,28/03/2024,70068914,"13,857.00",CRYSTAL & CO,ACCOMMODATION BED & BREAKFAST,Place,Bed & Breakfast,A56000
Royal Borough of Kingston,28/03/2024,70068914,"13,272.00",CRYSTAL & CO,ACCOMMODATION BED & BREAKFAST,Place,Bed & Breakfast,A56000
Royal Borough of Kingston,04/04/2024,90318907,"19,125.00",KNOLLMEAD PRIMARY SCHOOL,SCHOOL FUNDS,Schools,Miscellaneous Expenses,A49000
Royal Borough of Kingston,31/03/2024,70068825,600.00,CUBE CONTENT GOVERNANCE LIMITED,TRAINING,Corporate & Communities,Infrastructure Assets - Project Management,C12000
Royal Borough of Kingston,02/04/2024,90318440,"1,317.00",REDACTED - PERSONAL DATA,PLS LANDLORDS,Place,PSL Payments To Landlords,A22031
Royal Borough of Kingston,25/04/2024,90326496,"1,317.00",REDACTED - PERSONAL DATA,PLS LANDLORDS,Place,PSL Payments To Landlords,A22031
Royal Borough of Kingston,19/12/2023,70068430,"1,525.00",D & L House Clearance Limited,BUILDING MNTCE - SERVICES,Housing Revenue Account,Miscellaneous Expenses,A49000
Royal Borough of Kingston,31/03/2024,70068844,"1,986.00",D & L House Clearance Limited,BUILDING MNTCE - SERVICES,Place,Grants Given For Capital Purposes,C20004
Royal Borough of Kingston,11/04/2024,70069593,"1,998.00",D & L House Clearance Limited,BUILDING MNTCE - SERVICES,Place,Grants Given For Capital Purposes,C20004
Royal Borough of Kingston,21/03/2024,70069614,"2,325.00",D & L House Clearance Limited,BUILDING MNTCE - SERVICES,Adult Social Care & Health,Other Cleaning And Waste-Related Third Party Payment,A56064
Royal Borough of Kingston,02/04/2024,90318507,"1,321.66",REDACTED - PERSONAL DATA,PLS LANDLORDS,Place,PSL Payments To Landlords,A22031
Royal Borough of Kingston,25/04/2024,90326563,"1,321.66",REDACTED - PERSONAL DATA,PLS LANDLORDS,Place,PSL Payments To Landlords,A22031
Royal Borough of Kingston,04/04/2024,90318924,"1,406.25",REDACTED - PERSONAL DATA,ACADEMIC INSTNS - OTHER,Schools,PVI Providers,A60014
Royal Borough of Kingston,04/04/2024,90319022,810.00,REDACTED - PERSONAL DATA,ACADEMIC INSTNS - OTHER,Schools,2 Yr Old Place Funding,A60000
Royal Borough of Kingston,01/04/2024,90326069,"5,345.23",Daniels Care ltd,SOCIAL SERVICES RESIDENTIAL,Adult Social Care & Health,Personal Budget - Third Party,A61019
Royal Borough of Kingston,01/04/2024,90325473,"2,662.50",Darethealthcare UK Limited,ACCOMMODATION - OTHER,Adult Social Care & Health,S-L non - framework - Managed Service - S - L,A56162
Royal Borough of Kingston,01/04/2024,90325565,"2,785.59",Darethealthcare UK Limited,ACCOMMODATION - OTHER,Adult Social Care & Health,Personal Budget - Third Party,A61019
Royal Borough of Kingston,01/04/2024,90326085,"3,100.50",Darethealthcare UK Limited,ACCOMMODATION - OTHER,Adult Social Care & Health,Personal Budget - Third Party,A61019
Royal Borough of Kingston,02/04/2024,90318720,500.00,REDACTED - PERSONAL DATA,GRANTS & EX GRATIA PAYMENTS,Adult Social Care & Health,"Grants, Contributions & Donations",A47005
Royal Borough of Kingston,02/04/2024,90318768,500.00,REDACTED - PERSONAL DATA,GRANTS & EX GRATIA PAYMENTS,Adult Social Care & Health,"Grants, Contributions & Donations",A47005
Royal Borough of Kingston,02/04/2024,90318258,"1,314.00",REDACTED - PERSONAL DATA,PLS LANDLORDS,Place,PSL Payments To Landlords,A22031
Royal Borough of Kingston,25/04/2024,90326312,"1,314.00",REDACTED - PERSONAL DATA,PLS LANDLORDS,Place,PSL Payments To Landlords,A22031
Royal Borough of Kingston,02/04/2024,90318724,500.00,REDACTED - PERSONAL DATA,CHARITIES & VOLUNTARY ORGNS,Adult Social Care & Health,"Grants, Contributions & Donations",A47005
Royal Borough of Kingston,11/04/2024,70069392,337.50,REDACTED - PERSONAL DATA,SUNDRY SUPPLIER - FINANCE,Corporate & Communities,Leadership Development,A15023
Royal Borough of Kingston,11/04/2024,70069392,412.50,REDACTED - PERSONAL DATA,SUNDRY SUPPLIER - FINANCE,Corporate & Communities,Leadership Development,A15023
Royal Borough of Kingston,30/09/2023,70069135,522.40,Day Lewis Plc,TCES RETAILERS (PHARMACYS),Adult Social Care & Health,Other Private Contractors - Third Party,A56080
Royal Borough of Kingston,02/04/2024,90318504,"1,094.00",REDACTED - PERSONAL DATA,PLS LANDLORDS,Place,PSL Payments To Landlords,A22031
Royal Borough of Kingston,25/04/2024,90326560,"1,094.00",REDACTED - PERSONAL DATA,PLS LANDLORDS,Place,PSL Payments To Landlords,A22031
Royal Borough of Kingston,02/04/2024,90318595,"1,000.00",REDACTED - PERSONAL DATA,PLS LANDLORDS,Place,PSL Payments To Landlords,A22031
Royal Borough of Kingston,25/04/2024,90326652,"1,000.00",REDACTED - PERSONAL DATA,PLS LANDLORDS,Place,PSL Payments To Landlords,A22031
Royal Borough of Kingston,02/04/2024,90318726,500.00,REDACTED - PERSONAL DATA,GRANTS & EX GRATIA PAYMENTS,Adult Social Care & Health,"Grants, Contributions & Donations",A47005
Royal Borough of Kingston,02/04/2024,90318725,550.00,REDACTED - PERSONAL DATA,CHARITIES & VOLUNTARY ORGNS,Adult Social Care & Health,"Grants, Contributions & Donations",A47005
Royal Borough of Kingston,02/04/2024,90318525,"1,094.00",REDACTED - PERSONAL DATA,PLS LANDLORDS,Place,PSL Payments To Landlords,A22031
Royal Borough of Kingston,25/04/2024,90326581,"1,094.00",REDACTED - PERSONAL DATA,PLS LANDLORDS,Place,PSL Payments To Landlords,A22031
Royal Borough of Kingston,25/04/2024,70070015,"3,777.43",Defence Infrastructure Organisation (MOD),GRANTS & EX GRATIA PAYMENTS,Place,PSL Payments To Landlords,A22031
Royal Borough of Kingston,25/04/2024,70070019,"3,607.36",Defence Infrastructure Organisation (MOD),GRANTS & EX GRATIA PAYMENTS,Place,PSL Payments To Landlords,A22031
Royal Borough of Kingston,10/04/2024,70069323,"1,600.00",Delco Safety Limited,TEMP STAFF & CONSULTANCY,Housing Revenue Account,Council Dwellings - Fire Safety,C10004
Royal Borough of Kingston,11/04/2024,70069407,"1,200.00",Delco Safety Limited,TEMP STAFF & CONSULTANCY,Housing Revenue Account,Council Dwellings - Fire Safety,C10004
Royal Borough of Kingston,11/04/2024,70069409,"3,700.00",Delco Safety Limited,TEMP STAFF & CONSULTANCY,Housing Revenue Account,Council Dwellings - Fire Safety,C10004
Royal Borough of Kingston,11/04/2024,70069410,800.00,Delco Safety Limited,TEMP STAFF & CONSULTANCY,Housing Revenue Account,Council Dwellings - Fire Safety,C10004
Royal Borough of Kingston,22/04/2024,70069759,"1,220.00",Delco Safety Limited,TEMP STAFF & CONSULTANCY,Housing Revenue Account,Council Dwellings - Fire Safety,C10004
Royal Borough of Kingston,22/04/2024,70069761,"1,170.00",Delco Safety Limited,TEMP STAFF & CONSULTANCY,Housing Revenue Account,Council Dwellings - Fire Safety,C10004
Royal Borough of Kingston,22/04/2024,70069762,"1,210.00",Delco Safety Limited,TEMP STAFF & CONSULTANCY,Housing Revenue Account,Council Dwellings - Fire Safety,C10004
Royal Borough of Kingston,22/04/2024,70069763,"1,210.00",Delco Safety Limited,TEMP STAFF & CONSULTANCY,Housing Revenue Account,Council Dwellings - Fire Safety,C10004
Royal Borough of Kingston,25/04/2024,70070078,750.00,Delib Ltd,TRAINING,Corporate & Communities,Staff Development And Training,A15022
Royal Borough of Kingston,01/04/2024,70068918,"51,336.00",Delta Wise Limited,ACCOMMODATION BED & BREAKFAST,Place,Bed & Breakfast,A56000
Royal Borough of Kingston,19/03/2024,70070023,"1,500.00",DENTONS UK & MIDDLE EAST LLP,LEGAL & PROFESSIONAL SERVICES,Place,Payments to Contractors,C14000
Royal Borough of Kingston,01/01/2024,90325388,"4,264.00",Dephinus Healthcare Ltd,ACCOMMODATION - OTHER,Adult Social Care & Health,S-L framework - Accom - nights hours,A56151
Royal Borough of Kingston,01/01/2024,90325459,"5,982.86",Dephinus Healthcare Ltd,ACCOMMODATION - OTHER,Adult Social Care & Health,S-L non - framework - other support,A56159
Royal Borough of Kingston,01/01/2024,90325460,"17,350.29",Dephinus Healthcare Ltd,ACCOMMODATION - OTHER,Adult Social Care & Health,S-L non - framework - other support,A56159
Royal Borough of Kingston,01/04/2024,90326071,"7,551.60",Dephinus Healthcare Ltd,ACCOMMODATION - OTHER,Adult Social Care & Health,Personal Budget - Third Party,A61019
Royal Borough of Kingston,01/04/2024,90326072,"6,975.00",Dephinus Healthcare Ltd,ACCOMMODATION - OTHER,Adult Social Care & Health,Personal Budget - Third Party,A61019
Royal Borough of Kingston,01/04/2024,90326073,"-9,608.57",Dephinus Healthcare Ltd,ACCOMMODATION - OTHER,Adult Social Care & Health,Personal Budget - Third Party,A61019
Royal Borough of Kingston,01/04/2024,90326111,"5,985.43",Dephinus Healthcare Ltd,ACCOMMODATION - OTHER,Adult Social Care & Health,Personal Budget - Third Party,A61019
Royal Borough of Kingston,02/04/2024,90318727,550.00,REDACTED - PERSONAL DATA,GRANTS & EX GRATIA PAYMENTS,Adult Social Care & Health,"Grants, Contributions & Donations",A47005
Royal Borough of Kingston,28/02/2024,70066070,"4,609.10",Design South East,TEMP STAFF & CONSULTANCY,Place,Professional Fees,A44066
Royal Borough of Kingston,15/03/2024,70067414,"3,201.69",Design South East,TEMP STAFF & CONSULTANCY,Place,Professional Fees,A44066
Royal Borough of Kingston,20/03/2024,70068026,"4,609.10",Design South East,TEMP STAFF & CONSULTANCY,Place,Professional Fees,A44066
Royal Borough of Kingston,02/04/2024,70068751,"1,150.00",DEXTERS LIMITED,LANDLORDS,Adult Social Care & Health,Building Rents,A22005
Royal Borough of Kingston,02/04/2024,90318252,"1,321.00",REDACTED - PERSONAL DATA,PLS LANDLORDS,Place,PSL Payments To Landlords,A22031
Royal Borough of Kingston,25/04/2024,90326306,"1,321.00",REDACTED - PERSONAL DATA,PLS LANDLORDS,Place,PSL Payments To Landlords,A22031
Royal Borough of Kingston,04/04/2024,90318847,"45,562.50",DICKY BIRDS PRE SCHOOL NURSERIES LTD,ACADEMIC INSTNS - OTHER,Schools,PVI Providers,A60014
Royal Borough of Kingston,04/04/2024,90318875,"30,525.00",DICKY BIRDS PRE SCHOOL NURSERIES LTD,ACADEMIC INSTNS - OTHER,Schools,PVI Providers,A60014
Royal Borough of Kingston,04/04/2024,90318937,"17,325.00",DICKY BIRDS PRE SCHOOL NURSERIES LTD,ACADEMIC INSTNS - OTHER,Schools,PVI Providers,A60014
Royal Borough of Kingston,04/04/2024,90318963,"9,720.00",DICKY BIRDS PRE SCHOOL NURSERIES LTD,ACADEMIC INSTNS - OTHER,Schools,2 Yr Old Place Funding,A60000
Royal Borough of Kingston,04/04/2024,90318989,"10,692.00",DICKY BIRDS PRE SCHOOL NURSERIES LTD,ACADEMIC INSTNS - OTHER,Schools,2 Yr Old Place Funding,A60000
Royal Borough of Kingston,04/04/2024,90319034,"5,346.00",DICKY BIRDS PRE SCHOOL NURSERIES LTD,ACADEMIC INSTNS - OTHER,Schools,2 Yr Old Place Funding,A60000
Royal Borough of Kingston,02/04/2024,90318728,500.00,REDACTED - PERSONAL DATA,GRANTS & EX GRATIA PAYMENTS,Adult Social Care & Health,"Grants, Contributions & Donations",A47005
Royal Borough of Kingston,31/03/2024,70068886,"15,946.00",DISCLOSURE AND BARRING SERVICE,LEGAL & PROFESSIONAL SERVICES,Corporate & Communities,DBS Checks,A15029
Royal Borough of Kingston,02/04/2024,90318574,"1,333.33",REDACTED - PERSONAL DATA,PLS LANDLORDS,Place,PSL Payments To Landlords,A22031
Royal Borough of Kingston,02/04/2024,90318575,"1,000.00",REDACTED - PERSONAL DATA,PLS LANDLORDS,Place,PSL Payments To Landlords,A22031
Royal Borough of Kingston,25/04/2024,90326630,"1,333.33",REDACTED - PERSONAL DATA,PLS LANDLORDS,Place,PSL Payments To Landlords,A22031
Royal Borough of Kingston,25/04/2024,90326631,"1,000.00",REDACTED - PERSONAL DATA,PLS LANDLORDS,Place,PSL Payments To Landlords,A22031
Royal Borough of Kingston,22/04/2024,70069974,"2,723.48",DMA SIGNS LTD,BUILDING MNTCE - SERVICES,Housing Revenue Account,Notices And Signs,C20021
Royal Borough of Kingston,27/03/2024,70068848,"2,915.00",DOLPHIN MOBILITY LIMITED,CONSTRUCTION INDUSTRY,Place,Grants Given For Capital Purposes,C20004
Royal Borough of Kingston,11/04/2024,70069398,"5,738.00",DOLPHIN MOBILITY LIMITED,CONSTRUCTION INDUSTRY,Housing Revenue Account,Disabled Adaptations,C20003
Royal Borough of Kingston,11/04/2024,70069560,"6,515.00",DOLPHIN MOBILITY LIMITED,CONSTRUCTION INDUSTRY,Place,Grants Given For Capital Purposes,C20004
Royal Borough of Kingston,27/03/2024,70069594,"6,354.00",DOLPHIN MOBILITY LIMITED,CONSTRUCTION INDUSTRY,Place,Grants Given For Capital Purposes,C20004
Royal Borough of Kingston,12/04/2024,70069649,"6,430.00",DOLPHIN MOBILITY LIMITED,CONSTRUCTION INDUSTRY,Place,Grants Given For Capital Purposes,C20004
Royal Borough of Kingston,18/04/2024,70069667,"6,655.00",DOLPHIN MOBILITY LIMITED,CONSTRUCTION INDUSTRY,Place,Grants Given For Capital Purposes,C20004
Royal Borough of Kingston,17/04/2024,70069772,"3,605.00",DOLPHIN MOBILITY LIMITED,CONSTRUCTION INDUSTRY,Housing Revenue Account,Disabled Adaptations,C20003
Royal Borough of Kingston,17/04/2024,70069774,"6,920.00",DOLPHIN MOBILITY LIMITED,CONSTRUCTION INDUSTRY,Housing Revenue Account,Disabled Adaptations,C20003
Royal Borough of Kingston,12/12/2023,70069884,"5,455.00",DOLPHIN MOBILITY LIMITED,CONSTRUCTION INDUSTRY,Place,Grants Given For Capital Purposes,C20004
Royal Borough of Kingston,04/04/2024,90318977,"1,620.00",REDACTED - PERSONAL DATA,ACADEMIC INSTNS - OTHER,Schools,2 Yr Old Place Funding,A60000
Royal Borough of Kingston,02/04/2024,90318643,506.25,DORIS VENNER PRE-SCHOOL,ACADEMIC INSTNS - OTHER,Schools,PVI Providers,A60014
Royal Borough of Kingston,02/04/2024,90318683,616.00,DORIS VENNER PRE-SCHOOL,ACADEMIC INSTNS - OTHER,Schools,Early Years Contingency,A60030
Royal Borough of Kingston,04/04/2024,90318868,"21,056.10",DORIS VENNER PRE-SCHOOL,ACADEMIC INSTNS - OTHER,Schools,PVI Providers,A60014
Royal Borough of Kingston,04/04/2024,90318981,"8,100.00",DORIS VENNER PRE-SCHOOL,ACADEMIC INSTNS - OTHER,Schools,2 Yr Old Place Funding,A60000
Royal Borough of Kingston,30/04/2024,70070360,"5,160.00",DOTTED EYES LTD,BUSINESS & COMPUTER SYSTEMS,Corporate & Communities,IT Software Maintenance,A45045
Royal Borough of Kingston,02/04/2024,90318257,"1,675.00",REDACTED - PERSONAL DATA,PLS LANDLORDS,Place,PSL Payments To Landlords,A22031
Royal Borough of Kingston,02/04/2024,90318545,"1,314.00",REDACTED - PERSONAL DATA,PLS LANDLORDS,Place,PSL Payments To Landlords,A22031
Royal Borough of Kingston,25/04/2024,90326311,"1,675.00",REDACTED - PERSONAL DATA,PLS LANDLORDS,Place,PSL Payments To Landlords,A22031
Royal Borough of Kingston,25/04/2024,90326601,"1,314.00",REDACTED - PERSONAL DATA,PLS LANDLORDS,Place,PSL Payments To Landlords,A22031
Royal Borough of Kingston,02/04/2024,90318380,"1,090.00",REDACTED - PERSONAL DATA,PLS LANDLORDS,Place,PSL Payments To Landlords,A22031
Royal Borough of Kingston,25/04/2024,90326436,"1,090.00",REDACTED - PERSONAL DATA,PLS LANDLORDS,Place,PSL Payments To Landlords,A22031
Royal Borough of Kingston,02/04/2024,90318238,"1,314.00",REDACTED - PERSONAL DATA,PLS LANDLORDS,Place,PSL Payments To Landlords,A22031
Royal Borough of Kingston,25/04/2024,90326292,"1,314.00",REDACTED - PERSONAL DATA,PLS LANDLORDS,Place,PSL Payments To Landlords,A22031
Royal Borough of Kingston,02/04/2024,90318535,"1,094.00",REDACTED - PERSONAL DATA,PLS LANDLORDS,Place,PSL Payments To Landlords,A22031
Royal Borough of Kingston,25/04/2024,90326591,"1,094.00",REDACTED - PERSONAL DATA,PLS LANDLORDS,Place,PSL Payments To Landlords,A22031
Royal Borough of Kingston,09/04/2024,70069227,"5,400.00",Driscoll Kingston & Co Ltd ,SUNDRY SUPPLIER - FINANCE,Housing Revenue Account,Legal Services,A44025
Royal Borough of Kingston,31/03/2024,70068735,"1,705.00",Dunheved Hotel LTD,ACCOMMODATION BED & BREAKFAST,Place,Bed & Breakfast,A56000
Royal Borough of Kingston,31/03/2024,70068993,"14,860.12",DURADIAMOND HEALTHCARE LIMITED,LEGAL & PROFESSIONAL SERVICES,Corporate & Communities,Other Private Contractors - Third Party,A56080
Royal Borough of Kingston,04/04/2024,90318852,"1,500.00",REDACTED - PERSONAL DATA,SCHOOL FUNDS,Schools,PVI Providers,A60014
Royal Borough of Kingston,04/04/2024,90318948,"1,125.00",REDACTED - PERSONAL DATA,SCHOOL FUNDS,Schools,PVI Providers,A60014
Royal Borough of Kingston,02/04/2024,90318401,"1,094.00",EARLSFIELD PROPERTIES,PLS LANDLORDS,Place,PSL Payments To Landlords,A22031
Royal Borough of Kingston,02/04/2024,90318402,"1,094.00",EARLSFIELD PROPERTIES,PLS LANDLORDS,Place,PSL Payments To Landlords,A22031
Royal Borough of Kingston,02/04/2024,90318621,"1,047.00",EARLSFIELD PROPERTIES,PLS LANDLORDS,Place,PSL Payments To Landlords,A22031
Royal Borough of Kingston,25/04/2024,90326262,"1,047.00",EARLSFIELD PROPERTIES,PLS LANDLORDS,Place,PSL Payments To Landlords,A22031
Royal Borough of Kingston,25/04/2024,90326457,"1,094.00",EARLSFIELD PROPERTIES,PLS LANDLORDS,Place,PSL Payments To Landlords,A22031
Royal Borough of Kingston,25/04/2024,90326458,"1,094.00",EARLSFIELD PROPERTIES,PLS LANDLORDS,Place,PSL Payments To Landlords,A22031
Royal Borough of Kingston,22/03/2024,70068525,567.67,EDF ENERGY CUSTOMER PLC,UTILITIES,Housing Revenue Account,Electricity,A21000
Royal Borough of Kingston,04/04/2024,90318887,"2,812.50",EDUCARE SMALL SCHOOL LTD,ACADEMIC INSTNS - OTHER,Schools,PVI Providers,A60014
Royal Borough of Kingston,02/04/2024,90318270,"1,050.00",REDACTED - PERSONAL DATA,PLS LANDLORDS,Place,PSL Payments To Landlords,A22031
Royal Borough of Kingston,02/04/2024,90318288,"1,200.00",REDACTED - PERSONAL DATA,PLS LANDLORDS,Place,PSL Payments To Landlords,A22031
Royal Borough of Kingston,25/04/2024,90326324,"1,050.00",REDACTED - PERSONAL DATA,PLS LANDLORDS,Place,PSL Payments To Landlords,A22031
Royal Borough of Kingston,25/04/2024,90326342,"1,200.00",REDACTED - PERSONAL DATA,PLS LANDLORDS,Place,PSL Payments To Landlords,A22031
Royal Borough of Kingston,23/04/2024,70070418,"1,379.33",EGTON MEDICAL INFORMATION SYSTEMS LTD,MANAGEMENT & TRAINING SERVICES,Adult Social Care & Health,Registration & Licence Fees Payable,A44267
Royal Borough of Kingston,02/04/2024,90318729,500.00,REDACTED - PERSONAL DATA,CHARITIES & VOLUNTARY ORGNS,Adult Social Care & Health,"Grants, Contributions & Donations",A47005
Royal Borough of Kingston,02/04/2024,90318730,500.00,REDACTED - PERSONAL DATA,CHARITIES & VOLUNTARY ORGNS,Adult Social Care & Health,"Grants, Contributions & Donations",A47005
Royal Borough of Kingston,02/04/2024,90318635,"8,305.50",ELLINGHAM PRIMARY SCHOOL,SCHOOL FUNDS,Schools,Miscellaneous Expenses,A49000
Royal Borough of Kingston,04/04/2024,90318904,"9,000.00",ELLINGHAM PRIMARY SCHOOL,SCHOOL FUNDS,Schools,Miscellaneous Expenses,A49000
Royal Borough of Kingston,04/04/2024,90319009,"5,670.00",ELLINGHAM PRIMARY SCHOOL,SCHOOL FUNDS,Schools,2 Yr Old Place Funding,A60000
Royal Borough of Kingston,01/04/2024,90323688,"10,139.66",ELYSIUM HEALTHCARE LTD,SOCIAL SERVICES - OTHER,Adult Social Care & Health,Independent Placements,A56006
Royal Borough of Kingston,01/04/2024,90323696,"9,782.91",ELYSIUM HEALTHCARE LTD,SOCIAL SERVICES - OTHER,Adult Social Care & Health,Independent Placements,A56006
Royal Borough of Kingston,01/04/2024,90323724,"11,639.83",ELYSIUM HEALTHCARE LTD,SOCIAL SERVICES - OTHER,Adult Social Care & Health,Independent Placements,A56006
Royal Borough of Kingston,01/04/2024,90323728,"10,021.46",ELYSIUM HEALTHCARE LTD,SOCIAL SERVICES - OTHER,Adult Social Care & Health,Independent Placements,A56006
Royal Borough of Kingston,01/04/2024,90323800,"10,139.66",ELYSIUM HEALTHCARE LTD,SOCIAL SERVICES - OTHER,Adult Social Care & Health,Independent Placements,A56006
Royal Borough of Kingston,01/04/2024,90323954,"8,565.36",ELYSIUM HEALTHCARE LTD,SOCIAL SERVICES - OTHER,Adult Social Care & Health,Independent Placements,A56006
Royal Borough of Kingston,01/04/2024,90323955,"11,063.59",ELYSIUM HEALTHCARE LTD,SOCIAL SERVICES - OTHER,Adult Social Care & Health,Independent Placements,A56006
Royal Borough of Kingston,01/04/2024,90323956,"11,063.59",ELYSIUM HEALTHCARE LTD,SOCIAL SERVICES - OTHER,Adult Social Care & Health,Independent Placements,A56006
Royal Borough of Kingston,01/04/2024,90323957,"10,349.81",ELYSIUM HEALTHCARE LTD,SOCIAL SERVICES - OTHER,Adult Social Care & Health,Independent Placements,A56006
Royal Borough of Kingston,01/04/2024,90323958,"11,063.59",ELYSIUM HEALTHCARE LTD,SOCIAL SERVICES - OTHER,Adult Social Care & Health,Independent Placements,A56006
Royal Borough of Kingston,01/04/2024,90323959,"10,706.70",ELYSIUM HEALTHCARE LTD,SOCIAL SERVICES - OTHER,Adult Social Care & Health,Independent Placements,A56006
Royal Borough of Kingston,10/04/2024,70069349,"3,800.00",EMAP PUBLISHING LTD,LEGAL & PROFESSIONAL SERVICES,Place,Conference Expenses,A43075
Royal Borough of Kingston,01/04/2024,90324082,"5,070.24",EMEZZIONS LIMITED,SOCIAL SERVICES - OTHER,Adult Social Care & Health,Supported Living - new framework,A56126
Royal Borough of Kingston,01/04/2024,90324083,"2,716.20",EMEZZIONS LIMITED,SOCIAL SERVICES - OTHER,Adult Social Care & Health,Supported Living - new framework,A56126
Royal Borough of Kingston,04/03/2024,90324120,714.64,EMEZZIONS LIMITED,SOCIAL SERVICES - OTHER,Adult Social Care & Health,Supported Living - new framework,A56126
Royal Borough of Kingston,04/03/2024,90324121,857.57,EMEZZIONS LIMITED,SOCIAL SERVICES - OTHER,Adult Social Care & Health,Supported Living - new framework,A56126
Royal Borough of Kingston,01/04/2024,90324163,"2,564.38",EMEZZIONS LIMITED,SOCIAL SERVICES - OTHER,Adult Social Care & Health,Supported Living - new framework,A56126
Royal Borough of Kingston,01/04/2024,90324164,"3,420.54",EMEZZIONS LIMITED,SOCIAL SERVICES - OTHER,Adult Social Care & Health,Supported Living - new framework,A56126
Royal Borough of Kingston,01/04/2024,90324165,"1,629.63",EMEZZIONS LIMITED,SOCIAL SERVICES - OTHER,Adult Social Care & Health,Supported Living - new framework,A56126
Royal Borough of Kingston,01/04/2024,90324178,"3,533.28",EMEZZIONS LIMITED,SOCIAL SERVICES - OTHER,Adult Social Care & Health,Supported Living - new framework,A56126
Royal Borough of Kingston,01/04/2024,90324179,"2,160.36",EMEZZIONS LIMITED,SOCIAL SERVICES - OTHER,Adult Social Care & Health,Supported Living - new framework,A56126
Royal Borough of Kingston,01/04/2024,90325564,"5,146.20",EMEZZIONS LIMITED,SOCIAL SERVICES - OTHER,Adult Social Care & Health,Personal Budget - Third Party,A61019
Royal Borough of Kingston,02/04/2024,90318731,500.00,REDACTED - PERSONAL DATA,CHARITIES & VOLUNTARY ORGNS,Adult Social Care & Health,"Grants, Contributions & Donations",A47005
Royal Borough of Kingston,04/04/2024,90318925,"5,625.00",REDACTED - PERSONAL DATA,ACADEMIC INSTNS - OTHER,Schools,PVI Providers,A60014
Royal Borough of Kingston,04/04/2024,90319023,"1,620.00",REDACTED - PERSONAL DATA,ACADEMIC INSTNS - OTHER,Schools,2 Yr Old Place Funding,A60000
Royal Borough of Kingston,08/04/2024,70069312,"2,675.00",ENCYCLOPAEDIA BRITANNICA (UK) LTD,BOOKS PUBLICATIONS STATIONERY,Corporate & Communities,Books,A43050
Royal Borough of Kingston,01/04/2024,90323504,"3,241.63",ENHAM,SOCIAL SERVICES - OTHER,Adult Social Care & Health,Independent Placements,A56006
Royal Borough of Kingston,29/02/2024,70069448,906.40,ENHANCEABLE,SOCIAL SERVICES - OTHER,Adult Social Care & Health,Other Private Contractors - Third Party,A56080
Royal Borough of Kingston,01/04/2024,90324058,"31,731.09",ENHANCEABLE,SOCIAL SERVICES - OTHER,Adult Social Care & Health,Other Private Contractors - Third Party,A56080
Royal Borough of Kingston,01/04/2024,90324061,"1,524.21",ENHANCEABLE,SOCIAL SERVICES - OTHER,Adult Social Care & Health,Other Private Contractors - Third Party,A56080
Royal Borough of Kingston,01/04/2024,90326030,"1,525.67",ENHANCEABLE,SOCIAL SERVICES - OTHER,Adult Social Care & Health,Personal Budget - Third Party,A61019
Royal Borough of Kingston,05/04/2024,70068980,"13,160.00",ENVIRO TECHNOLOGY SERVICES PLC,LESSORS,Place,Equipment And Materials Purchase,A40000
Royal Borough of Kingston,03/04/2024,70069316,"47,606.25",ETEACH UK LTD,OPERATIONAL EQUIPMENT/MATERIAL,Corporate & Communities,Subscriptions,A47010
Royal Borough of Kingston,03/04/2024,70069318,"45,883.75",ETEACH UK LTD,OPERATIONAL EQUIPMENT/MATERIAL,Corporate & Communities,Subscriptions,A47010
Royal Borough of Kingston,03/04/2024,70069321,"48,771.25",ETEACH UK LTD,OPERATIONAL EQUIPMENT/MATERIAL,Corporate & Communities,Subscriptions,A47010
Royal Borough of Kingston,03/04/2024,70069326,"32,838.00",ETEACH UK LTD,OPERATIONAL EQUIPMENT/MATERIAL,Corporate & Communities,Subscriptions,A47010
Royal Borough of Kingston,03/04/2024,70069442,"-32,838.00",ETEACH UK LTD,OPERATIONAL EQUIPMENT/MATERIAL,Corporate & Communities,Subscriptions,A47010
Royal Borough of Kingston,15/04/2024,70069612,"32,890.00",ETEACH UK LTD,OPERATIONAL EQUIPMENT/MATERIAL,Corporate & Communities,Subscriptions,A47010
Royal Borough of Kingston,14/02/2024,70069645,500.00,REDACTED - PERSONAL DATA,PLS LANDLORDS,Place,Compensation (In Lieu Of Works),A20039
Royal Borough of Kingston,21/03/2024,70068913,"4,650.00",EurohousingLTD,ACCOMMODATION BED & BREAKFAST,Place,Bed & Breakfast,A56000
Royal Borough of Kingston,01/04/2024,70068954,"4,650.00",EXCLUSIVE FINE HOMES LTD,ACCOMMODATION BED & BREAKFAST,Place,Bed & Breakfast,A56000
Royal Borough of Kingston,01/04/2024,70068955,"2,790.00",EXCLUSIVE FINE HOMES LTD,ACCOMMODATION BED & BREAKFAST,Place,Bed & Breakfast,A56000
Royal Borough of Kingston,01/04/2024,70068956,"4,030.00",EXCLUSIVE FINE HOMES LTD,ACCOMMODATION BED & BREAKFAST,Place,Bed & Breakfast,A56000
Royal Borough of Kingston,02/04/2024,90318503,823.33,REDACTED - PERSONAL DATA,PLS LANDLORDS,Place,PSL Payments To Landlords,A22031
Royal Borough of Kingston,25/04/2024,90326559,823.33,REDACTED - PERSONAL DATA,PLS LANDLORDS,Place,PSL Payments To Landlords,A22031
Royal Borough of Kingston,02/04/2024,90318480,"1,551.00",REDACTED - PERSONAL DATA,PLS LANDLORDS,Place,PSL Payments To Landlords,A22031
Royal Borough of Kingston,25/04/2024,90326536,"1,551.00",REDACTED - PERSONAL DATA,PLS LANDLORDS,Place,PSL Payments To Landlords,A22031
Royal Borough of Kingston,02/04/2024,90318263,918.33,REDACTED - PERSONAL DATA,PLS LANDLORDS,Place,PSL Payments To Landlords,A22031
Royal Borough of Kingston,25/04/2024,90326317,918.33,REDACTED - PERSONAL DATA,PLS LANDLORDS,Place,PSL Payments To Landlords,A22031
Royal Borough of Kingston,28/03/2024,70068667,"1,950.00",F H & G LIMITED,LEGAL & PROFESSIONAL SERVICES,Housing Revenue Account,Professional Fees,A44066
Royal Borough of Kingston,02/04/2024,90318515,"1,675.00",REDACTED - PERSONAL DATA,PLS LANDLORDS,Place,PSL Payments To Landlords,A22031
Royal Borough of Kingston,25/04/2024,90326571,"1,675.00",REDACTED - PERSONAL DATA,PLS LANDLORDS,Place,PSL Payments To Landlords,A22031
